﻿Directorate,Service,Division,Responsible Unit,Expense Type,Payment Date,Trans No,Net Amount,Supplier Name
Childrens Services,Children's Social Care,Children Looked After,Family Support & Protection Team 5,Stationery,03/07/2018,5060698,275.6,Office Depot (Catalogue)
Childrens Services,Children's Social Care,Support Service and Management Costs,Schools Catering,Kitchen Supplies - Food and Beverages,03/07/2018,5060734,270.8,Prescott-Thomas LTD.
Childrens Services,Adult Social Care,Support Service and Management Costs,Org Development L&D Training,Education & Training - Non Staff Tuition Fees,03/07/2018,5060781,600,Pulse First Aid Ltd
Childrens Services,Children's Social Care,Support Service and Management Costs,Schools Catering,Kitchen Supplies - Food and Beverages,03/07/2018,5060828,337.55,Prescott-Thomas LTD.
Childrens Services,Children's Social Care,Support Service and Management Costs,Schools Catering,Kitchen Supplies - Food and Beverages,03/07/2018,5060901,287.08,Prescott-Thomas LTD.
Childrens Services,Children's Social Care,Support Service and Management Costs,Schools Catering,Kitchen Supplies - Food and Beverages,03/07/2018,5060909,266.7,Prescott-Thomas LTD.
Childrens Services,Children's Social Care,Support Service and Management Costs,Schools Catering,Kitchen Supplies - Food and Beverages,03/07/2018,5060955,250.02,Prescott-Thomas LTD.
Childrens Services,Children's Social Care,Support Service and Management Costs,Schools Catering,Kitchen Supplies - Food and Beverages,03/07/2018,5061018,259.1,Prescott-Thomas LTD.
Childrens Services,Children's Social Care,Support Service and Management Costs,Schools Catering,Kitchen Supplies - Food and Beverages,03/07/2018,5061020,279.47,Prescott-Thomas LTD.
Childrens Services,Children's Social Care,Children Looked After,S23 Fam Pl Fost/Adop Advert,Childrens Act Section 23 - Spec Pymnts Advertising,03/07/2018,5061467,450,Rehan Jamil Photography
Childrens Services,Children's Social Care,Children's and Young People's Safety,Child Protection Mgt & Admin,Meeting Expenses,03/07/2018,5061480,481.85,Account 3 Ltd
Childrens Services,Education Services,Other Strategic Functions,Special Education Needs DSG,Third Party Payments - Payments to Schools,03/07/2018,5061510,"19,875.00",Transform Uk Communities Ltd
Childrens Services,Children's Social Care,Support Service and Management Costs,Sch. Meals A/c - Central Production Unit,Kitchen Supplies - Food and Beverages,03/07/2018,5061535,260.64,Prescott-Thomas LTD.
Childrens Services,Children's Social Care,Children's and Young People's Safety,Child Protection Mgt & Admin,Meeting Expenses,03/07/2018,5061660,489,Account 3 Ltd
Childrens Services,Education Services,Other Strategic Functions,Governors Services,Education & Training - Non Staff Tuition Fees,03/07/2018,5064589,500,Andrew Dodge
Childrens Services,Children's Social Care,Children Looked After,S23-Other-Semi-Ind. Unit,Childrens Act Section 23 - Placement Fee,03/07/2018,5064598,"1,850.00",Real Life
Childrens Services,Children's Social Care,Children Looked After,S23-Other-Semi-Ind. Unit,Childrens Act Section 23 - Placement Fee,03/07/2018,5064599,"2,600.00",Real Life
Childrens Services,Children's Social Care,Children Looked After,S23-Other-Semi-Ind. Unit,Childrens Act Section 23 - Placement Fee,03/07/2018,5064600,"1,850.00",Real Life
Childrens Services,Children's Social Care,Children Looked After,S23-Other-Semi-Ind. Unit,Childrens Act Section 23 - Placement Fee,03/07/2018,5064601,"1,850.00",Real Life
Childrens Services,Education Services,Other Strategic Functions,Special Education Needs DSG,Third Party Payments - Payments to Schools,03/07/2018,5065742,"7,000.00",The Complete Works Ltd
Childrens Services,Education Services,Other Strategic Functions,Special Education Needs DSG,Third Party Payments - Payments to Schools,03/07/2018,5065743,"11,875.00",The Complete Works Ltd
Childrens Services,Education Services,Other Strategic Functions,Special Education Needs DSG,Third Party Payments - Payments to Schools,03/07/2018,5065744,"7,000.00",The Complete Works Ltd
Childrens Services,Education Services,Other Strategic Functions,Special Education Needs DSG,Third Party Payments - Payments to Schools,03/07/2018,5065745,"7,000.00",The Complete Works Ltd
Childrens Services,Education Services,Other Strategic Functions,Special Education Needs DSG,Third Party Payments - Payments to Schools,03/07/2018,5065746,"7,000.00",The Complete Works Ltd
Childrens Services,Education Services,Other Strategic Functions,Special Education Needs DSG,Third Party Payments - Payments to Schools,03/07/2018,5065748,"7,000.00",The Complete Works Ltd
Childrens Services,Education Services,Other Strategic Functions,Special Education Needs DSG,Third Party Payments - Payments to Schools,03/07/2018,5065750,"7,000.00",The Complete Works Ltd
Childrens Services,Education Services,Other Strategic Functions,Special Education Needs DSG,Third Party Payments - Payments to Schools,03/07/2018,5065751,"7,000.00",The Complete Works Ltd
Childrens Services,Education Services,Other Strategic Functions,Special Education Needs DSG,Third Party Payments - Payments to Schools,03/07/2018,5065755,"7,000.00",The Complete Works Ltd
Childrens Services,Education Services,Other Strategic Functions,Special Education Needs DSG,Third Party Payments - Payments to Schools,03/07/2018,5065756,"11,875.00",The Complete Works Ltd
Childrens Services,Education Services,Other Strategic Functions,Auxilary Aids,Training Expenses - Staff External Training (UK Based),03/07/2018,5065961,414.8,Ewing Foundation
Childrens Services,Children's Social Care,Family Support Services,Disabled Children�s Outreach Service,Social Care - Nursing Care,03/07/2018,5073332,"48,198.00",East London NHS Foundation Trust
Childrens Services,Children's Social Care,Services for young people,LAPS 1 - 8,Educational/Training Supplies - Curriculum Visits/Activities,03/07/2018,5073348,290,Cardrome Learner Driver Centre
Childrens Services,Children's Social Care,Services for young people,LAPS 1 - 8,Educational/Training Supplies - Curriculum Visits/Activities,03/07/2018,5073349,290,Cardrome Learner Driver Centre
Childrens Services,No Service Specified,No Division Specified,Capital-Minor Works (SC),Other Internal Fees - Other Internal Fees,03/07/2018,5073992,788,Essex Security Services Ltd
Childrens Services,Cultural and Related Services,Culture & Heritage,Event Fund,Third Party Payments - Voluntary Associations,03/07/2018,5074171,320,Stepney City Farm
Childrens Services,Children's Social Care,Support Service and Management Costs,Professional Dev Centre,Water Services - Metered,03/07/2018,5074175,480,CASTLE WATER
Childrens Services,Children's Social Care,Children Looked After,Leaving Care Staff,Water Services - Metered,03/07/2018,5074181,253.15,CASTLE WATER
Childrens Services,Children's Social Care,Children Looked After,S23 Fam Pl P&V-F/Care,Childrens Act Section 23 - Placement Fee,03/07/2018,5074239,"2,921.27",Five Rivers Childcare Limited
Childrens Services,Children's Social Care,Children Looked After,S23 Fam Pl P&V-F/Care,Childrens Act Section 23 - Placement Fee,03/07/2018,5074240,"3,398.70",Five Rivers Childcare Limited
Childrens Services,Children's Social Care,Family Support Services,IPST S17 NRPF,Childrens Act Section 17 - Other Placements Bed & Breakfast,03/07/2018,5074267,"1,209.00",METROPOLITAN & CROWN
Childrens Services,Children's Social Care,Children Looked After,Family Support & Protection Team 5,Services - Professional Fees - Translation Fees,04/07/2018,5017614,347,Oncall Interpreters LTD
Childrens Services,Children's Social Care,Support Service and Management Costs,Sch. Meals A/c - Central Production Unit,Kitchen Supplies - Food and Beverages,04/07/2018,5055627,"1,108.12",Thomas Ridley & Son Ltd
Childrens Services,Children's Social Care,Support Service and Management Costs,"Mulberry Caf�		",Kitchen Supplies - Food and Beverages,04/07/2018,5055629,431.84,Thomas Ridley & Son Ltd
Childrens Services,Children's Social Care,Support Service and Management Costs,Swanlea,Kitchen Supplies - Food and Beverages,04/07/2018,5055630,517.75,Thomas Ridley & Son Ltd
Childrens Services,Children's Social Care,Support Service and Management Costs,Schools Catering,Kitchen Supplies - Food and Beverages,04/07/2018,5055691,258.59,Thomas Ridley & Son Ltd
Childrens Services,Children's Social Care,Support Service and Management Costs,Schools Catering,Kitchen Supplies - Food and Beverages,04/07/2018,5055718,401.77,Thomas Ridley & Son Ltd
Childrens Services,Children's Social Care,Support Service and Management Costs,Schools Catering,Kitchen Supplies - Food and Beverages,04/07/2018,5055732,559.35,Thomas Ridley & Son Ltd
Childrens Services,Children's Social Care,Support Service and Management Costs,Schools Catering,Kitchen Supplies - Food and Beverages,04/07/2018,5055751,738.78,Thomas Ridley & Son Ltd
Childrens Services,Children's Social Care,Support Service and Management Costs,Schools Catering,Kitchen Supplies - Food and Beverages,04/07/2018,5055765,395.62,Thomas Ridley & Son Ltd
Childrens Services,Children's Social Care,Support Service and Management Costs,Schools Catering,Kitchen Supplies - Food and Beverages,04/07/2018,5055768,507.87,Thomas Ridley & Son Ltd
Childrens Services,Children's Social Care,Support Service and Management Costs,Schools Catering,Kitchen Supplies - Food and Beverages,04/07/2018,5055774,666.48,Thomas Ridley & Son Ltd
Childrens Services,Children's Social Care,Support Service and Management Costs,Schools Catering,Kitchen Supplies - Food and Beverages,04/07/2018,5055778,"1,061.77",Thomas Ridley & Son Ltd
Childrens Services,Children's Social Care,Support Service and Management Costs,Schools Catering,Kitchen Supplies - Food and Beverages,04/07/2018,5055781,404.74,Thomas Ridley & Son Ltd
Childrens Services,Children's Social Care,Support Service and Management Costs,Schools Catering,Kitchen Supplies - Food and Beverages,04/07/2018,5055786,308.27,Thomas Ridley & Son Ltd
Childrens Services,Children's Social Care,Support Service and Management Costs,Schools Catering,Kitchen Supplies - Food and Beverages,04/07/2018,5055791,385.4,Thomas Ridley & Son Ltd
Childrens Services,Children's Social Care,Support Service and Management Costs,Schools Catering,Kitchen Supplies - Food and Beverages,04/07/2018,5055793,412.21,Thomas Ridley & Son Ltd
Childrens Services,Children's Social Care,Support Service and Management Costs,Schools Catering,Kitchen Supplies - Food and Beverages,04/07/2018,5055795,465.14,Thomas Ridley & Son Ltd
Childrens Services,Children's Social Care,Support Service and Management Costs,Schools Catering,Kitchen Supplies - Food and Beverages,04/07/2018,5056340,491.52,Thomas Ridley & Son Ltd
Childrens Services,Children's Social Care,Support Service and Management Costs,Schools Catering,Kitchen Supplies - Food and Beverages,04/07/2018,5056348,443.91,Thomas Ridley & Son Ltd
Childrens Services,Children's Social Care,Support Service and Management Costs,Schools Catering,Kitchen Supplies - Food and Beverages,04/07/2018,5056350,626,Thomas Ridley & Son Ltd
Childrens Services,Children's Social Care,Support Service and Management Costs,Schools Catering,Kitchen Supplies - Food and Beverages,04/07/2018,5056352,340.67,Thomas Ridley & Son Ltd
Childrens Services,Children's Social Care,Support Service and Management Costs,Schools Catering,Kitchen Supplies - Food and Beverages,04/07/2018,5056354,480.56,Thomas Ridley & Son Ltd
Childrens Services,Children's Social Care,Support Service and Management Costs,Schools Catering,Kitchen Supplies - Food and Beverages,04/07/2018,5056357,315.53,Thomas Ridley & Son Ltd
Childrens Services,Children's Social Care,Support Service and Management Costs,Schools Catering,Kitchen Supplies - Food and Beverages,04/07/2018,5056359,356.41,Thomas Ridley & Son Ltd
Childrens Services,Children's Social Care,Other Children's and Family Services,Permanancy and Adoption Support Team 1,Third Party Payments - Voluntary Associations,04/07/2018,5057168,350,Barnardo's
Childrens Services,Children's Social Care,Support Service and Management Costs,Sch. Meals A/c - Central Production Unit,Kitchen Supplies - Food and Beverages,04/07/2018,5057188,"1,367.94",Thomas Ridley & Son Ltd
Childrens Services,Children's Social Care,Other Children's and Family Services,Permanancy and Adoption Support Team 1,Third Party Payments - Voluntary Associations,04/07/2018,5057248,350,Barnardo's
Childrens Services,Children's Social Care,Support Service and Management Costs,Schools Catering,Kitchen Supplies - Food and Beverages,04/07/2018,5057271,498.07,Thomas Ridley & Son Ltd
Childrens Services,Children's Social Care,Support Service and Management Costs,Schools Catering,Kitchen Supplies - Food and Beverages,04/07/2018,5057281,590.35,Thomas Ridley & Son Ltd
Childrens Services,Children's Social Care,Support Service and Management Costs,Schools Catering,Kitchen Supplies - Food and Beverages,04/07/2018,5057308,773.35,Thomas Ridley & Son Ltd
Childrens Services,Children's Social Care,Support Service and Management Costs,Schools Catering,Kitchen Supplies - Food and Beverages,04/07/2018,5057316,350.06,Thomas Ridley & Son Ltd
Childrens Services,Children's Social Care,Support Service and Management Costs,Schools Catering,Kitchen Supplies - Food and Beverages,04/07/2018,5057324,277.56,Thomas Ridley & Son Ltd
Childrens Services,Children's Social Care,Support Service and Management Costs,Schools Catering,Kitchen Supplies - Food and Beverages,04/07/2018,5057330,258.35,Thomas Ridley & Son Ltd
Childrens Services,Children's Social Care,Support Service and Management Costs,Schools Catering,Kitchen Supplies - Food and Beverages,04/07/2018,5057333,308.08,Thomas Ridley & Son Ltd
Childrens Services,Children's Social Care,Support Service and Management Costs,Schools Catering,Kitchen Supplies - Food and Beverages,04/07/2018,5057339,778.86,Thomas Ridley & Son Ltd
Childrens Services,Children's Social Care,Support Service and Management Costs,Schools Catering,Kitchen Supplies - Food and Beverages,04/07/2018,5057341,757.22,Thomas Ridley & Son Ltd
Childrens Services,Children's Social Care,Support Service and Management Costs,Schools Catering,Kitchen Supplies - Food and Beverages,04/07/2018,5057345,341.39,Thomas Ridley & Son Ltd
Childrens Services,Children's Social Care,Support Service and Management Costs,Schools Catering,Kitchen Supplies - Food and Beverages,04/07/2018,5057348,311.92,Thomas Ridley & Son Ltd
Childrens Services,Children's Social Care,Support Service and Management Costs,Schools Catering,Kitchen Supplies - Food and Beverages,04/07/2018,5057356,383.88,Thomas Ridley & Son Ltd
Childrens Services,Children's Social Care,Support Service and Management Costs,Schools Catering,Kitchen Supplies - Food and Beverages,04/07/2018,5057363,286.73,Thomas Ridley & Son Ltd
Childrens Services,Children's Social Care,Support Service and Management Costs,Schools Catering,Kitchen Supplies - Food and Beverages,04/07/2018,5057367,307.41,Thomas Ridley & Son Ltd
Childrens Services,Children's Social Care,Support Service and Management Costs,Schools Catering,Kitchen Supplies - Food and Beverages,04/07/2018,5057369,479.41,Thomas Ridley & Son Ltd
Childrens Services,Children's Social Care,Support Service and Management Costs,Schools Catering,Kitchen Supplies - Food and Beverages,04/07/2018,5057379,362.55,Thomas Ridley & Son Ltd
Childrens Services,Children's Social Care,Support Service and Management Costs,Schools Catering,Kitchen Supplies - Food and Beverages,04/07/2018,5057382,429.58,Thomas Ridley & Son Ltd
Childrens Services,Children's Social Care,Support Service and Management Costs,Schools Catering,Kitchen Supplies - Food and Beverages,04/07/2018,5057386,563.41,Thomas Ridley & Son Ltd
Childrens Services,Children's Social Care,Support Service and Management Costs,Schools Catering,Kitchen Supplies - Food and Beverages,04/07/2018,5057388,424.34,Thomas Ridley & Son Ltd
Childrens Services,Children's Social Care,Support Service and Management Costs,Schools Catering,Kitchen Supplies - Food and Beverages,04/07/2018,5057408,293.59,Thomas Ridley & Son Ltd
Childrens Services,Children's Social Care,Support Service and Management Costs,Swanlea,Kitchen Supplies - Food and Beverages,04/07/2018,5057586,657.8,Thomas Ridley & Son Ltd
Childrens Services,Children's Social Care,Support Service and Management Costs,Schools Catering,Kitchen Supplies - Food and Beverages,04/07/2018,5057661,530.23,Thomas Ridley & Son Ltd
Childrens Services,Children's Social Care,Support Service and Management Costs,Schools Catering,Kitchen Supplies - Food and Beverages,04/07/2018,5057692,381.73,Thomas Ridley & Son Ltd
Childrens Services,Children's Social Care,Support Service and Management Costs,Schools Catering,Kitchen Supplies - Food and Beverages,04/07/2018,5057694,545.96,Thomas Ridley & Son Ltd
Childrens Services,Children's Social Care,Support Service and Management Costs,Schools Catering,Kitchen Supplies - Food and Beverages,04/07/2018,5057701,302.76,Thomas Ridley & Son Ltd
Childrens Services,Children's Social Care,Support Service and Management Costs,Schools Catering,Kitchen Supplies - Food and Beverages,04/07/2018,5057712,511.5,Thomas Ridley & Son Ltd
Childrens Services,Children's Social Care,Support Service and Management Costs,Schools Catering,Kitchen Supplies - Food and Beverages,04/07/2018,5057718,461.79,Thomas Ridley & Son Ltd
Childrens Services,Children's Social Care,Support Service and Management Costs,Schools Catering,Kitchen Supplies - Food and Beverages,04/07/2018,5057727,273.94,Thomas Ridley & Son Ltd
Childrens Services,Children's Social Care,Support Service and Management Costs,Schools Catering,Kitchen Supplies - Food and Beverages,04/07/2018,5058521,280.38,Thomas Ridley & Son Ltd
Childrens Services,Children's Social Care,Support Service and Management Costs,Schools Catering,Kitchen Supplies - Food and Beverages,04/07/2018,5059081,394.21,Thomas Ridley & Son Ltd
Childrens Services,Children's Social Care,Support Service and Management Costs,Schools Catering,Kitchen Supplies - Food and Beverages,04/07/2018,5059130,991.89,Thomas Ridley & Son Ltd
Childrens Services,Children's Social Care,Support Service and Management Costs,Schools Catering,Kitchen Supplies - Food and Beverages,04/07/2018,5059840,418.41,Thomas Ridley & Son Ltd
Childrens Services,Children's Social Care,Support Service and Management Costs,Schools Catering,Kitchen Supplies - Food and Beverages,04/07/2018,5060459,462.12,Thomas Ridley & Son Ltd
Childrens Services,Children's Social Care,Support Service and Management Costs,Sch. Meals A/c - Central Production Unit,Kitchen Supplies - Food and Beverages,04/07/2018,5060460,"1,821.68",Thomas Ridley & Son Ltd
Childrens Services,Children's Social Care,Support Service and Management Costs,Swanlea,Kitchen Supplies - Food and Beverages,04/07/2018,5060462,591.43,Thomas Ridley & Son Ltd
Childrens Services,Children's Social Care,Support Service and Management Costs,Schools Catering,Kitchen Supplies - Food and Beverages,04/07/2018,5060556,368.32,Thomas Ridley & Son Ltd
Childrens Services,Children's Social Care,Support Service and Management Costs,Schools Catering,Kitchen Supplies - Food and Beverages,04/07/2018,5060568,793.37,Thomas Ridley & Son Ltd
Childrens Services,Children's Social Care,Support Service and Management Costs,Schools Catering,Kitchen Supplies - Food and Beverages,04/07/2018,5060582,311.3,Thomas Ridley & Son Ltd
Childrens Services,Children's Social Care,Support Service and Management Costs,Schools Catering,Kitchen Supplies - Food and Beverages,04/07/2018,5060586,581.29,Thomas Ridley & Son Ltd
Childrens Services,Children's Social Care,Support Service and Management Costs,Schools Catering,Kitchen Supplies - Food and Beverages,04/07/2018,5060598,269.3,Thomas Ridley & Son Ltd
Childrens Services,Children's Social Care,Support Service and Management Costs,Schools Catering,Kitchen Supplies - Food and Beverages,04/07/2018,5060604,352.82,Thomas Ridley & Son Ltd
Childrens Services,Children's Social Care,Support Service and Management Costs,Schools Catering,Kitchen Supplies - Food and Beverages,04/07/2018,5060605,637.56,Thomas Ridley & Son Ltd
Childrens Services,Children's Social Care,Support Service and Management Costs,Schools Catering,Kitchen Supplies - Food and Beverages,04/07/2018,5060607,550.49,Thomas Ridley & Son Ltd
Childrens Services,Children's Social Care,Support Service and Management Costs,Schools Catering,Kitchen Supplies - Food and Beverages,04/07/2018,5060608,275.09,Thomas Ridley & Son Ltd
Childrens Services,Children's Social Care,Support Service and Management Costs,Schools Catering,Kitchen Supplies - Food and Beverages,04/07/2018,5060613,506.3,Thomas Ridley & Son Ltd
Childrens Services,Children's Social Care,Support Service and Management Costs,Schools Catering,Kitchen Supplies - Food and Beverages,04/07/2018,5060615,479.87,Thomas Ridley & Son Ltd
Childrens Services,Children's Social Care,Support Service and Management Costs,Schools Catering,Kitchen Supplies - Food and Beverages,04/07/2018,5060616,269.06,Thomas Ridley & Son Ltd
Childrens Services,Children's Social Care,Support Service and Management Costs,Schools Catering,Kitchen Supplies - Food and Beverages,04/07/2018,5060617,469.23,Thomas Ridley & Son Ltd
Childrens Services,Children's Social Care,Support Service and Management Costs,Schools Catering,Kitchen Supplies - Food and Beverages,04/07/2018,5060621,338.61,Thomas Ridley & Son Ltd
Childrens Services,Children's Social Care,Support Service and Management Costs,Schools Catering,Kitchen Supplies - Food and Beverages,04/07/2018,5060622,570.83,Thomas Ridley & Son Ltd
Childrens Services,Children's Social Care,Support Service and Management Costs,Schools Catering,Kitchen Supplies - Food and Beverages,04/07/2018,5060623,357.51,Thomas Ridley & Son Ltd
Childrens Services,Children's Social Care,Support Service and Management Costs,Schools Catering,Kitchen Supplies - Food and Beverages,04/07/2018,5060624,744.54,Thomas Ridley & Son Ltd
Childrens Services,Children's Social Care,Support Service and Management Costs,Schools Catering,Kitchen Supplies - Food and Beverages,04/07/2018,5060625,390.38,Thomas Ridley & Son Ltd
Childrens Services,Children's Social Care,Support Service and Management Costs,Schools Catering,Kitchen Supplies - Food and Beverages,04/07/2018,5060627,480.6,Thomas Ridley & Son Ltd
Childrens Services,Children's Social Care,Support Service and Management Costs,Schools Catering,Kitchen Supplies - Food and Beverages,04/07/2018,5060628,566.2,Thomas Ridley & Son Ltd
Childrens Services,Children's Social Care,Support Service and Management Costs,Schools Catering,Kitchen Supplies - Food and Beverages,04/07/2018,5060629,489.78,Thomas Ridley & Son Ltd
Childrens Services,Children's Social Care,Support Service and Management Costs,Schools Catering,Kitchen Supplies - Food and Beverages,04/07/2018,5060631,280.64,Thomas Ridley & Son Ltd
Childrens Services,Children's Social Care,Support Service and Management Costs,Schools Catering,Kitchen Supplies - Food and Beverages,04/07/2018,5060632,607.75,Thomas Ridley & Son Ltd
Childrens Services,Children's Social Care,Support Service and Management Costs,Schools Catering,Kitchen Supplies - Food and Beverages,04/07/2018,5060633,414.6,Thomas Ridley & Son Ltd
Childrens Services,Children's Social Care,Support Service and Management Costs,Schools Catering,Kitchen Supplies - Food and Beverages,04/07/2018,5060634,373.65,Thomas Ridley & Son Ltd
Childrens Services,Children's Social Care,Support Service and Management Costs,Schools Catering,Kitchen Supplies - Food and Beverages,04/07/2018,5060635,475.62,Thomas Ridley & Son Ltd
Childrens Services,Children's Social Care,Support Service and Management Costs,Schools Catering,Kitchen Supplies - Food and Beverages,04/07/2018,5060639,328.4,Thomas Ridley & Son Ltd
Childrens Services,Children's Social Care,Support Service and Management Costs,Schools Catering,Kitchen Supplies - Food and Beverages,04/07/2018,5060640,261.82,Thomas Ridley & Son Ltd
Childrens Services,Children's Social Care,Support Service and Management Costs,Schools Catering,Kitchen Supplies - Food and Beverages,04/07/2018,5060641,309.18,Thomas Ridley & Son Ltd
Childrens Services,Children's Social Care,Support Service and Management Costs,Schools Catering,Kitchen Supplies - Food and Beverages,04/07/2018,5060642,585.84,Thomas Ridley & Son Ltd
Childrens Services,Children's Social Care,Support Service and Management Costs,Schools Catering,Kitchen Supplies - Food and Beverages,04/07/2018,5060643,295.4,Thomas Ridley & Son Ltd
Childrens Services,Children's Social Care,Support Service and Management Costs,Schools Catering,Kitchen Supplies - Food and Beverages,04/07/2018,5060644,332.41,Thomas Ridley & Son Ltd
Childrens Services,Children's Social Care,Support Service and Management Costs,Schools Catering,Kitchen Supplies - Food and Beverages,04/07/2018,5060647,333.6,Thomas Ridley & Son Ltd
Childrens Services,Children's Social Care,Support Service and Management Costs,Schools Catering,Kitchen Supplies - Food and Beverages,04/07/2018,5060648,616.17,Thomas Ridley & Son Ltd
Childrens Services,Children's Social Care,Support Service and Management Costs,Schools Catering,Kitchen Supplies - Food and Beverages,04/07/2018,5060649,276.13,Thomas Ridley & Son Ltd
Childrens Services,Children's Social Care,Support Service and Management Costs,Schools Catering,Kitchen Supplies - Food and Beverages,04/07/2018,5060650,259.62,Thomas Ridley & Son Ltd
Childrens Services,Children's Social Care,Support Service and Management Costs,Schools Catering,Kitchen Supplies - Food and Beverages,04/07/2018,5060651,361.81,Thomas Ridley & Son Ltd
Childrens Services,Children's Social Care,Support Service and Management Costs,Schools Catering,Kitchen Supplies - Food and Beverages,04/07/2018,5060653,570.48,Thomas Ridley & Son Ltd
Childrens Services,Children's Social Care,Support Service and Management Costs,Schools Catering,Kitchen Supplies - Food and Beverages,04/07/2018,5060654,297.36,Thomas Ridley & Son Ltd
Childrens Services,Children's Social Care,Support Service and Management Costs,Schools Catering,Kitchen Supplies - Food and Beverages,04/07/2018,5060656,408.14,Thomas Ridley & Son Ltd
Childrens Services,Children's Social Care,Support Service and Management Costs,Schools Catering,Kitchen Supplies - Food and Beverages,04/07/2018,5060657,604.04,Thomas Ridley & Son Ltd
Childrens Services,Children's Social Care,Support Service and Management Costs,Schools Catering,Kitchen Supplies - Food and Beverages,04/07/2018,5060660,354.07,Thomas Ridley & Son Ltd
Childrens Services,Children's Social Care,Support Service and Management Costs,Schools Catering,Kitchen Supplies - Food and Beverages,04/07/2018,5060661,652.48,Thomas Ridley & Son Ltd
Childrens Services,Children's Social Care,Support Service and Management Costs,Schools Catering,Kitchen Supplies - Food and Beverages,04/07/2018,5060662,718.32,Thomas Ridley & Son Ltd
Childrens Services,Children's Social Care,Support Service and Management Costs,Schools Catering,Kitchen Supplies - Food and Beverages,04/07/2018,5060663,376.2,Thomas Ridley & Son Ltd
Childrens Services,Children's Social Care,Support Service and Management Costs,Schools Catering,Kitchen Supplies - Food and Beverages,04/07/2018,5060664,629.41,Thomas Ridley & Son Ltd
Childrens Services,Children's Social Care,Support Service and Management Costs,Schools Catering,Kitchen Supplies - Food and Beverages,04/07/2018,5060665,374.68,Thomas Ridley & Son Ltd
Childrens Services,Children's Social Care,Support Service and Management Costs,Schools Catering,Kitchen Supplies - Food and Beverages,04/07/2018,5060666,375.16,Thomas Ridley & Son Ltd
Childrens Services,Children's Social Care,Support Service and Management Costs,Schools Catering,Kitchen Supplies - Food and Beverages,04/07/2018,5060668,467.4,Thomas Ridley & Son Ltd
Childrens Services,Children's Social Care,Support Service and Management Costs,Schools Catering,Kitchen Supplies - Food and Beverages,04/07/2018,5060670,457.98,Thomas Ridley & Son Ltd
Childrens Services,Children's Social Care,Support Service and Management Costs,Schools Catering,Kitchen Supplies - Food and Beverages,04/07/2018,5060672,474.17,Thomas Ridley & Son Ltd
Childrens Services,Children's Social Care,Support Service and Management Costs,Schools Catering,Kitchen Supplies - Food and Beverages,04/07/2018,5060732,428.53,Thomas Ridley & Son Ltd
Childrens Services,Children's Social Care,Support Service and Management Costs,Sch. Meals A/c - Central Production Unit,Kitchen Supplies - Food and Beverages,04/07/2018,5060733,552.13,Thomas Ridley & Son Ltd
Childrens Services,Children's Social Care,Children Looked After,S23-Other-Semi-Ind. Unit,Childrens Act Section 23 - Placement Fee,04/07/2018,5060802,375,Alpha Care Service Ltd
Childrens Services,Children's Social Care,Support Service and Management Costs,Schools Catering,Kitchen Supplies - Food and Beverages,04/07/2018,5060838,474.98,Thomas Ridley & Son Ltd
Childrens Services,Children's Social Care,Support Service and Management Costs,Schools Catering,Kitchen Supplies - Food and Beverages,04/07/2018,5060848,472.51,Thomas Ridley & Son Ltd
Childrens Services,Children's Social Care,Support Service and Management Costs,Schools Catering,Kitchen Supplies - Food and Beverages,04/07/2018,5060855,336.03,Thomas Ridley & Son Ltd
Childrens Services,Children's Social Care,Support Service and Management Costs,Schools Catering,Kitchen Supplies - Food and Beverages,04/07/2018,5060865,544.62,Thomas Ridley & Son Ltd
Childrens Services,Children's Social Care,Support Service and Management Costs,Schools Catering,Kitchen Supplies - Food and Beverages,04/07/2018,5061530,816.62,Thomas Ridley & Son Ltd
Childrens Services,Children's Social Care,Support Service and Management Costs,Sch. Meals A/c - Central Production Unit,Kitchen Supplies - Food and Beverages,04/07/2018,5061531,"2,036.13",Thomas Ridley & Son Ltd
Childrens Services,Children's Social Care,Support Service and Management Costs,"Mulberry Caf�		",Kitchen Supplies - Food and Beverages,04/07/2018,5061532,625.44,Thomas Ridley & Son Ltd
Childrens Services,Children's Social Care,Support Service and Management Costs,Swanlea,Kitchen Supplies - Food and Beverages,04/07/2018,5061533,376.81,Thomas Ridley & Son Ltd
Childrens Services,Education Services,Early Years,Central Nursery LSAs,Third Party Payments - Payments to Schools,04/07/2018,5061550,"7,193.12",Little St Matthias Pre School
Childrens Services,Children's Social Care,Support Service and Management Costs,Schools Catering,Kitchen Supplies - Food and Beverages,04/07/2018,5061666,357.88,Thomas Ridley & Son Ltd
Childrens Services,Children's Social Care,Support Service and Management Costs,Schools Catering,Kitchen Supplies - Food and Beverages,04/07/2018,5061687,270.62,Thomas Ridley & Son Ltd
Childrens Services,Children's Social Care,Support Service and Management Costs,Schools Catering,Kitchen Supplies - Food and Beverages,04/07/2018,5061700,550.79,Thomas Ridley & Son Ltd
Childrens Services,Children's Social Care,Support Service and Management Costs,Schools Catering,Kitchen Supplies - Food and Beverages,04/07/2018,5061708,399.76,Thomas Ridley & Son Ltd
Childrens Services,Children's Social Care,Support Service and Management Costs,Schools Catering,Kitchen Supplies - Food and Beverages,04/07/2018,5061715,449.79,Thomas Ridley & Son Ltd
Childrens Services,Children's Social Care,Support Service and Management Costs,Schools Catering,Kitchen Supplies - Food and Beverages,04/07/2018,5061722,356.66,Thomas Ridley & Son Ltd
Childrens Services,Children's Social Care,Support Service and Management Costs,Schools Catering,Kitchen Supplies - Food and Beverages,04/07/2018,5061730,323.26,Thomas Ridley & Son Ltd
Childrens Services,Children's Social Care,Support Service and Management Costs,Schools Catering,Kitchen Supplies - Food and Beverages,04/07/2018,5061735,481.27,Thomas Ridley & Son Ltd
Childrens Services,Children's Social Care,Support Service and Management Costs,Schools Catering,Kitchen Supplies - Food and Beverages,04/07/2018,5061740,270.61,Thomas Ridley & Son Ltd
Childrens Services,Children's Social Care,Support Service and Management Costs,Schools Catering,Kitchen Supplies - Food and Beverages,04/07/2018,5061746,577.8,Thomas Ridley & Son Ltd
Childrens Services,Children's Social Care,Support Service and Management Costs,Schools Catering,Kitchen Supplies - Food and Beverages,04/07/2018,5061810,400.8,Thomas Ridley & Son Ltd
Childrens Services,Children's Social Care,Support Service and Management Costs,Schools Catering,Kitchen Supplies - Food and Beverages,04/07/2018,5061812,312.66,Thomas Ridley & Son Ltd
Childrens Services,Children's Social Care,Support Service and Management Costs,Schools Catering,Kitchen Supplies - Food and Beverages,04/07/2018,5061816,799.89,Thomas Ridley & Son Ltd
Childrens Services,Children's Social Care,Support Service and Management Costs,Schools Catering,Kitchen Supplies - Food and Beverages,04/07/2018,5061821,333.37,Thomas Ridley & Son Ltd
Childrens Services,Children's Social Care,Support Service and Management Costs,Schools Catering,Kitchen Supplies - Food and Beverages,04/07/2018,5061824,339.67,Thomas Ridley & Son Ltd
Childrens Services,Children's Social Care,Support Service and Management Costs,Schools Catering,Kitchen Supplies - Food and Beverages,04/07/2018,5061829,622.65,Thomas Ridley & Son Ltd
Childrens Services,Children's Social Care,Support Service and Management Costs,Schools Catering,Kitchen Supplies - Food and Beverages,04/07/2018,5062367,549.06,Thomas Ridley & Son Ltd
Childrens Services,Children's Social Care,Support Service and Management Costs,Schools Catering,Kitchen Supplies - Food and Beverages,04/07/2018,5062370,376.13,Thomas Ridley & Son Ltd
Childrens Services,Children's Social Care,Support Service and Management Costs,Schools Catering,Kitchen Supplies - Food and Beverages,04/07/2018,5062372,464.28,Thomas Ridley & Son Ltd
Childrens Services,Children's Social Care,Support Service and Management Costs,Schools Catering,Kitchen Supplies - Food and Beverages,04/07/2018,5062374,287.68,Thomas Ridley & Son Ltd
Childrens Services,Children's Social Care,Support Service and Management Costs,Schools Catering,Kitchen Supplies - Food and Beverages,04/07/2018,5062377,425.2,Thomas Ridley & Son Ltd
Childrens Services,Children's Social Care,Support Service and Management Costs,Schools Catering,Kitchen Supplies - Food and Beverages,04/07/2018,5062381,562.54,Thomas Ridley & Son Ltd
Childrens Services,Children's Social Care,Support Service and Management Costs,Schools Catering,Kitchen Supplies - Food and Beverages,04/07/2018,5062385,411.23,Thomas Ridley & Son Ltd
Childrens Services,Children's Social Care,Support Service and Management Costs,Schools Catering,Kitchen Supplies - Food and Beverages,04/07/2018,5062389,693.72,Thomas Ridley & Son Ltd
Childrens Services,Children's Social Care,Support Service and Management Costs,Schools Catering,Kitchen Supplies - Food and Beverages,04/07/2018,5062391,478.87,Thomas Ridley & Son Ltd
Childrens Services,Children's Social Care,Support Service and Management Costs,Schools Catering,Kitchen Supplies - Food and Beverages,04/07/2018,5062394,622.36,Thomas Ridley & Son Ltd
Childrens Services,Children's Social Care,Support Service and Management Costs,Schools Catering,Kitchen Supplies - Food and Beverages,04/07/2018,5062395,421.97,Thomas Ridley & Son Ltd
Childrens Services,Children's Social Care,Support Service and Management Costs,Schools Catering,Kitchen Supplies - Food and Beverages,04/07/2018,5062396,477.22,Thomas Ridley & Son Ltd
Childrens Services,Children's Social Care,Support Service and Management Costs,Schools Catering,Kitchen Supplies - Food and Beverages,04/07/2018,5062397,465.25,Thomas Ridley & Son Ltd
Childrens Services,Children's Social Care,Support Service and Management Costs,Schools Catering,Kitchen Supplies - Food and Beverages,04/07/2018,5062399,684,Thomas Ridley & Son Ltd
Childrens Services,Children's Social Care,Support Service and Management Costs,Schools Catering,Kitchen Supplies - Food and Beverages,04/07/2018,5062400,251.73,Thomas Ridley & Son Ltd
Childrens Services,Children's Social Care,Support Service and Management Costs,Schools Catering,Kitchen Supplies - Food and Beverages,04/07/2018,5062404,417.38,Thomas Ridley & Son Ltd
Childrens Services,Children's Social Care,Support Service and Management Costs,Professional Dev Centre,Stationery,04/07/2018,5062416,417.38,Office Depot (Catalogue)
Childrens Services,Children's Social Care,Support Service and Management Costs,Sch. Meals A/c - Clare Grant,Tools and Equipment - Purchase,04/07/2018,5062434,"1,985.00",Willis Jenkins Ltd
Childrens Services,Education Services,Other Strategic Functions,Special Education Needs DSG,Third Party Payments - Payments to Schools,04/07/2018,5062438,"19,194.89",Woodcroft School Ltd
Childrens Services,Children's Social Care,Support Service and Management Costs,Sch. Meals A/c - Central Production Unit,Kitchen Supplies - Food and Beverages,04/07/2018,5062448,"1,375.83",Thomas Ridley & Son Ltd
Childrens Services,Children's Social Care,Support Service and Management Costs,Schools Catering,Kitchen Supplies - Food and Beverages,04/07/2018,5062569,717.72,Thomas Ridley & Son Ltd
Childrens Services,Children's Social Care,Support Service and Management Costs,Schools Catering,Kitchen Supplies - Food and Beverages,04/07/2018,5062575,"1,030.51",Thomas Ridley & Son Ltd
Childrens Services,Children's Social Care,Support Service and Management Costs,Schools Catering,Kitchen Supplies - Food and Beverages,04/07/2018,5062578,560.06,Thomas Ridley & Son Ltd
Childrens Services,Children's Social Care,Support Service and Management Costs,Schools Catering,Kitchen Supplies - Food and Beverages,04/07/2018,5062581,297.15,Thomas Ridley & Son Ltd
Childrens Services,Children's Social Care,Support Service and Management Costs,Schools Catering,Kitchen Supplies - Food and Beverages,04/07/2018,5062584,755.82,Thomas Ridley & Son Ltd
Childrens Services,Children's Social Care,Support Service and Management Costs,Schools Catering,Kitchen Supplies - Food and Beverages,04/07/2018,5062586,281.08,Thomas Ridley & Son Ltd
Childrens Services,Children's Social Care,Support Service and Management Costs,Schools Catering,Kitchen Supplies - Food and Beverages,04/07/2018,5062590,683.48,Thomas Ridley & Son Ltd
Childrens Services,Children's Social Care,Support Service and Management Costs,Schools Catering,Kitchen Supplies - Food and Beverages,04/07/2018,5062667,271.72,Thomas Ridley & Son Ltd
Childrens Services,Children's Social Care,Support Service and Management Costs,Schools Catering,Kitchen Supplies - Food and Beverages,04/07/2018,5062668,257.63,Prescott-Thomas LTD.
Childrens Services,Children's Social Care,Support Service and Management Costs,Schools Catering,Kitchen Supplies - Food and Beverages,04/07/2018,5062674,352.04,Thomas Ridley & Son Ltd
Childrens Services,Children's Social Care,Support Service and Management Costs,Schools Catering,Kitchen Supplies - Food and Beverages,04/07/2018,5062676,393.93,Thomas Ridley & Son Ltd
Childrens Services,Children's Social Care,Support Service and Management Costs,Schools Catering,Kitchen Supplies - Food and Beverages,04/07/2018,5062678,288.75,Thomas Ridley & Son Ltd
Childrens Services,Children's Social Care,Support Service and Management Costs,Schools Catering,Kitchen Supplies - Food and Beverages,04/07/2018,5062682,760.78,Thomas Ridley & Son Ltd
Childrens Services,Children's Social Care,Support Service and Management Costs,Schools Catering,Kitchen Supplies - Food and Beverages,04/07/2018,5062687,428.1,Thomas Ridley & Son Ltd
Childrens Services,Children's Social Care,Support Service and Management Costs,Schools Catering,Kitchen Supplies - Food and Beverages,04/07/2018,5062689,324.84,Thomas Ridley & Son Ltd
Childrens Services,Children's Social Care,Support Service and Management Costs,Schools Catering,Kitchen Supplies - Food and Beverages,04/07/2018,5062691,343.33,Thomas Ridley & Son Ltd
Childrens Services,Children's Social Care,Support Service and Management Costs,Schools Catering,Kitchen Supplies - Food and Beverages,04/07/2018,5062701,429.83,Thomas Ridley & Son Ltd
Childrens Services,Children's Social Care,Support Service and Management Costs,Schools Catering,Kitchen Supplies - Food and Beverages,04/07/2018,5062705,250.99,Thomas Ridley & Son Ltd
Childrens Services,Children's Social Care,Support Service and Management Costs,Schools Catering,Kitchen Supplies - Food and Beverages,04/07/2018,5062709,330.65,Thomas Ridley & Son Ltd
Childrens Services,Children's Social Care,Support Service and Management Costs,Schools Catering,Kitchen Supplies - Food and Beverages,04/07/2018,5062711,607.13,Thomas Ridley & Son Ltd
Childrens Services,Children's Social Care,Support Service and Management Costs,Schools Catering,Kitchen Supplies - Food and Beverages,04/07/2018,5062713,513.94,Thomas Ridley & Son Ltd
Childrens Services,Children's Social Care,Support Service and Management Costs,Schools Catering,Kitchen Supplies - Food and Beverages,04/07/2018,5062715,467.97,Thomas Ridley & Son Ltd
Childrens Services,Children's Social Care,Support Service and Management Costs,Schools Catering,Kitchen Supplies - Food and Beverages,04/07/2018,5062718,350.9,Thomas Ridley & Son Ltd
Childrens Services,Children's Social Care,Support Service and Management Costs,Schools Catering,Kitchen Supplies - Food and Beverages,04/07/2018,5062720,710.95,Thomas Ridley & Son Ltd
Childrens Services,Children's Social Care,Support Service and Management Costs,Schools Catering,Kitchen Supplies - Food and Beverages,04/07/2018,5062722,313.1,Thomas Ridley & Son Ltd
Childrens Services,Children's Social Care,Support Service and Management Costs,Schools Catering,Kitchen Supplies - Food and Beverages,04/07/2018,5062723,364.84,Thomas Ridley & Son Ltd
Childrens Services,Children's Social Care,Support Service and Management Costs,Schools Catering,Kitchen Supplies - Food and Beverages,04/07/2018,5062724,"1,323.51",Thomas Ridley & Son Ltd
Childrens Services,Children's Social Care,Support Service and Management Costs,Schools Catering,Kitchen Supplies - Food and Beverages,04/07/2018,5062725,720.08,Thomas Ridley & Son Ltd
Childrens Services,Children's Social Care,Support Service and Management Costs,Schools Catering,Kitchen Supplies - Food and Beverages,04/07/2018,5062726,317.99,Thomas Ridley & Son Ltd
Childrens Services,Cultural and Related Services,Open Spaces,Mile End Park,Repairs and Maintenance - Responsive - Buildings,04/07/2018,5063876,"3,575.00",JC Coster (Metalworks) Ltd
Childrens Services,Cultural and Related Services,Open Spaces,Parks & Open Spaces Man&Admin,Repairs and Maintenance - Responsive - Buildings,04/07/2018,5063877,420,JC Coster (Metalworks) Ltd
Childrens Services,Children's Social Care,Services for young people,Youth Service Management,Repairs and Maintenance - Responsive - Repair & Maintenance,04/07/2018,5063879,640,JC Coster (Metalworks) Ltd
Childrens Services,Children's Social Care,Children Looked After,S23 Fam Pl P&V-F/Care,Childrens Act Section 23 - Placement Fee,04/07/2018,5063882,"3,664.50",Kent Homefinding and Fostering
Childrens Services,Children's Social Care,Children Looked After,S23 Fam Pl P&V-F/Care,Childrens Act Section 23 - All Contact Expenses,04/07/2018,5063966,320,EveryChild Contact Services
Childrens Services,Children's Social Care,Children Looked After,Virtual School PPG,Agency Staff - Associations,04/07/2018,5064000,504.9,Academics ltd
Childrens Services,Children's Social Care,Children Looked After,Virtual School PPG,Agency Staff - Associations,04/07/2018,5064001,252.45,Academics ltd
Childrens Services,Children's Social Care,Children Looked After,Virtual School PPG,Agency Staff - Associations,04/07/2018,5064002,757.35,Academics ltd
Childrens Services,Children's Social Care,Children Looked After,Virtual School PPG,Agency Staff - Associations,04/07/2018,5064003,252.45,Academics ltd
Childrens Services,Children's Social Care,Children Looked After,Virtual School PPG,Agency Staff - Associations,04/07/2018,5064004,504.9,Academics ltd
Childrens Services,Children's Social Care,Support Service and Management Costs,Schools Catering,Kitchen Supplies - Food and Beverages,04/07/2018,5064377,345.56,William White Meats Ltd
Childrens Services,Children's Social Care,Support Service and Management Costs,Schools Catering,Kitchen Supplies - Food and Beverages,04/07/2018,5064384,302.38,William White Meats Ltd
Childrens Services,Children's Social Care,Support Service and Management Costs,Schools Catering,Kitchen Supplies - Food and Beverages,04/07/2018,5064387,250.32,William White Meats Ltd
Childrens Services,Children's Social Care,Support Service and Management Costs,Schools Catering,Kitchen Supplies - Food and Beverages,04/07/2018,5064443,396.5,William White Meats Ltd
Childrens Services,Children's Social Care,Support Service and Management Costs,Schools Catering,Kitchen Supplies - Food and Beverages,04/07/2018,5064472,588.19,William White Meats Ltd
Childrens Services,Children's Social Care,Support Service and Management Costs,Sch. Meals A/c - Central Production Unit,Kitchen Supplies - Food and Beverages,04/07/2018,5064492,386,William White Meats Ltd
Childrens Services,Children's Social Care,Children Looked After,LCS/Allowances-Accom,Leaving Care Financial Assistance - Supp Accom/Hous Rents,04/07/2018,5064899,968,Youth reality homes
Childrens Services,Children's Social Care,Children Looked After,LCS/Allowances-Accom,Leaving Care Financial Assistance - Supported Living,04/07/2018,5064899,"2,132.00",Youth reality homes
Childrens Services,Cultural and Related Services,Culture & Heritage,Arts-Park Events,Events & Exhibition Supplies,04/07/2018,5064951,"8,002.50",Star Events Group LTD
Childrens Services,Children's Social Care,Other Children's and Family Services,Permanancy and Adoption Support Team 1,Subscriptions - Associations,04/07/2018,5065119,"9,944.00",Post-Adoption Centre
Childrens Services,Children's Social Care,Children Looked After,LCS/Allowances-Accom,Leaving Care Financial Assistance - Supp Accom/Hous Rents,04/07/2018,5065692,968,Youth reality homes
Childrens Services,Children's Social Care,Children Looked After,LCS/Allowances-Accom,Leaving Care Financial Assistance - Supported Living,04/07/2018,5065692,"2,132.00",Youth reality homes
Childrens Services,Cultural and Related Services,Open Spaces,Victoria Park,Events & Exhibition Supplies,04/07/2018,5065985,380,Fishing London Ltd
Childrens Services,Children's Social Care,Support Service and Management Costs,Sch. Meals A/c - Central Production Unit,Repairs and Maintenance - Responsive - General,04/07/2018,5066427,306.01,Lambourne Refrigeration
Childrens Services,Children's Social Care,Support Service and Management Costs,Schools Catering,Kitchen Supplies - Food and Beverages,04/07/2018,5068854,"-67,188.37",Thomas Ridley & Son Ltd
Childrens Services,Children's Social Care,Family Support Services,IPST S17 NRPF,Childrens Act Section 17 - Food Grants,04/07/2018,5070156,"1,230.00",BETHNAL GREEN SOCIAL SERVICES
Childrens Services,Education Services,Other Strategic Functions,SLS - SEN Training SLA,Meeting Expenses,04/07/2018,5070209,404,the royal foundation of st katharine
Childrens Services,Education Services,Other Strategic Functions,Alternative Provision,Third Party Payments - Payments to Schools,04/07/2018,5070402,"3,000.00",George Green School
Childrens Services,Education Services,Other Strategic Functions,Alternative Provision,Third Party Payments - Payments to Schools,04/07/2018,5070722,"3,000.00",ST Pauls Way Trust School
Childrens Services,Education Services,Other Strategic Functions,Alternative Provision,Third Party Payments - Payments to Schools,04/07/2018,5070723,"3,000.00",Sir John Cass Foundation&Redcoat School
Childrens Services,Education Services,Other Strategic Functions,Alternative Provision,Third Party Payments - Payments to Schools,04/07/2018,5070724,"3,000.00",Sir John Cass Foundation&Redcoat School
Childrens Services,Education Services,Other Strategic Functions,Alternative Provision,Third Party Payments - Payments to Schools,04/07/2018,5070725,"3,000.00",ST Lukes Primary School
Childrens Services,Education Services,Other Strategic Functions,Alternative Provision,Third Party Payments - Payments to Schools,04/07/2018,5070726,"3,000.00",ST Lukes Primary School
Childrens Services,Education Services,Other Strategic Functions,Alternative Provision,Third Party Payments - Payments to Schools,04/07/2018,5070730,"3,000.00",BISHOP CHALLONER BOYS SCHOOL
Childrens Services,Education Services,Other Strategic Functions,Alternative Provision,Third Party Payments - Payments to Schools,04/07/2018,5070734,"4,000.00",George Green School
Childrens Services,Education Services,Other Strategic Functions,Alternative Provision,Third Party Payments - Payments to Schools,04/07/2018,5070736,"3,000.00",Oakland School
Childrens Services,Children's Social Care,Children Looked After,LCS/Allowances-Accom,Leaving Care Financial Assistance - Supp Accom/Hous Rents,04/07/2018,5070939,"3,210.71",Inclusive Care Support Ltd
Childrens Services,Children's Social Care,Children Looked After,LCS/Allowances-Accom,Leaving Care Financial Assistance - Supported Living,04/07/2018,5070939,996.42,Inclusive Care Support Ltd
Childrens Services,Children's Social Care,Children Looked After,LCS/Allowances-Accom,Leaving Care Financial Assistance - Supp Accom/Hous Rents,04/07/2018,5070940,"3,210.71",Inclusive Care Support Ltd
Childrens Services,Children's Social Care,Children Looked After,LCS/Allowances-Accom,Leaving Care Financial Assistance - Supported Living,04/07/2018,5070940,996.42,Inclusive Care Support Ltd
Childrens Services,Cultural and Related Services,Recreation & Sport,Sports Development,Recreational Activities,04/07/2018,5071004,482.4,Victoria Park Harriers & THAC
Childrens Services,Children's Social Care,Children Looked After,S23 Fam Pl P&V-F/Care,Childrens Act Section 23 - Placement Fee,04/07/2018,5072261,"3,167.10",COMPASS FOSTERING LONDON LIMITED
Childrens Services,Children's Social Care,Children Looked After,Children Looked After Sect 17,Childrens Act Section 17 - Interpreting/Translation,04/07/2018,5072314,322.2,DA Languages Ltd
Childrens Services,Children's Social Care,Children Looked After,LCS/Allowances-Accom,Leaving Care Financial Assistance - Supp Accom/Hous Rents,04/07/2018,5072358,"2,150.00",Newhaven 16 Plus
Childrens Services,Children's Social Care,Children Looked After,Leaving Care-UASC,Leaving Care Financial Assistance - Supp Accom/Hous Rents,04/07/2018,5072359,"1,265.70",Newhaven 16 Plus
Childrens Services,Children's Social Care,Children Looked After,LCS/Allowances-Accom,Leaving Care Financial Assistance - Supp Accom/Hous Rents,04/07/2018,5072360,"1,500.00",Newhaven 16 Plus
Childrens Services,Children's Social Care,Children Looked After,S23-Other-Mother & Baby Unit,Childrens Act Section 23 - Placement Fee,04/07/2018,5074016,344,Real Life
Childrens Services,Children's Social Care,Children Looked After,S23-Other-Mother & Baby Unit,Childrens Act Section 23 - Placement Fee,04/07/2018,5074017,"4,000.00",Real Life
Childrens Services,Children's Social Care,Children Looked After,S23-Other-Mother & Baby Unit,Childrens Act Section 23 - Placement Fee,04/07/2018,5074018,822,Real Life
Childrens Services,Children's Social Care,Children Looked After,S23-Other-Mother & Baby Unit,Childrens Act Section 23 - Placement Fee,04/07/2018,5074019,"2,000.00",Real Life
Childrens Services,Children's Social Care,Service Strategy,Child Care M & A,Staff Advertising,04/07/2018,5074063,280,Penna PLC
Childrens Services,Children's Social Care,Service Strategy,Child Care M & A,Staff Advertising,04/07/2018,5074064,"4,591.66",Penna PLC
Childrens Services,Children's Social Care,Service Strategy,Child Care M & A,Staff Advertising,04/07/2018,5074065,"4,591.34",Penna PLC
Childrens Services,Children's Social Care,Service Strategy,Child Care M & A,Staff Advertising,04/07/2018,5074066,"3,000.00",Penna PLC
Childrens Services,Children's Social Care,Service Strategy,Child Care M & A,Staff Advertising,04/07/2018,5074067,"1,521.15",Penna PLC
Childrens Services,Children's Social Care,Children Looked After,S23 Fam Pl In-Hse-For Adopt,Childrens Act Section 23 - Expert Assessmt/Witness Costs,04/07/2018,5074433,445,Mcmillen Hamilton McCarthy Solicitors
Childrens Services,Children's Social Care,Service Strategy,FSP Sect 17 - Team 4,Childrens Act Section 17 - Other Placements Bed & Breakfast,04/07/2018,5074629,"1,140.00",Apolonia Property Services (Exodus Housing)
Childrens Services,Children's Social Care,Children Looked After,S23-Resi-P&V/OLA-Child Respite,Childrens Act Section 23 - Retainer,04/07/2018,5074684,425,Hexagon Care Services
Childrens Services,Children's Social Care,Support Service and Management Costs,Welfare Catering,Kitchen Supplies - Food and Beverages,04/07/2018,5074693,675.19,Raj Foods LTD
Childrens Services,Children's Social Care,Support Service and Management Costs,Welfare Catering,Kitchen Supplies - Food and Beverages,04/07/2018,5074694,901.95,Raj Foods LTD
Childrens Services,Children's Social Care,Children Looked After,Fostering and Development Team 1,Subscriptions - Associations,04/07/2018,5075423,"2,525.30",The Fostering Network
Childrens Services,Children's Social Care,Children Looked After,Fostering and Development Team 1,Subscriptions - Associations,04/07/2018,5075424,"5,428.00",The Fostering Network
Childrens Services,Children's Social Care,Children Looked After,S23 Fam Pl P&V-F/Care,Childrens Act Section 23 - Placement Fee,04/07/2018,5075484,784,Swiis Foster Care Limited
Childrens Services,Children's Social Care,Children Looked After,S23-Other-Semi-Ind. Unit,Childrens Act Section 23 - Placement Fee,04/07/2018,5075501,"3,844.60",TSS Ltd
Childrens Services,Children's Social Care,Children Looked After,S23-Other-Semi-Ind. Unit,Childrens Act Section 23 - Placement Fee,04/07/2018,5075502,"3,660.55",TSS Ltd
Childrens Services,Children's Social Care,Children Looked After,S23 Fam Pl P&V-F/Care,Childrens Act Section 23 - Placement Fee,04/07/2018,5075509,"5,101.67",National Fostering Agency
Childrens Services,Children's Social Care,Children Looked After,S23 Fam Pl P&V-F/Care,Childrens Act Section 23 - Placement Fee,04/07/2018,5075512,"3,454.33",National Fostering Agency
Childrens Services,Children's Social Care,Support Service and Management Costs,Sch. Meals A/c - P.D.C. Cateen,Kitchen Supplies - Food and Beverages,04/07/2018,5075540,-270.42,Thomas Ridley & Son Ltd
Childrens Services,Education Services,Other Strategic Functions,ESW Trading Account,Training Expenses - Staff External Training (UK Based),04/07/2018,5076209,"2,001.60",Team-Teach
Childrens Services,Cultural and Related Services,Open Spaces,Stepney Green,Services - Professional Fees - Security Fees,06/07/2018,5020561,"2,973.60",Manpower Direct UK
Childrens Services,Children's Social Care,Children Looked After,S23-Other-Semi-Ind. Unit,Childrens Act Section 23 - Placement Fee,06/07/2018,5061590,924.32,Heartwood Outreach Services Ltd
Childrens Services,Cultural and Related Services,Open Spaces,Mile End Park,Repairs and Maintenance - Responsive - Buildings,06/07/2018,5063878,"3,410.00",JC Coster (Metalworks) Ltd
Childrens Services,Children's Social Care,Support Service and Management Costs,Schools Catering,Kitchen Supplies - Food and Beverages,06/07/2018,5064046,405.09,Thomas Ridley & Son Ltd
Childrens Services,Children's Social Care,Support Service and Management Costs,Schools Catering,Kitchen Supplies - Food and Beverages,06/07/2018,5064050,371.64,Thomas Ridley & Son Ltd
Childrens Services,Children's Social Care,Support Service and Management Costs,Schools Catering,Kitchen Supplies - Food and Beverages,06/07/2018,5064052,375.76,Thomas Ridley & Son Ltd
Childrens Services,Children's Social Care,Support Service and Management Costs,Schools Catering,Kitchen Supplies - Food and Beverages,06/07/2018,5064053,431.12,Thomas Ridley & Son Ltd
Childrens Services,Children's Social Care,Support Service and Management Costs,Schools Catering,Kitchen Supplies - Food and Beverages,06/07/2018,5064054,376.54,Thomas Ridley & Son Ltd
Childrens Services,Children's Social Care,Support Service and Management Costs,Schools Catering,Kitchen Supplies - Food and Beverages,06/07/2018,5064057,288.25,Thomas Ridley & Son Ltd
Childrens Services,Children's Social Care,Support Service and Management Costs,Swanlea,Kitchen Supplies - Food and Beverages,06/07/2018,5064058,375.06,Thomas Ridley & Son Ltd
Childrens Services,Children's Social Care,Support Service and Management Costs,Schools Catering,Kitchen Supplies - Food and Beverages,06/07/2018,5064060,307.03,Thomas Ridley & Son Ltd
Childrens Services,Education Services,Secondary Schools,PFI Hldg Account-Grouped Schoo,Repairs and Maintenance - Responsive - Buildings,06/07/2018,5064176,"2,907.50",Tower Hamlets Schools LTD
Childrens Services,Education Services,Secondary Schools,PFI Hldg Account-Grouped Schoo,Repairs and Maintenance - Responsive - Buildings,06/07/2018,5064177,"5,483.75",Tower Hamlets Schools LTD
Childrens Services,Children's Social Care,Children Looked After,S23-Resi-P&V/OLA-Child Home,Childrens Act Section 23 - Placement Fee,06/07/2018,5064202,"10,407.12",Care 2 Share 2
Childrens Services,Children's Social Care,Support Service and Management Costs,Schools Catering,Kitchen Supplies - Food and Beverages,06/07/2018,5064206,533.37,Thomas Ridley & Son Ltd
Childrens Services,Children's Social Care,Support Service and Management Costs,Sch. Meals A/c - Central Production Unit,Kitchen Supplies - Food and Beverages,06/07/2018,5064207,"1,373.88",Thomas Ridley & Son Ltd
Childrens Services,Children's Social Care,Support Service and Management Costs,Schools Catering,Kitchen Supplies - Food and Beverages,06/07/2018,5064209,302.92,Thomas Ridley & Son Ltd
Childrens Services,Children's Social Care,Support Service and Management Costs,Schools Catering,Kitchen Supplies - Food and Beverages,06/07/2018,5064210,568.74,Thomas Ridley & Son Ltd
Childrens Services,Children's Social Care,Support Service and Management Costs,Schools Catering,Kitchen Supplies - Food and Beverages,06/07/2018,5064213,579.87,Thomas Ridley & Son Ltd
Childrens Services,Children's Social Care,Support Service and Management Costs,Schools Catering,Kitchen Supplies - Food and Beverages,06/07/2018,5064214,319.7,Thomas Ridley & Son Ltd
Childrens Services,Children's Social Care,Support Service and Management Costs,Schools Catering,Kitchen Supplies - Food and Beverages,06/07/2018,5064215,438.92,Thomas Ridley & Son Ltd
Childrens Services,Children's Social Care,Support Service and Management Costs,Schools Catering,Kitchen Supplies - Food and Beverages,06/07/2018,5064217,326.07,Thomas Ridley & Son Ltd
Childrens Services,Children's Social Care,Support Service and Management Costs,Schools Catering,Kitchen Supplies - Food and Beverages,06/07/2018,5064219,461.56,Thomas Ridley & Son Ltd
Childrens Services,Children's Social Care,Support Service and Management Costs,Schools Catering,Kitchen Supplies - Food and Beverages,06/07/2018,5064220,416.55,Thomas Ridley & Son Ltd
Childrens Services,Children's Social Care,Support Service and Management Costs,Schools Catering,Kitchen Supplies - Food and Beverages,06/07/2018,5064221,481.08,Thomas Ridley & Son Ltd
Childrens Services,Children's Social Care,Support Service and Management Costs,Schools Catering,Kitchen Supplies - Food and Beverages,06/07/2018,5064222,557.4,Thomas Ridley & Son Ltd
Childrens Services,Children's Social Care,Support Service and Management Costs,Schools Catering,Kitchen Supplies - Food and Beverages,06/07/2018,5064223,340.89,Thomas Ridley & Son Ltd
Childrens Services,Children's Social Care,Support Service and Management Costs,Schools Catering,Kitchen Supplies - Food and Beverages,06/07/2018,5064224,430.25,Thomas Ridley & Son Ltd
Childrens Services,Children's Social Care,Support Service and Management Costs,Schools Catering,Kitchen Supplies - Food and Beverages,06/07/2018,5064226,268.33,Thomas Ridley & Son Ltd
Childrens Services,Children's Social Care,Support Service and Management Costs,Schools Catering,Kitchen Supplies - Food and Beverages,06/07/2018,5064227,442.35,Thomas Ridley & Son Ltd
Childrens Services,Children's Social Care,Support Service and Management Costs,Schools Catering,Kitchen Supplies - Food and Beverages,06/07/2018,5064228,303.45,Thomas Ridley & Son Ltd
Childrens Services,Children's Social Care,Support Service and Management Costs,Schools Catering,Kitchen Supplies - Food and Beverages,06/07/2018,5064229,557.89,Thomas Ridley & Son Ltd
Childrens Services,Children's Social Care,Support Service and Management Costs,Schools Catering,Kitchen Supplies - Food and Beverages,06/07/2018,5064230,447.04,Thomas Ridley & Son Ltd
Childrens Services,Children's Social Care,Support Service and Management Costs,Schools Catering,Kitchen Supplies - Food and Beverages,06/07/2018,5064231,459.04,Thomas Ridley & Son Ltd
Childrens Services,Children's Social Care,Support Service and Management Costs,Schools Catering,Kitchen Supplies - Food and Beverages,06/07/2018,5064232,407.4,Thomas Ridley & Son Ltd
Childrens Services,Children's Social Care,Support Service and Management Costs,Schools Catering,Kitchen Supplies - Food and Beverages,06/07/2018,5064234,967.53,Thomas Ridley & Son Ltd
Childrens Services,Children's Social Care,Support Service and Management Costs,Schools Catering,Kitchen Supplies - Food and Beverages,06/07/2018,5064235,746.86,Thomas Ridley & Son Ltd
Childrens Services,Children's Social Care,Support Service and Management Costs,Schools Catering,Kitchen Supplies - Food and Beverages,06/07/2018,5064236,539.41,Thomas Ridley & Son Ltd
Childrens Services,Children's Social Care,Support Service and Management Costs,Schools Catering,Kitchen Supplies - Food and Beverages,06/07/2018,5064237,289.98,Thomas Ridley & Son Ltd
Childrens Services,Children's Social Care,Support Service and Management Costs,Schools Catering,Kitchen Supplies - Food and Beverages,06/07/2018,5064239,667.88,Thomas Ridley & Son Ltd
Childrens Services,Children's Social Care,Support Service and Management Costs,Schools Catering,Kitchen Supplies - Food and Beverages,06/07/2018,5064240,391.98,Thomas Ridley & Son Ltd
Childrens Services,Children's Social Care,Support Service and Management Costs,Schools Catering,Kitchen Supplies - Food and Beverages,06/07/2018,5064243,466.94,Thomas Ridley & Son Ltd
Childrens Services,Children's Social Care,Support Service and Management Costs,"Mulberry Caf�		",Kitchen Supplies - Food and Beverages,06/07/2018,5064244,321.65,Thomas Ridley & Son Ltd
Childrens Services,Children's Social Care,Support Service and Management Costs,Schools Catering,Kitchen Supplies - Food and Beverages,06/07/2018,5064250,330.69,Thomas Ridley & Son Ltd
Childrens Services,Children's Social Care,Support Service and Management Costs,Schools Catering,Kitchen Supplies - Food and Beverages,06/07/2018,5064251,300.6,Thomas Ridley & Son Ltd
Childrens Services,Children's Social Care,Support Service and Management Costs,Schools Catering,Kitchen Supplies - Food and Beverages,06/07/2018,5064252,390.05,Thomas Ridley & Son Ltd
Childrens Services,Children's Social Care,Support Service and Management Costs,Schools Catering,Kitchen Supplies - Food and Beverages,06/07/2018,5064253,429.97,Thomas Ridley & Son Ltd
Childrens Services,Children's Social Care,Support Service and Management Costs,Schools Catering,Kitchen Supplies - Food and Beverages,06/07/2018,5064255,495.6,Thomas Ridley & Son Ltd
Childrens Services,Children's Social Care,Support Service and Management Costs,Schools Catering,Kitchen Supplies - Food and Beverages,06/07/2018,5064256,310.13,Thomas Ridley & Son Ltd
Childrens Services,Children's Social Care,Support Service and Management Costs,Schools Catering,Kitchen Supplies - Food and Beverages,06/07/2018,5064258,454.15,Thomas Ridley & Son Ltd
Childrens Services,Children's Social Care,Support Service and Management Costs,Schools Catering,Kitchen Supplies - Food and Beverages,06/07/2018,5064259,351.93,Thomas Ridley & Son Ltd
Childrens Services,Children's Social Care,Support Service and Management Costs,Schools Catering,Kitchen Supplies - Food and Beverages,06/07/2018,5064260,471.12,Thomas Ridley & Son Ltd
Childrens Services,Children's Social Care,Support Service and Management Costs,Schools Catering,Kitchen Supplies - Food and Beverages,06/07/2018,5064261,719.35,Thomas Ridley & Son Ltd
Childrens Services,Children's Social Care,Support Service and Management Costs,Schools Catering,Kitchen Supplies - Food and Beverages,06/07/2018,5064262,273.23,Thomas Ridley & Son Ltd
Childrens Services,Children's Social Care,Support Service and Management Costs,Schools Catering,Kitchen Supplies - Food and Beverages,06/07/2018,5064263,270.52,Thomas Ridley & Son Ltd
Childrens Services,Children's Social Care,Support Service and Management Costs,Schools Catering,Kitchen Supplies - Food and Beverages,06/07/2018,5064264,617.46,Thomas Ridley & Son Ltd
Childrens Services,Children's Social Care,Support Service and Management Costs,Schools Catering,Kitchen Supplies - Food and Beverages,06/07/2018,5064268,315.91,Thomas Ridley & Son Ltd
Childrens Services,Children's Social Care,Support Service and Management Costs,Schools Catering,Kitchen Supplies - Food and Beverages,06/07/2018,5064269,303.19,Thomas Ridley & Son Ltd
Childrens Services,Children's Social Care,Support Service and Management Costs,Schools Catering,Kitchen Supplies - Food and Beverages,06/07/2018,5064270,256.46,Thomas Ridley & Son Ltd
Childrens Services,Children's Social Care,Support Service and Management Costs,Schools Catering,Kitchen Supplies - Food and Beverages,06/07/2018,5064271,580.96,Thomas Ridley & Son Ltd
Childrens Services,Children's Social Care,Support Service and Management Costs,Schools Catering,Kitchen Supplies - Food and Beverages,06/07/2018,5064272,757.09,Thomas Ridley & Son Ltd
Childrens Services,Children's Social Care,Support Service and Management Costs,Schools Catering,Kitchen Supplies - Food and Beverages,06/07/2018,5064275,254.27,Thomas Ridley & Son Ltd
Childrens Services,Children's Social Care,Support Service and Management Costs,Schools Catering,Kitchen Supplies - Food and Beverages,06/07/2018,5064278,329.72,Thomas Ridley & Son Ltd
Childrens Services,Children's Social Care,Support Service and Management Costs,Schools Catering,Kitchen Supplies - Food and Beverages,06/07/2018,5064279,447.14,Thomas Ridley & Son Ltd
Childrens Services,Children's Social Care,Support Service and Management Costs,Schools Catering,Kitchen Supplies - Food and Beverages,06/07/2018,5064280,278.57,Thomas Ridley & Son Ltd
Childrens Services,Children's Social Care,Support Service and Management Costs,Schools Catering,Kitchen Supplies - Food and Beverages,06/07/2018,5064281,363.37,Thomas Ridley & Son Ltd
Childrens Services,Children's Social Care,Support Service and Management Costs,Schools Catering,Kitchen Supplies - Food and Beverages,06/07/2018,5064282,376.11,Thomas Ridley & Son Ltd
Childrens Services,Children's Social Care,Support Service and Management Costs,Schools Catering,Kitchen Supplies - Food and Beverages,06/07/2018,5064283,350.9,Thomas Ridley & Son Ltd
Childrens Services,Children's Social Care,Support Service and Management Costs,Schools Catering,Kitchen Supplies - Food and Beverages,06/07/2018,5064284,312.99,Thomas Ridley & Son Ltd
Childrens Services,Children's Social Care,Support Service and Management Costs,Schools Catering,Kitchen Supplies - Food and Beverages,06/07/2018,5064285,624.03,Thomas Ridley & Son Ltd
Childrens Services,Children's Social Care,Support Service and Management Costs,Schools Catering,Kitchen Supplies - Food and Beverages,06/07/2018,5064286,463.3,Thomas Ridley & Son Ltd
Childrens Services,Children's Social Care,Support Service and Management Costs,Schools Catering,Kitchen Supplies - Food and Beverages,06/07/2018,5064288,311.46,Thomas Ridley & Son Ltd
Childrens Services,Children's Social Care,Support Service and Management Costs,Schools Catering,Kitchen Supplies - Food and Beverages,06/07/2018,5064449,391.36,William White Meats Ltd
Childrens Services,Children's Social Care,Support Service and Management Costs,Schools Catering,Kitchen Supplies - Food and Beverages,06/07/2018,5064461,345.64,William White Meats Ltd
Childrens Services,Children's Social Care,Support Service and Management Costs,Schools Catering,Kitchen Supplies - Food and Beverages,06/07/2018,5064462,312.06,William White Meats Ltd
Childrens Services,Children's Social Care,Support Service and Management Costs,Schools Catering,Kitchen Supplies - Food and Beverages,06/07/2018,5064469,319.3,William White Meats Ltd
Childrens Services,Children's Social Care,Support Service and Management Costs,Sch. Meals A/c - Central Production Unit,Kitchen Supplies - Food and Beverages,06/07/2018,5064479,"1,215.70",William White Meats Ltd
Childrens Services,Children's Social Care,Support Service and Management Costs,Schools Catering,Kitchen Supplies - Food and Beverages,06/07/2018,5064484,272.91,William White Meats Ltd
Childrens Services,Children's Social Care,Support Service and Management Costs,Schools Catering,Kitchen Supplies - Food and Beverages,06/07/2018,5064485,310.12,William White Meats Ltd
Childrens Services,Children's Social Care,Support Service and Management Costs,Schools Catering,Kitchen Supplies - Food and Beverages,06/07/2018,5064488,296.03,William White Meats Ltd
Childrens Services,Children's Social Care,Support Service and Management Costs,Sch. Meals A/c - Morpeth,Kitchen Supplies - Food and Beverages,06/07/2018,5065701,513.5,Tiffin Sandwiches
Childrens Services,Children's Social Care,Support Service and Management Costs,Sch. Meals A/c - Bow School,Kitchen Supplies - Food and Beverages,06/07/2018,5065702,347.6,Tiffin Sandwiches
Childrens Services,Children's Social Care,Support Service and Management Costs,Sch. Meals A/c - C.F.S. Upper (Harley Grove),Catering - Hospitality,06/07/2018,5065703,533.25,Tiffin Sandwiches
Childrens Services,Children's Social Care,Support Service and Management Costs,Sch. Meals A/c - George Green,Kitchen Supplies - Food and Beverages,06/07/2018,5065704,375.25,Tiffin Sandwiches
Childrens Services,Children's Social Care,Support Service and Management Costs,Sch. Meals A/c - Langdon Park,Kitchen Supplies - Food and Beverages,06/07/2018,5065705,328.64,Tiffin Sandwiches
Childrens Services,Children's Social Care,Support Service and Management Costs,Sch. Meals A/c - Mulberry,Kitchen Supplies - Food and Beverages,06/07/2018,5065706,453.46,Tiffin Sandwiches
Childrens Services,Education Services,Early Years,Marner. CC,Office Furniture/Equipment,06/07/2018,5065763,500,Yorkshire Purchasing Organisation
Childrens Services,Children's Social Care,Support Service and Management Costs,"Mulberry Caf�		",Kitchen Supplies - Food and Beverages,06/07/2018,5065999,407.59,Tiffin Sandwiches
Childrens Services,Cultural and Related Services,Open Spaces,Victoria Park,Repairs and Maintenance - Responsive - Repair & Maintenance,06/07/2018,5066009,300,J&L Coster (Drainage) Ltd
Childrens Services,Children's Social Care,Support Service and Management Costs,Schools Catering,Kitchen Supplies - Food and Beverages,06/07/2018,5066235,251.64,William White Meats Ltd
Childrens Services,Children's Social Care,Support Service and Management Costs,Schools Catering,Kitchen Supplies - Food and Beverages,06/07/2018,5066240,278.04,William White Meats Ltd
Childrens Services,Children's Social Care,Support Service and Management Costs,Schools Catering,Kitchen Supplies - Food and Beverages,06/07/2018,5066243,255.69,William White Meats Ltd
Childrens Services,Children's Social Care,Support Service and Management Costs,Schools Catering,Kitchen Supplies - Food and Beverages,06/07/2018,5066244,253.78,William White Meats Ltd
Childrens Services,Children's Social Care,Support Service and Management Costs,Schools Catering,Kitchen Supplies - Food and Beverages,06/07/2018,5066245,419.89,William White Meats Ltd
Childrens Services,Children's Social Care,Support Service and Management Costs,Schools Catering,Kitchen Supplies - Food and Beverages,06/07/2018,5066253,261.72,William White Meats Ltd
Childrens Services,Children's Social Care,Support Service and Management Costs,Schools Catering,Kitchen Supplies - Food and Beverages,06/07/2018,5066255,301.62,William White Meats Ltd
Childrens Services,Children's Social Care,Support Service and Management Costs,Schools Catering,Kitchen Supplies - Food and Beverages,06/07/2018,5066256,314.87,William White Meats Ltd
Childrens Services,Children's Social Care,Support Service and Management Costs,Schools Catering,Kitchen Supplies - Food and Beverages,06/07/2018,5066257,308.6,William White Meats Ltd
Childrens Services,Children's Social Care,Support Service and Management Costs,Schools Catering,Kitchen Supplies - Food and Beverages,06/07/2018,5066258,453.84,William White Meats Ltd
Childrens Services,Children's Social Care,Support Service and Management Costs,Schools Catering,Kitchen Supplies - Food and Beverages,06/07/2018,5066261,550.65,William White Meats Ltd
Childrens Services,Children's Social Care,Support Service and Management Costs,Schools Catering,Kitchen Supplies - Food and Beverages,06/07/2018,5066274,828.53,William White Meats Ltd
Childrens Services,Children's Social Care,Support Service and Management Costs,Schools Catering,Kitchen Supplies - Food and Beverages,06/07/2018,5066275,296.12,William White Meats Ltd
Childrens Services,Children's Social Care,Support Service and Management Costs,Schools Catering,Kitchen Supplies - Food and Beverages,06/07/2018,5066276,295.23,William White Meats Ltd
Childrens Services,Children's Social Care,Support Service and Management Costs,Schools Catering,Kitchen Supplies - Food and Beverages,06/07/2018,5066284,260.05,William White Meats Ltd
Childrens Services,Children's Social Care,Support Service and Management Costs,Schools Catering,Kitchen Supplies - Food and Beverages,06/07/2018,5066285,293.13,William White Meats Ltd
Childrens Services,Children's Social Care,Support Service and Management Costs,Schools Catering,Kitchen Supplies - Food and Beverages,06/07/2018,5066286,316.71,William White Meats Ltd
Childrens Services,Children's Social Care,Support Service and Management Costs,Schools Catering,Kitchen Supplies - Food and Beverages,06/07/2018,5066287,411.12,William White Meats Ltd
Childrens Services,Children's Social Care,Support Service and Management Costs,Schools Catering,Kitchen Supplies - Food and Beverages,06/07/2018,5066288,280.55,William White Meats Ltd
Childrens Services,Children's Social Care,Support Service and Management Costs,Schools Catering,Kitchen Supplies - Food and Beverages,06/07/2018,5066302,549.31,William White Meats Ltd
Childrens Services,Children's Social Care,Support Service and Management Costs,Schools Catering,Kitchen Supplies - Food and Beverages,06/07/2018,5066303,436.7,William White Meats Ltd
Childrens Services,Education Services,Other Strategic Functions,SEN External Travel,Non Staff Transport Costs - Reimbursement,06/07/2018,5066375,"79,085.00",Lindel Services LTD - T/A Fox Transport
Childrens Services,Children's Social Care,Children Looked After,S23-Other-Semi-Ind. Unit,Childrens Act Section 23 - Placement Fee,06/07/2018,5066399,900.5,The Way Care Services Ltd
Childrens Services,Education Services,Secondary Schools,PFI Hldg Account-Grouped Schoo,Payments to Private Contractors - Other Contractors,06/07/2018,5066424,"51,440.60",Tower Hamlets Schools LTD
Childrens Services,Cultural and Related Services,Open Spaces,Stepney Green,Services - Professional Fees - Security Fees,06/07/2018,5068804,"3,200.51",Manpower Direct UK
Childrens Services,Cultural and Related Services,Open Spaces,Victoria Park,Services - Professional Fees - Security Fees,06/07/2018,5068809,"5,183.64",Manpower Direct UK
Childrens Services,Children's Social Care,Children Looked After,S23 Family Placements P&V,Childrens Act Section 23 - Placement Fee,06/07/2018,5068825,"3,122.40",CAPSTONE VISION FOSTER CARE LTD
Childrens Services,Children's Social Care,Children Looked After,S23 Fam Pl P&V-F/Care,Childrens Act Section 23 - Placement Fee,06/07/2018,5068826,"3,291.60",CAPSTONE VISION FOSTER CARE LTD
Childrens Services,Children's Social Care,Children Looked After,S23 Fam Pl P&V-F/Care,Childrens Act Section 23 - Placement Fee,06/07/2018,5068841,"4,285.80",Welcome Foster Care
Childrens Services,Children's Social Care,Children Looked After,S23 Fam Pl P&V-F/Care,Childrens Act Section 23 - Placement Fee,06/07/2018,5068842,"3,514.20",Welcome Foster Care
Childrens Services,Children's Social Care,Children Looked After,S23 Fam Pl P&V-F/Care,Childrens Act Section 23 - Placement Fee,06/07/2018,5068843,"3,514.20",Welcome Foster Care
Childrens Services,Children's Social Care,Children Looked After,S23 Fam Pl P&V-F/Care,Childrens Act Section 23 - Placement Fee,06/07/2018,5068844,"3,642.90",Welcome Foster Care
Childrens Services,Children's Social Care,Children Looked After,S23 Fam Pl P&V-F/Care,Childrens Act Section 23 - Placement Fee,06/07/2018,5068845,"2,952.90",Welcome Foster Care
Childrens Services,Children's Social Care,Children Looked After,S23 Fam Pl P&V-F/Care,Childrens Act Section 23 - Placement Fee,06/07/2018,5068846,"2,952.90",Welcome Foster Care
Childrens Services,Children's Social Care,Family Support Services,IPST S17 NRPF,Childrens Act Section 17 - Other Placements Bed & Breakfast,06/07/2018,5070262,"1,346.80",REFUGE
Childrens Services,Children's Social Care,Children Looked After,LCS/Allowances-Accom,Leaving Care Financial Assistance - Supp Accom/Hous Rents,06/07/2018,5072357,929.1,Newhaven 16 Plus
Childrens Services,Children's Social Care,Children Looked After,S23-Other-Semi-Ind. Unit,Childrens Act Section 23 - Placement Fee,06/07/2018,5074259,"3,018.52",Silver Birch Care LTD
Childrens Services,Cultural and Related Services,Open Spaces,Parks & Open Spaces Man&Admin,Repairs and Maintenance - Responsive - Buildings,06/07/2018,5074585,"3,640.00",JC Coster (Metalworks) Ltd
Childrens Services,Children's Social Care,Family Support Services,IPST S17 NRPF,Childrens Act Section 17 - Other Placements Bed & Breakfast,06/07/2018,5074624,392,Apolonia Property Services (Exodus Housing)
Childrens Services,Children's Social Care,Family Support Services,IPST S17 NRPF,Childrens Act Section 17 - Other Placements Bed & Breakfast,06/07/2018,5074625,"1,110.00",Apolonia Property Services (Exodus Housing)
Childrens Services,Children's Social Care,Family Support Services,IPST S17 NRPF,Childrens Act Section 17 - Other Placements Bed & Breakfast,06/07/2018,5074626,"1,020.00",Apolonia Property Services (Exodus Housing)
Childrens Services,Children's Social Care,Family Support Services,IPST S17 NRPF,Childrens Act Section 17 - Other Placements Bed & Breakfast,06/07/2018,5074627,960,Apolonia Property Services (Exodus Housing)
Childrens Services,Children's Social Care,Family Support Services,IPST S17 NRPF,Childrens Act Section 17 - Other Placements Bed & Breakfast,06/07/2018,5074628,960,Apolonia Property Services (Exodus Housing)
Childrens Services,Children's Social Care,Family Support Services,IPST S17 NRPF,Childrens Act Section 17 - Other Placements Bed & Breakfast,06/07/2018,5074630,"1,140.00",Apolonia Property Services (Exodus Housing)
Childrens Services,Children's Social Care,Family Support Services,IPST S17 NRPF,Childrens Act Section 17 - Other Placements Bed & Breakfast,06/07/2018,5074631,304,Apolonia Property Services (Exodus Housing)
Childrens Services,Children's Social Care,Family Support Services,IPST S17 NRPF,Childrens Act Section 17 - Other Placements Bed & Breakfast,06/07/2018,5074632,960,Apolonia Property Services (Exodus Housing)
Childrens Services,Children's Social Care,Children Looked After,Virtual School PPG,Third Party Payments - Payments to Schools,06/07/2018,5074683,"1,360.00",Homewood College
Childrens Services,Children's Social Care,Family Support Services,IPST S17 NRPF,Childrens Act Section 17 - Other Placements Bed & Breakfast,06/07/2018,5074720,371.43,REFUGE
Childrens Services,Children's Social Care,Children Looked After,S23-Other-Semi-Ind. Unit,Childrens Act Section 23 - Placement Fee,06/07/2018,5075503,"3,431.98",TSS Ltd
Childrens Services,Children's Social Care,Support Service and Management Costs,Schools Catering,Kitchen Supplies - Food and Beverages,06/07/2018,5076552,288.56,Prescott-Thomas LTD.
Childrens Services,Children's Social Care,Support Service and Management Costs,Schools Catering,Kitchen Supplies - Food and Beverages,06/07/2018,5076570,257.03,Prescott-Thomas LTD.
Childrens Services,Children's Social Care,Support Service and Management Costs,Schools Catering,Kitchen Supplies - Food and Beverages,06/07/2018,5076599,433.98,Prescott-Thomas LTD.
Childrens Services,Children's Social Care,Support Service and Management Costs,Schools Catering,Kitchen Supplies - Food and Beverages,06/07/2018,5076601,260.33,Prescott-Thomas LTD.
Childrens Services,Education Services,Other Strategic Functions,Alternative Provision,Third Party Payments - Payments to Schools,06/07/2018,5076784,"3,000.00",Stepney Green Maths Computing Science College
Childrens Services,Education Services,Other Strategic Functions,Alternative Provision,Third Party Payments - Payments to Schools,06/07/2018,5076785,"3,000.00",Oakland School
Childrens Services,Children's Social Care,Support Service and Management Costs,Welfare Catering,Kitchen Supplies - Food and Beverages,06/07/2018,5077320,417.47,William White Meats Ltd
Childrens Services,Children's Social Care,Support Service and Management Costs,Welfare Catering,Kitchen Supplies - Food and Beverages,06/07/2018,5077321,386.52,William White Meats Ltd
Childrens Services,Children's Social Care,Children Looked After,S23 Fam Pl P&V-F/Care,Childrens Act Section 23 - Placement Fee,06/07/2018,5077377,"3,255.00",National Fostering Agency
Childrens Services,Children's Social Care,Children Looked After,S23 Fam Pl P&V-F/Care,Childrens Act Section 23 - Placement Fee,06/07/2018,5077378,"3,350.79",National Fostering Agency
Childrens Services,Children's Social Care,Commissioning and Social Work,Family Support and Protection Team 9,Training Expenses - Staff External Training (UK Based),06/07/2018,5077407,395,GovNet Communications
Childrens Services,Children's Social Care,Service Strategy,CSC Childrens Resources M & A,Training Expenses - Staff External Training (UK Based),09/07/2018,5060779,525,L.A. Training
Childrens Services,Children's Social Care,Children Looked After,Leaving Care-UASC,Leaving Care Financial Assistance - Supp Accom/Hous Rents,09/07/2018,5060785,"1,050.00",Pangea Support Services
Childrens Services,Children's Social Care,Children Looked After,Leaving Care-UASC,Leaving Care Financial Assistance - Supp Accom/Hous Rents,09/07/2018,5060790,"1,050.00",Pangea Support Services
Childrens Services,Children's Social Care,Children Looked After,Leaving Care-UASC,Leaving Care Financial Assistance - Reg Plan Maint Travel A,09/07/2018,5060791,273.57,Pangea Support Services
Childrens Services,Children's Social Care,Children Looked After,Leaving Care-UASC,Leaving Care Financial Assistance - Supp Accom/Hous Rents,09/07/2018,5060791,"1,050.00",Pangea Support Services
Childrens Services,Children's Social Care,Children Looked After,Leaving Care-UASC,Leaving Care Financial Assistance - Supp Accom/Hous Rents,09/07/2018,5060793,"1,050.00",Pangea Support Services
Childrens Services,Education Services,Early Years,Mile End CC,Educational/Training Supplies - Resources,09/07/2018,5064607,274.1,ESPO
Childrens Services,Children's Social Care,Support Service and Management Costs,Sch. Meals A/c - Central Production Unit,Kitchen Supplies - Food and Beverages,09/07/2018,5064609,725.12,Thomas Ridley & Son Ltd
Childrens Services,Children's Social Care,Support Service and Management Costs,Sch. Meals A/c - Central Production Unit,Kitchen Supplies - Food and Beverages,09/07/2018,5064610,304.65,Thomas Ridley & Son Ltd
Childrens Services,Children's Social Care,Support Service and Management Costs,Schools Catering,Kitchen Supplies - Food and Beverages,09/07/2018,5064612,360.3,Thomas Ridley & Son Ltd
Childrens Services,Children's Social Care,Support Service and Management Costs,Schools Catering,Kitchen Supplies - Food and Beverages,09/07/2018,5064613,303.05,Thomas Ridley & Son Ltd
Childrens Services,Children's Social Care,Support Service and Management Costs,Schools Catering,Kitchen Supplies - Food and Beverages,09/07/2018,5064614,273.66,Thomas Ridley & Son Ltd
Childrens Services,Children's Social Care,Support Service and Management Costs,Schools Catering,Kitchen Supplies - Food and Beverages,09/07/2018,5064617,384.87,Thomas Ridley & Son Ltd
Childrens Services,Children's Social Care,Support Service and Management Costs,Schools Catering,Kitchen Supplies - Food and Beverages,09/07/2018,5064618,276,Thomas Ridley & Son Ltd
Childrens Services,Children's Social Care,Support Service and Management Costs,Schools Catering,Kitchen Supplies - Food and Beverages,09/07/2018,5064619,354.25,Thomas Ridley & Son Ltd
Childrens Services,Children's Social Care,Support Service and Management Costs,Schools Catering,Kitchen Supplies - Food and Beverages,09/07/2018,5064643,291.49,Prescott-Thomas LTD.
Childrens Services,Children's Social Care,Support Service and Management Costs,Schools Catering,Kitchen Supplies - Food and Beverages,09/07/2018,5064671,278.59,Prescott-Thomas LTD.
Childrens Services,Children's Social Care,Support Service and Management Costs,Schools Catering,Kitchen Supplies - Food and Beverages,09/07/2018,5064695,255.64,Prescott-Thomas LTD.
Childrens Services,Children's Social Care,Support Service and Management Costs,Schools Catering,Kitchen Supplies - Food and Beverages,09/07/2018,5064714,314.19,Prescott-Thomas LTD.
Childrens Services,Children's Social Care,Support Service and Management Costs,Schools Catering,Kitchen Supplies - Food and Beverages,09/07/2018,5064718,276.47,Prescott-Thomas LTD.
Childrens Services,Cultural and Related Services,Open Spaces,Mile End Park,Repairs and Maintenance - Responsive - Buildings,09/07/2018,5064837,"1,490.00",JC Coster (Metalworks) Ltd
Childrens Services,Children's Social Care,Support Service and Management Costs,Schools Catering,Materials - Cleaning Materials,09/07/2018,5064894,252.47,The Maintenance Supply Co Ltd
Childrens Services,Children's Social Care,Children Looked After,Leaving Care-UASC,Leaving Care Financial Assistance - Supp Accom/Hous Rents,09/07/2018,5064974,"1,085.00",Pangea Support Services
Childrens Services,Children's Social Care,Children Looked After,Leaving Care-UASC,Leaving Care Financial Assistance - Supported Living,09/07/2018,5064974,256.86,Pangea Support Services
Childrens Services,Children's Social Care,Children Looked After,Leaving Care-UASC,Leaving Care Financial Assistance - Reg Plan Maint Travel A,09/07/2018,5064977,281.86,Pangea Support Services
Childrens Services,Children's Social Care,Children Looked After,Leaving Care-UASC,Leaving Care Financial Assistance - Supp Accom/Hous Rents,09/07/2018,5064977,"1,085.00",Pangea Support Services
Childrens Services,Children's Social Care,Children Looked After,Leaving Care-UASC,Leaving Care Financial Assistance - Supp Accom/Hous Rents,09/07/2018,5064979,"1,085.00",Pangea Support Services
Childrens Services,Children's Social Care,Children Looked After,S23-Other-Semi-Ind. Unit,Childrens Act Section 23 - Placement Fee,09/07/2018,5064984,925,Real Life
Childrens Services,Children's Social Care,Children Looked After,S23-Other-Semi-Ind. Unit,Childrens Act Section 23 - Placement Fee,09/07/2018,5064985,"1,971.40",Real Life
Childrens Services,Children's Social Care,Children Looked After,S23-Other-Semi-Ind. Unit,Childrens Act Section 23 - Placement Fee,09/07/2018,5064986,"1,321.40",Real Life
Childrens Services,Children's Social Care,Children Looked After,S23-Other-Semi-Ind. Unit,Childrens Act Section 23 - Placement Fee,09/07/2018,5064987,925,Real Life
Childrens Services,Adult Social Care,Support Service and Management Costs,Org Development L&D Training,Social Care - Drugs/Alcohol Dual Dia,09/07/2018,5064988,695,Talking Life
Childrens Services,Children's Social Care,Support Service and Management Costs,Schools Catering,Kitchen Supplies - Food and Beverages,09/07/2018,5065010,373.96,Thomas Ridley & Son Ltd
Childrens Services,Children's Social Care,Support Service and Management Costs,Sch. Meals A/c - Central Production Unit,Kitchen Supplies - Food and Beverages,09/07/2018,5065011,980.47,Thomas Ridley & Son Ltd
Childrens Services,Children's Social Care,Support Service and Management Costs,Schools Catering,Kitchen Supplies - Food and Beverages,09/07/2018,5065012,698.95,Thomas Ridley & Son Ltd
Childrens Services,Children's Social Care,Support Service and Management Costs,Schools Catering,Kitchen Supplies - Food and Beverages,09/07/2018,5065014,420.79,Thomas Ridley & Son Ltd
Childrens Services,Children's Social Care,Support Service and Management Costs,Schools Catering,Kitchen Supplies - Food and Beverages,09/07/2018,5065015,336.72,Thomas Ridley & Son Ltd
Childrens Services,Children's Social Care,Support Service and Management Costs,Schools Catering,Kitchen Supplies - Food and Beverages,09/07/2018,5065019,384.99,Thomas Ridley & Son Ltd
Childrens Services,Children's Social Care,Support Service and Management Costs,Schools Catering,Kitchen Supplies - Food and Beverages,09/07/2018,5065020,322.87,Thomas Ridley & Son Ltd
Childrens Services,Children's Social Care,Support Service and Management Costs,Swanlea,Kitchen Supplies - Food and Beverages,09/07/2018,5065021,778.72,Thomas Ridley & Son Ltd
Childrens Services,Children's Social Care,Support Service and Management Costs,Schools Catering,Kitchen Supplies - Food and Beverages,09/07/2018,5065023,436.15,Thomas Ridley & Son Ltd
Childrens Services,Children's Social Care,Support Service and Management Costs,Schools Catering,Kitchen Supplies - Food and Beverages,09/07/2018,5065028,567.29,Thomas Ridley & Son Ltd
Childrens Services,Children's Social Care,Support Service and Management Costs,Schools Catering,Kitchen Supplies - Food and Beverages,09/07/2018,5065033,697.05,Thomas Ridley & Son Ltd
Childrens Services,Children's Social Care,Support Service and Management Costs,Schools Catering,Kitchen Supplies - Food and Beverages,09/07/2018,5065034,501.71,Thomas Ridley & Son Ltd
Childrens Services,Children's Social Care,Support Service and Management Costs,Schools Catering,Kitchen Supplies - Food and Beverages,09/07/2018,5065035,549.16,Thomas Ridley & Son Ltd
Childrens Services,Children's Social Care,Support Service and Management Costs,Schools Catering,Kitchen Supplies - Food and Beverages,09/07/2018,5065036,390.49,Thomas Ridley & Son Ltd
Childrens Services,Children's Social Care,Support Service and Management Costs,Schools Catering,Kitchen Supplies - Food and Beverages,09/07/2018,5065037,343.03,Thomas Ridley & Son Ltd
Childrens Services,Children's Social Care,Support Service and Management Costs,Schools Catering,Kitchen Supplies - Food and Beverages,09/07/2018,5065041,265.66,Thomas Ridley & Son Ltd
Childrens Services,Children's Social Care,Support Service and Management Costs,Schools Catering,Kitchen Supplies - Food and Beverages,09/07/2018,5065043,252.75,Thomas Ridley & Son Ltd
Childrens Services,Children's Social Care,Support Service and Management Costs,Schools Catering,Kitchen Supplies - Food and Beverages,09/07/2018,5065044,337.53,Thomas Ridley & Son Ltd
Childrens Services,Children's Social Care,Support Service and Management Costs,Schools Catering,Kitchen Supplies - Food and Beverages,09/07/2018,5065046,363.63,Thomas Ridley & Son Ltd
Childrens Services,Children's Social Care,Support Service and Management Costs,Schools Catering,Kitchen Supplies - Food and Beverages,09/07/2018,5065047,277.13,Thomas Ridley & Son Ltd
Childrens Services,Children's Social Care,Support Service and Management Costs,Schools Catering,Kitchen Supplies - Food and Beverages,09/07/2018,5065049,490.98,Thomas Ridley & Son Ltd
Childrens Services,Children's Social Care,Support Service and Management Costs,Schools Catering,Kitchen Supplies - Food and Beverages,09/07/2018,5065050,314.56,Thomas Ridley & Son Ltd
Childrens Services,Children's Social Care,Support Service and Management Costs,Schools Catering,Kitchen Supplies - Food and Beverages,09/07/2018,5065051,342.14,Thomas Ridley & Son Ltd
Childrens Services,Children's Social Care,Support Service and Management Costs,Sch. Meals A/c - Central Production Unit,Kitchen Supplies - Food and Beverages,09/07/2018,5065067,260.64,Prescott-Thomas LTD.
Childrens Services,Cultural and Related Services,Open Spaces,Victoria Park,Repairs and Maintenance - Responsive - Repair & Maintenance,09/07/2018,5065712,"8,749.62",Boverton nurseries LTD
Childrens Services,Cultural and Related Services,Open Spaces,Mile End Park,Repairs and Maintenance - Responsive - Buildings,09/07/2018,5065728,550,J&L Coster (Drainage) Ltd
Childrens Services,Cultural and Related Services,Open Spaces,Mile End Park,Repairs and Maintenance - Responsive - Buildings,09/07/2018,5065729,280,J&L Coster (Drainage) Ltd
Childrens Services,Cultural and Related Services,Open Spaces,Mile End Park,Repairs and Maintenance - Responsive - Buildings,09/07/2018,5065731,450,J&L Coster (Drainage) Ltd
Childrens Services,Education Services,Early Years,Early Years Health Project,Medical Requisites,09/07/2018,5066012,760.55,Oral Health Foundation
Childrens Services,Children's Social Care,Other Children's and Family Services,Adoption Support Fund,Third Party Payments - Other Agencies,09/07/2018,5066234,"4,946.04",Post-Adoption Centre
Childrens Services,Children's Social Care,Support Service and Management Costs,Welfare Catering,Kitchen Supplies - Food and Beverages,09/07/2018,5066237,281.11,William White Meats Ltd
Childrens Services,Children's Social Care,Support Service and Management Costs,Sch. Meals A/c - Central Production Unit,Kitchen Supplies - Food and Beverages,09/07/2018,5066299,403.9,William White Meats Ltd
Childrens Services,Children's Social Care,Service Strategy,CSC Childrens Resources M & A,Childrens Act Section 23 - Placement Fee,09/07/2018,5068847,550,Brighter Future Solutions
Childrens Services,Children's Social Care,Children Looked After,S23 Family Placements P&V,Childrens Act Section 23 - Placement Fee,09/07/2018,5070028,"4,000.00",Credo Care ltd
Childrens Services,Cultural and Related Services,Open Spaces,Victoria Park,Repairs and Maintenance - Responsive - Repair & Maintenance,09/07/2018,5073937,"16,855.37",Rigby Taylor Ltd
Childrens Services,Children's Social Care,Children Looked After,Virtual School PPG,Agency Staff - Non Staff Tuition Fees,09/07/2018,5073966,400,Anchor Teaching Ltd
Childrens Services,Children's Social Care,Children Looked After,Virtual School PPG,Education & Training - Non Staff Tuition Fees,09/07/2018,5073967,500,Anchor Teaching Ltd
Childrens Services,Children's Social Care,Children Looked After,Virtual School PPG,Education & Training - Non Staff Tuition Fees,09/07/2018,5073968,450,Anchor Teaching Ltd
Childrens Services,Children's Social Care,Children Looked After,Virtual School PPG,Agency Staff - Non Staff Tuition Fees,09/07/2018,5073969,500,Anchor Teaching Ltd
Childrens Services,Children's Social Care,Children Looked After,Virtual School PPG,Agency Staff - Non Staff Tuition Fees,09/07/2018,5073970,525,Anchor Teaching Ltd
Childrens Services,Children's Social Care,Children Looked After,Virtual School PPG,Agency Staff - Non Staff Tuition Fees,09/07/2018,5073971,600,Anchor Teaching Ltd
Childrens Services,Children's Social Care,Children Looked After,Virtual School PPG,Agency Staff - Non Staff Tuition Fees,09/07/2018,5073972,600,Anchor Teaching Ltd
Childrens Services,Children's Social Care,Children Looked After,S23-Other-Mother & Baby Unit,Childrens Act Section 23 - Placement Fee,09/07/2018,5074020,"2,000.00",Real Life
Childrens Services,Children's Social Care,Children Looked After,S23-Other-Mother & Baby Unit,Childrens Act Section 23 - Placement Fee,09/07/2018,5074021,468,Real Life
Childrens Services,Children's Social Care,Children Looked After,S23 Family Placements P&V,Childrens Act Section 23 - Placement Fee,09/07/2018,5074253,"2,000.44",Credo Care ltd
Childrens Services,Education Services,Other Strategic Functions,Ofsted Improvement Plan,Training Expenses - Other Internal Training,09/07/2018,5076448,"4,500.00",Mark Finnis Training and Consultancy Ltd
Childrens Services,Education Services,Other Strategic Functions,Ofsted Improvement Plan,Training Expenses - Other Internal Training,09/07/2018,5076448,420,Mark Finnis Training and Consultancy Ltd
Childrens Services,Children's Social Care,Service Strategy,FSP Sect 17 - Team 5,Childrens Act Section 17 - Non-Contact Trans/Travel Costs,09/07/2018,5077401,265.99,TKG LTD T/A The Keen Group
Childrens Services,Education Services,Other Strategic Functions,Empty Properties,Water Services - Metered,09/07/2018,5077528,365.35,CASTLE WATER
Childrens Services,Children's Social Care,Children Looked After,S23 Fam Pl In-Hse-S/Term F/C,Childrens Act Section 23 - Non-Contact Taxi Costs,09/07/2018,5077599,490,Mile End Car Hire Limited
Childrens Services,Children's Social Care,Children Looked After,S23-Resi-P&V/OLA-Child Home,Childrens Act Section 23 - Placement Fee,09/07/2018,5077618,"18,339.82",Castle Homes Care Ltd
Childrens Services,Children's Social Care,Children Looked After,S23 Fam Pl P&V-F/Care,Childrens Act Section 23 - Placement Fee,09/07/2018,5077777,784,Swiis Foster Care Limited
Childrens Services,Children's Social Care,Children Looked After,S23 Fam Pl P&V-F/Care,Childrens Act Section 23 - Placement Fee,09/07/2018,5077797,"3,100.00",Time For Children
Childrens Services,Children's Social Care,Support Service and Management Costs,Schools Catering,Kitchen Supplies - Food and Beverages,09/07/2018,5077834,-314.45,Thomas Ridley & Son Ltd
Childrens Services,Children's Social Care,Children Looked After,S23 Fam Pl In-Hse-Kinshp Care,Childrens Act Section 23 - All Contact Expenses,09/07/2018,5077953,846,HOPE Superjobs Ltd
Childrens Services,Children's Social Care,Children Looked After,S23 Fam Pl In-Hse-Kinshp Care,Childrens Act Section 23 - All Contact Expenses,09/07/2018,5077954,658,HOPE Superjobs Ltd
Childrens Services,Children's Social Care,Children Looked After,S23-Other-Semi-Ind. Unit,Childrens Act Section 23 - Placement Fee,11/07/2018,5050308,"3,177.28",Heartwood Outreach Services Ltd
Childrens Services,Children's Social Care,Services for young people,Youth Service Management,Third Party Payments - Voluntary Associations,11/07/2018,5055650,"20,000.00",Ocean Youth Connexions
Childrens Services,Children's Social Care,Children Looked After,Leaving Care-UASC,Leaving Care Financial Assistance - Supp Accom/Hous Rents,11/07/2018,5064958,"4,317.86",Pangea Support Services
Childrens Services,Children's Social Care,Children Looked After,Leaving Care-UASC,Leaving Care Financial Assistance - Reg Plan Maint Travel A,11/07/2018,5064978,256.86,Pangea Support Services
Childrens Services,Children's Social Care,Children Looked After,Leaving Care-UASC,Leaving Care Financial Assistance - Supp Accom/Hous Rents,11/07/2018,5064978,"1,085.00",Pangea Support Services
Childrens Services,Cultural and Related Services,Open Spaces,Parks & Open Spaces Man&Admin,Repairs and Maintenance - Responsive - Buildings,11/07/2018,5065138,"7,650.00",JC Coster (Metalworks) Ltd
Childrens Services,Cultural and Related Services,Open Spaces,Parks & Open Spaces Man&Admin,Repairs and Maintenance - Responsive - Buildings,11/07/2018,5065139,525,JC Coster (Metalworks) Ltd
Childrens Services,Education Services,Other Strategic Functions,High Needs LBTH Mainstream Schs,Services - Professional Fees - Consultants Fees,11/07/2018,5065159,"2,000.00",Mastodon C
Childrens Services,Children's Social Care,Support Service and Management Costs,Schools Catering,Kitchen Supplies - Food and Beverages,11/07/2018,5065190,451.6,Thomas Ridley & Son Ltd
Childrens Services,Children's Social Care,Support Service and Management Costs,Schools Catering,Kitchen Supplies - Food and Beverages,11/07/2018,5065191,670.62,Thomas Ridley & Son Ltd
Childrens Services,Children's Social Care,Support Service and Management Costs,Schools Catering,Kitchen Supplies - Food and Beverages,11/07/2018,5065195,282.23,Thomas Ridley & Son Ltd
Childrens Services,Children's Social Care,Support Service and Management Costs,Schools Catering,Kitchen Supplies - Food and Beverages,11/07/2018,5065198,584.33,Thomas Ridley & Son Ltd
Childrens Services,Children's Social Care,Support Service and Management Costs,Schools Catering,Kitchen Supplies - Food and Beverages,11/07/2018,5065200,618.11,Thomas Ridley & Son Ltd
Childrens Services,Children's Social Care,Support Service and Management Costs,Schools Catering,Kitchen Supplies - Food and Beverages,11/07/2018,5065201,254.85,Thomas Ridley & Son Ltd
Childrens Services,Children's Social Care,Support Service and Management Costs,Schools Catering,Kitchen Supplies - Food and Beverages,11/07/2018,5065202,403.24,Thomas Ridley & Son Ltd
Childrens Services,Children's Social Care,Support Service and Management Costs,Schools Catering,Kitchen Supplies - Food and Beverages,11/07/2018,5065203,305.9,Thomas Ridley & Son Ltd
Childrens Services,Children's Social Care,Support Service and Management Costs,Schools Catering,Kitchen Supplies - Food and Beverages,11/07/2018,5065205,"1,332.68",Thomas Ridley & Son Ltd
Childrens Services,Children's Social Care,Support Service and Management Costs,Schools Catering,Kitchen Supplies - Food and Beverages,11/07/2018,5065207,508.31,Thomas Ridley & Son Ltd
Childrens Services,Children's Social Care,Support Service and Management Costs,Schools Catering,Kitchen Supplies - Food and Beverages,11/07/2018,5065212,578.95,Thomas Ridley & Son Ltd
Childrens Services,Children's Social Care,Support Service and Management Costs,Schools Catering,Kitchen Supplies - Food and Beverages,11/07/2018,5065215,295.53,Thomas Ridley & Son Ltd
Childrens Services,Children's Social Care,Support Service and Management Costs,Schools Catering,Kitchen Supplies - Food and Beverages,11/07/2018,5065217,390.78,Thomas Ridley & Son Ltd
Childrens Services,Children's Social Care,Support Service and Management Costs,Sch. Meals A/c - Central Production Unit,Kitchen Supplies - Food and Beverages,11/07/2018,5065218,"1,700.82",Thomas Ridley & Son Ltd
Childrens Services,Children's Social Care,Support Service and Management Costs,Schools Catering,Kitchen Supplies - Food and Beverages,11/07/2018,5065219,324.4,Thomas Ridley & Son Ltd
Childrens Services,Children's Social Care,Support Service and Management Costs,Schools Catering,Kitchen Supplies - Food and Beverages,11/07/2018,5065220,729.11,Thomas Ridley & Son Ltd
Childrens Services,Children's Social Care,Support Service and Management Costs,Schools Catering,Kitchen Supplies - Food and Beverages,11/07/2018,5065221,610.96,Thomas Ridley & Son Ltd
Childrens Services,Children's Social Care,Support Service and Management Costs,Schools Catering,Kitchen Supplies - Food and Beverages,11/07/2018,5065223,425.32,Thomas Ridley & Son Ltd
Childrens Services,Children's Social Care,Support Service and Management Costs,Schools Catering,Kitchen Supplies - Food and Beverages,11/07/2018,5065224,501.66,Thomas Ridley & Son Ltd
Childrens Services,Cultural and Related Services,Open Spaces,Parks & Open Spaces Man&Admin,Repairs and Maintenance - Responsive - Buildings,11/07/2018,5065627,"3,060.00",JC Coster (Metalworks) Ltd
Childrens Services,Children's Social Care,Children Looked After,S23-Resi-P&V/OLA-Child Home,Childrens Act Section 23 - Placement Fee,11/07/2018,5065642,"12,188.40",Bridge Communities Ltd
Childrens Services,Cultural and Related Services,Open Spaces,Parks & Open Spaces Man&Admin,Grounds Maintenance - Contract - Fencing,11/07/2018,5065773,"1,104.00",CITY SUBURBAN TREE SURGEONS
Childrens Services,Children's Social Care,Support Service and Management Costs,Schools Catering,Kitchen Supplies - Food and Beverages,11/07/2018,5065780,343.92,Thomas Ridley & Son Ltd
Childrens Services,Children's Social Care,Support Service and Management Costs,Schools Catering,Kitchen Supplies - Food and Beverages,11/07/2018,5065781,278.29,Thomas Ridley & Son Ltd
Childrens Services,Children's Social Care,Support Service and Management Costs,Schools Catering,Kitchen Supplies - Food and Beverages,11/07/2018,5066236,336.52,William White Meats Ltd
Childrens Services,Children's Social Care,Support Service and Management Costs,Schools Catering,Kitchen Supplies - Food and Beverages,11/07/2018,5066260,431.1,William White Meats Ltd
Childrens Services,Children's Social Care,Support Service and Management Costs,Schools Catering,Kitchen Supplies - Food and Beverages,11/07/2018,5066300,565.25,William White Meats Ltd
Childrens Services,Children's Social Care,Support Service and Management Costs,Schools Catering,Kitchen Supplies - Food and Beverages,11/07/2018,5066306,366,William White Meats Ltd
Childrens Services,Children's Social Care,Support Service and Management Costs,Schools Catering,Kitchen Supplies - Food and Beverages,11/07/2018,5066309,253.77,William White Meats Ltd
Childrens Services,Children's Social Care,Support Service and Management Costs,Welfare Catering,Kitchen Supplies - Food and Beverages,11/07/2018,5066316,467.67,William White Meats Ltd
Childrens Services,Children's Social Care,Support Service and Management Costs,Schools Catering,Kitchen Supplies - Food and Beverages,11/07/2018,5066318,444.13,William White Meats Ltd
Childrens Services,Children's Social Care,Support Service and Management Costs,Schools Catering,Kitchen Supplies - Food and Beverages,11/07/2018,5066322,433.5,William White Meats Ltd
Childrens Services,Children's Social Care,Support Service and Management Costs,Schools Catering,Kitchen Supplies - Food and Beverages,11/07/2018,5066329,598.05,William White Meats Ltd
Childrens Services,Children's Social Care,Support Service and Management Costs,Schools Catering,Kitchen Supplies - Food and Beverages,11/07/2018,5066330,261.68,William White Meats Ltd
Childrens Services,Children's Social Care,Support Service and Management Costs,Schools Catering,Kitchen Supplies - Food and Beverages,11/07/2018,5066333,335.5,William White Meats Ltd
Childrens Services,Children's Social Care,Support Service and Management Costs,Schools Catering,Kitchen Supplies - Food and Beverages,11/07/2018,5066334,305,William White Meats Ltd
Childrens Services,Children's Social Care,Support Service and Management Costs,Schools Catering,Kitchen Supplies - Food and Beverages,11/07/2018,5066335,515.06,William White Meats Ltd
Childrens Services,Children's Social Care,Support Service and Management Costs,Schools Catering,Kitchen Supplies - Food and Beverages,11/07/2018,5066336,468.38,William White Meats Ltd
Childrens Services,Children's Social Care,Support Service and Management Costs,Schools Catering,Kitchen Supplies - Food and Beverages,11/07/2018,5066339,466.03,William White Meats Ltd
Childrens Services,Children's Social Care,Support Service and Management Costs,Schools Catering,Kitchen Supplies - Food and Beverages,11/07/2018,5066340,310.82,William White Meats Ltd
Childrens Services,Children's Social Care,Support Service and Management Costs,Schools Catering,Kitchen Supplies - Food and Beverages,11/07/2018,5066348,514.44,William White Meats Ltd
Childrens Services,Children's Social Care,Support Service and Management Costs,Swanlea,Kitchen Supplies - Food and Beverages,11/07/2018,5066357,600.44,William White Meats Ltd
Childrens Services,Children's Social Care,Support Service and Management Costs,Schools Catering,Kitchen Supplies - Food and Beverages,11/07/2018,5066363,464,William White Meats Ltd
Childrens Services,Children's Social Care,Children Looked After,Virtual School PPG,Third Party Payments - Payments to Schools,11/07/2018,5066409,585,HAMSTEL JUNIOR SCHOOL
Childrens Services,Education Services,Other Strategic Functions,Music Trading Account,Educational/Training Supplies - Arts & Crafts,11/07/2018,5066451,318,LMS Music Supplies
Childrens Services,Children's Social Care,Children Looked After,Virtual School PPG,Agency Staff - Associations,11/07/2018,5066458,"1,009.80",Academics ltd
Childrens Services,Children's Social Care,Children Looked After,Virtual School PPG,Agency Staff - Associations,11/07/2018,5066459,757.35,Academics ltd
Childrens Services,Children's Social Care,Children Looked After,Virtual School PPG,Agency Staff - Associations,11/07/2018,5066460,757.35,Academics ltd
Childrens Services,Children's Social Care,Children Looked After,Virtual School PPG,Agency Staff - Associations,11/07/2018,5066462,757.35,Academics ltd
Childrens Services,Children's Social Care,Children Looked After,Virtual School PPG,Agency Staff - Associations,11/07/2018,5066463,"1,262.25",Academics ltd
Childrens Services,Education Services,Other Strategic Functions,Special Education Needs DSG,Third Party Payments - Payments to Schools,11/07/2018,5068766,"32,111.68",Cambian Autism Services Ltd
Childrens Services,Children's Social Care,Children Looked After,S23-Resi-P&V/OLA-Boarding Sch,Childrens Act Section 23 - Placement Fee,11/07/2018,5068766,"32,111.68",Cambian Autism Services Ltd
Childrens Services,Education Services,Other Strategic Functions,Health through Education,Training Expenses - Staff External Training (UK Based),11/07/2018,5068821,"1,803.80",Bricks2Learn
Childrens Services,Children's Social Care,Commissioning and Social Work,Family Support and Protection Team 9,Computing - Purchase of Software,11/07/2018,5070016,749.67,Specialist Computer Centres PLC
Childrens Services,Children's Social Care,Children Looked After,Virtual School PPG,Agency Staff - Associations,11/07/2018,5070019,504.9,Academics ltd
Childrens Services,Cultural and Related Services,Culture & Heritage,Arts-Park Events,Non Staff Advertising - General,11/07/2018,5070232,"2,002.00",McConnells (Midlands) Ltd
Childrens Services,Children's Social Care,Children Looked After,Virtual School PPG,Third Party Payments - Payments to Schools,11/07/2018,5070365,960,Barking Abbey School
Childrens Services,Children's Social Care,Support Service and Management Costs,Sch. Meals A/c - Central Production Unit,Materials - Cleaning Materials,11/07/2018,5072276,258.71,The Maintenance Supply Co Ltd
Childrens Services,Education Services,Secondary Schools,PFI Hldg Account-Grouped Schoo,Payments to Private Contractors - Other Contractors,11/07/2018,5073997,"1,228,479.59",Tower Hamlets Schools LTD
Childrens Services,Education Services,Secondary Schools,PFI Hldg Account-Grouped Schoo,Payments to Private Contractors - Other Contractors,11/07/2018,5073998,"1,225,984.82",Tower Hamlets Schools LTD
Childrens Services,Children's Social Care,Youth Justice,Partnerships,Communications,11/07/2018,5074061,613.95,Ignite Service Provider Ltd
Childrens Services,Children's Social Care,Commissioning and Social Work,Advice and Assessment Section 17,Childrens Act Section 17 - Other Childcare Support,11/07/2018,5074221,"4,585.20",Heartwood Outreach Services Ltd
Childrens Services,Children's Social Care,Commissioning and Social Work,Advice and Assessment Section 17,Childrens Act Section 17 - Other Childcare Support,11/07/2018,5074222,"3,668.16",Heartwood Outreach Services Ltd
Childrens Services,Children's Social Care,Commissioning and Social Work,Advice and Assessment Section 17,Childrens Act Section 17 - Other Childcare Support,11/07/2018,5074223,"4,036.32",Heartwood Outreach Services Ltd
Childrens Services,Children's Social Care,Children Looked After,Virtual School PPG,Training Expenses - Staff External Training (UK Based),11/07/2018,5074754,850,Kate Cairns Associates Ltd
Childrens Services,No Service Specified,No Division Specified,Capital-Minor Works (SC),Other External Fees - Other External Fees,11/07/2018,5077387,"11,846.59",Tower Hamlets Schools LTD
Childrens Services,Education Services,Secondary Schools,PFI Hldg Account-Grouped Schoo,Repairs and Maintenance - Responsive - Buildings,11/07/2018,5077388,571,Tower Hamlets Schools LTD
Childrens Services,No Service Specified,No Division Specified,Capital-Minor Works (SC),Building Works - Main Works,11/07/2018,5077390,"109,609.79",Tower Hamlets Schools LTD
Childrens Services,No Service Specified,No Division Specified,Capital-Minor Works (SC),Building Works - Main Works,11/07/2018,5077391,740.43,Tower Hamlets Schools LTD
Childrens Services,Education Services,Secondary Schools,PFI Hldg Account-Grouped Schoo,Repairs and Maintenance - Responsive - Buildings,11/07/2018,5077392,"91,503.71",Tower Hamlets Schools LTD
Childrens Services,No Service Specified,No Division Specified,Capital-Minor Works (SC),Building Works - Main Works,11/07/2018,5077393,"10,627.24",Tower Hamlets Schools LTD
Childrens Services,Children's Social Care,Service Strategy,FSP Sect 17 - Team 5,Childrens Act Section 17 - Non-Contact Taxi Costs,11/07/2018,5077402,290.56,TKG LTD T/A The Keen Group
Childrens Services,Children's Social Care,Commissioning and Social Work,Family Support and Protection Team 7,Training Expenses - Staff Internal Training,11/07/2018,5077545,250,BETHNAL GREEN SOCIAL SERVICES
Childrens Services,Education Services,Other Strategic Functions,SEN External Travel,Non Staff Transport Costs - Reimbursement,11/07/2018,5077580,"11,242.00",Mile End Car Hire Limited
Childrens Services,Children's Social Care,Commissioning and Social Work,Advice and Assessment Section 17,Childrens Act Section 17 - Non-Contact Trans/Travel Costs,11/07/2018,5077587,990,Mile End Car Hire Limited
Childrens Services,Children's Social Care,Children Looked After,S23-Other-Semi-Ind. Unit,Childrens Act Section 23 - Placement Fee,11/07/2018,5077675,"-3,177.28",Heartwood Outreach Services Ltd
Childrens Services,Education Services,Other Strategic Functions,Parental Engagement,Subscriptions - Associations,11/07/2018,5077684,645,Docklands Sailing & Watersports Centre
Childrens Services,Cultural and Related Services,Culture & Heritage,Arts-Park Events,Events & Exhibition Supplies,11/07/2018,5077779,"1,100.00",Greens H2O
Childrens Services,Children's Social Care,Family Support Services,IPST S17 NRPF,Childrens Act Section 17 - Other Placements Bed & Breakfast,11/07/2018,5078035,"1,080.00",Assetgrove
Childrens Services,Children's Social Care,Family Support Services,IPST S17 NRPF,Childrens Act Section 17 - Other Placements Bed & Breakfast,11/07/2018,5078036,"1,116.00",Assetgrove
Childrens Services,Education Services,Other Strategic Functions,Empty Properties,Services - Professional Fees - Security Fees,11/07/2018,5078241,"5,962.50",Manpower Direct UK
Childrens Services,Education Services,Other Strategic Functions,Empty Properties,Services - Professional Fees - Security Fees,11/07/2018,5078242,"5,164.01",Manpower Direct UK
Childrens Services,No Service Specified,No Division Specified,Capital-Minor Works (SC),Building Works - Main Works,11/07/2018,5078249,"2,484.00",Carter Accomodation Ltd
Childrens Services,Children's Social Care,Children Looked After,S23 Fam Pl P&V-F/Care,Childrens Act Section 23 - Placement Fee,11/07/2018,5078250,"4,257.20",Aspirations Fostering
Childrens Services,Children's Social Care,Children Looked After,S23 Fam Pl P&V-F/Care,Childrens Act Section 23 - Placement Fee,11/07/2018,5078252,"4,000.00",Aspirations Fostering
Childrens Services,Children's Social Care,Children Looked After,S23 Fam Pl P&V-F/Care,Childrens Act Section 23 - Placement Fee,11/07/2018,5078253,"4,000.00",Aspirations Fostering
Childrens Services,Children's Social Care,Children Looked After,S23 Fam Pl P&V-F/Care,Childrens Act Section 23 - Placement Fee,11/07/2018,5078254,"4,000.00",Aspirations Fostering
Childrens Services,Children's Social Care,Support Service and Management Costs,Swanlea,Kitchen Supplies - Food and Beverages,11/07/2018,5078273,470.64,Jones Brothers
Childrens Services,Children's Social Care,Support Service and Management Costs,Welfare Catering,Kitchen Supplies - Food and Beverages,11/07/2018,5078288,667.5,Jones Brothers
Childrens Services,Children's Social Care,Support Service and Management Costs,Swanlea,Kitchen Supplies - Food and Beverages,11/07/2018,5078339,407.04,Jones Brothers
Childrens Services,Children's Social Care,Support Service and Management Costs,Welfare Catering,Kitchen Supplies - Food and Beverages,11/07/2018,5078357,629.2,Jones Brothers
Childrens Services,Children's Social Care,Children Looked After,S23 Fam Pl P&V-F/Care,Childrens Act Section 23 - Placement Fee,11/07/2018,5078454,"3,100.00",Time For Children
Childrens Services,Children's Social Care,Children Looked After,S23 Fam Pl P&V-F/Care,Childrens Act Section 23 - Placement Fee,11/07/2018,5078455,"3,100.00",Time For Children
Childrens Services,Children's Social Care,Children Looked After,S23 Fam Pl P&V-F/Care,Childrens Act Section 23 - Placement Fee,11/07/2018,5078456,"3,100.00",Time For Children
Childrens Services,Children's Social Care,Children Looked After,S23 Fam Pl P&V-F/Care,Childrens Act Section 23 - Placement Fee,11/07/2018,5078457,"3,000.00",Time For Children
Childrens Services,Children's Social Care,Children Looked After,S23 Fam Pl P&V-F/Care,Childrens Act Section 23 - Placement Fee,11/07/2018,5078458,"3,000.00",Time For Children
Childrens Services,Children's Social Care,Children Looked After,S23 Fam Pl P&V-F/Care,Childrens Act Section 23 - Placement Fee,11/07/2018,5078459,"3,000.00",Time For Children
Childrens Services,Children's Social Care,Children Looked After,S23 Fam Pl P&V-F/Care,Childrens Act Section 23 - Placement Fee,11/07/2018,5078460,"3,000.00",Time For Children
Childrens Services,Children's Social Care,Children Looked After,S23 Fam Pl P&V-F/Care,Childrens Act Section 23 - Non-Contact Trans/Travel Costs,11/07/2018,5078807,"2,682.23",TKG LTD T/A The Keen Group
Childrens Services,Education Services,Other Strategic Functions,Ofsted Improvement Plan,Office Furniture/Equipment,13/07/2018,5040779,"8,164.30",Unique Office Solutions
Childrens Services,Children's Social Care,Children Looked After,Leaving Care-UASC,Leaving Care Financial Assistance - Supp Accom/Hous Rents,13/07/2018,5060792,"1,050.00",Pangea Support Services
Childrens Services,Children's Social Care,Children Looked After,S23-Other-Semi-Ind. Unit,Childrens Act Section 23 - Interpreting/Translation,13/07/2018,5061451,873.35,Oncall Interpreters LTD
Childrens Services,Children's Social Care,Children Looked After,Staying Put,Childrens Act Section 23 - Placement Fee,13/07/2018,5064178,"1,780.29",Sunbeam Fostering Agency Ltd
Childrens Services,Education Services,Other Strategic Functions,Ofsted Improvement Plan,Office Furniture/Equipment,13/07/2018,5065762,"3,522.96",Unique Office Solutions
Childrens Services,Education Services,Other Strategic Functions,Ofsted Improvement Plan,Office Furniture/Equipment,13/07/2018,5065762,"2,934.00",Unique Office Solutions
Childrens Services,Cultural and Related Services,Open Spaces,Parks & Open Spaces Man&Admin,Repairs and Maintenance - Responsive - Buildings,13/07/2018,5066010,"1,950.00",J&L Coster (Drainage) Ltd
Childrens Services,Cultural and Related Services,Open Spaces,Victoria Park,Repairs and Maintenance - Responsive - Repair & Maintenance,13/07/2018,5066011,550,J&L Coster (Drainage) Ltd
Childrens Services,Children's Social Care,Support Service and Management Costs,Schools Catering,Kitchen Supplies - Food and Beverages,13/07/2018,5066068,451.34,Thomas Ridley & Son Ltd
Childrens Services,Children's Social Care,Support Service and Management Costs,Schools Catering,Kitchen Supplies - Food and Beverages,13/07/2018,5066071,359.85,Thomas Ridley & Son Ltd
Childrens Services,Children's Social Care,Support Service and Management Costs,Schools Catering,Kitchen Supplies - Food and Beverages,13/07/2018,5066072,619.89,Thomas Ridley & Son Ltd
Childrens Services,Children's Social Care,Support Service and Management Costs,Schools Catering,Kitchen Supplies - Food and Beverages,13/07/2018,5066074,407.23,Thomas Ridley & Son Ltd
Childrens Services,Children's Social Care,Support Service and Management Costs,Schools Catering,Kitchen Supplies - Food and Beverages,13/07/2018,5066075,323.5,Thomas Ridley & Son Ltd
Childrens Services,Children's Social Care,Support Service and Management Costs,Schools Catering,Kitchen Supplies - Food and Beverages,13/07/2018,5066078,632.94,Thomas Ridley & Son Ltd
Childrens Services,Children's Social Care,Support Service and Management Costs,Schools Catering,Kitchen Supplies - Food and Beverages,13/07/2018,5066079,372.47,Thomas Ridley & Son Ltd
Childrens Services,Children's Social Care,Support Service and Management Costs,Schools Catering,Kitchen Supplies - Food and Beverages,13/07/2018,5066080,815.78,Thomas Ridley & Son Ltd
Childrens Services,Children's Social Care,Support Service and Management Costs,Schools Catering,Kitchen Supplies - Food and Beverages,13/07/2018,5066081,518.53,Thomas Ridley & Son Ltd
Childrens Services,Children's Social Care,Support Service and Management Costs,Schools Catering,Kitchen Supplies - Food and Beverages,13/07/2018,5066082,425.64,Thomas Ridley & Son Ltd
Childrens Services,Children's Social Care,Support Service and Management Costs,Schools Catering,Kitchen Supplies - Food and Beverages,13/07/2018,5066083,477.7,Thomas Ridley & Son Ltd
Childrens Services,Children's Social Care,Support Service and Management Costs,Schools Catering,Kitchen Supplies - Food and Beverages,13/07/2018,5066084,442.28,Thomas Ridley & Son Ltd
Childrens Services,Children's Social Care,Support Service and Management Costs,Schools Catering,Kitchen Supplies - Food and Beverages,13/07/2018,5066085,283.33,Thomas Ridley & Son Ltd
Childrens Services,Children's Social Care,Support Service and Management Costs,Schools Catering,Kitchen Supplies - Food and Beverages,13/07/2018,5066086,264.22,Thomas Ridley & Son Ltd
Childrens Services,Children's Social Care,Support Service and Management Costs,Schools Catering,Kitchen Supplies - Food and Beverages,13/07/2018,5066087,451,Thomas Ridley & Son Ltd
Childrens Services,Children's Social Care,Support Service and Management Costs,Schools Catering,Kitchen Supplies - Food and Beverages,13/07/2018,5066088,293.26,Thomas Ridley & Son Ltd
Childrens Services,Children's Social Care,Support Service and Management Costs,Schools Catering,Kitchen Supplies - Food and Beverages,13/07/2018,5066089,532.45,Thomas Ridley & Son Ltd
Childrens Services,Children's Social Care,Support Service and Management Costs,Schools Catering,Kitchen Supplies - Food and Beverages,13/07/2018,5066090,259.98,Thomas Ridley & Son Ltd
Childrens Services,Children's Social Care,Support Service and Management Costs,Schools Catering,Kitchen Supplies - Food and Beverages,13/07/2018,5066092,737.76,Thomas Ridley & Son Ltd
Childrens Services,Children's Social Care,Support Service and Management Costs,Schools Catering,Kitchen Supplies - Food and Beverages,13/07/2018,5066094,495.07,Thomas Ridley & Son Ltd
Childrens Services,Children's Social Care,Support Service and Management Costs,Schools Catering,Kitchen Supplies - Food and Beverages,13/07/2018,5066096,279.5,Thomas Ridley & Son Ltd
Childrens Services,Children's Social Care,Support Service and Management Costs,Schools Catering,Kitchen Supplies - Food and Beverages,13/07/2018,5066100,394.81,Thomas Ridley & Son Ltd
Childrens Services,Children's Social Care,Support Service and Management Costs,Schools Catering,Kitchen Supplies - Food and Beverages,13/07/2018,5066101,325.69,Thomas Ridley & Son Ltd
Childrens Services,Children's Social Care,Support Service and Management Costs,Schools Catering,Kitchen Supplies - Food and Beverages,13/07/2018,5066102,356.11,Thomas Ridley & Son Ltd
Childrens Services,Children's Social Care,Support Service and Management Costs,Schools Catering,Kitchen Supplies - Food and Beverages,13/07/2018,5066104,324.39,Thomas Ridley & Son Ltd
Childrens Services,Children's Social Care,Support Service and Management Costs,Swanlea,Kitchen Supplies - Food and Beverages,13/07/2018,5066105,779.27,Thomas Ridley & Son Ltd
Childrens Services,Children's Social Care,Support Service and Management Costs,Schools Catering,Kitchen Supplies - Food and Beverages,13/07/2018,5066108,313.81,Thomas Ridley & Son Ltd
Childrens Services,Children's Social Care,Support Service and Management Costs,Schools Catering,Kitchen Supplies - Food and Beverages,13/07/2018,5066110,311.85,Thomas Ridley & Son Ltd
Childrens Services,Children's Social Care,Support Service and Management Costs,Schools Catering,Kitchen Supplies - Food and Beverages,13/07/2018,5066111,810.09,Thomas Ridley & Son Ltd
Childrens Services,Children's Social Care,Support Service and Management Costs,Schools Catering,Kitchen Supplies - Food and Beverages,13/07/2018,5066112,424.04,Thomas Ridley & Son Ltd
Childrens Services,Children's Social Care,Support Service and Management Costs,Schools Catering,Kitchen Supplies - Food and Beverages,13/07/2018,5066113,250.72,Thomas Ridley & Son Ltd
Childrens Services,Children's Social Care,Support Service and Management Costs,Schools Catering,Kitchen Supplies - Food and Beverages,13/07/2018,5066114,351.24,Thomas Ridley & Son Ltd
Childrens Services,Children's Social Care,Support Service and Management Costs,Schools Catering,Kitchen Supplies - Food and Beverages,13/07/2018,5066118,307.58,Thomas Ridley & Son Ltd
Childrens Services,Children's Social Care,Support Service and Management Costs,Schools Catering,Kitchen Supplies - Food and Beverages,13/07/2018,5066119,403.52,Thomas Ridley & Son Ltd
Childrens Services,Children's Social Care,Support Service and Management Costs,Schools Catering,Kitchen Supplies - Food and Beverages,13/07/2018,5066120,595.64,Thomas Ridley & Son Ltd
Childrens Services,Children's Social Care,Support Service and Management Costs,Schools Catering,Kitchen Supplies - Food and Beverages,13/07/2018,5066121,351.24,Thomas Ridley & Son Ltd
Childrens Services,Children's Social Care,Support Service and Management Costs,Schools Catering,Kitchen Supplies - Food and Beverages,13/07/2018,5066123,487.2,Thomas Ridley & Son Ltd
Childrens Services,Children's Social Care,Support Service and Management Costs,Schools Catering,Kitchen Supplies - Food and Beverages,13/07/2018,5066124,871.61,Thomas Ridley & Son Ltd
Childrens Services,Children's Social Care,Support Service and Management Costs,Schools Catering,Kitchen Supplies - Food and Beverages,13/07/2018,5066125,666.9,Thomas Ridley & Son Ltd
Childrens Services,Children's Social Care,Support Service and Management Costs,Schools Catering,Kitchen Supplies - Food and Beverages,13/07/2018,5066126,330.02,Thomas Ridley & Son Ltd
Childrens Services,Children's Social Care,Support Service and Management Costs,Schools Catering,Kitchen Supplies - Food and Beverages,13/07/2018,5066130,684.72,Thomas Ridley & Son Ltd
Childrens Services,Children's Social Care,Support Service and Management Costs,Schools Catering,Kitchen Supplies - Food and Beverages,13/07/2018,5066131,489.13,Thomas Ridley & Son Ltd
Childrens Services,Children's Social Care,Support Service and Management Costs,Schools Catering,Kitchen Supplies - Food and Beverages,13/07/2018,5066133,349.77,Thomas Ridley & Son Ltd
Childrens Services,Children's Social Care,Support Service and Management Costs,"Mulberry Caf�		",Kitchen Supplies - Food and Beverages,13/07/2018,5066135,791.92,Thomas Ridley & Son Ltd
Childrens Services,Children's Social Care,Support Service and Management Costs,Schools Catering,Kitchen Supplies - Food and Beverages,13/07/2018,5066136,299.7,Thomas Ridley & Son Ltd
Childrens Services,Children's Social Care,Support Service and Management Costs,Schools Catering,Kitchen Supplies - Food and Beverages,13/07/2018,5066138,442.39,Thomas Ridley & Son Ltd
Childrens Services,Children's Social Care,Support Service and Management Costs,Schools Catering,Kitchen Supplies - Food and Beverages,13/07/2018,5066141,298.86,Thomas Ridley & Son Ltd
Childrens Services,Children's Social Care,Support Service and Management Costs,Schools Catering,Kitchen Supplies - Food and Beverages,13/07/2018,5066142,418.18,Thomas Ridley & Son Ltd
Childrens Services,Children's Social Care,Support Service and Management Costs,Schools Catering,Kitchen Supplies - Food and Beverages,13/07/2018,5066143,547.63,Thomas Ridley & Son Ltd
Childrens Services,Children's Social Care,Support Service and Management Costs,Schools Catering,Kitchen Supplies - Food and Beverages,13/07/2018,5066144,300.99,Thomas Ridley & Son Ltd
Childrens Services,Children's Social Care,Support Service and Management Costs,Schools Catering,Kitchen Supplies - Food and Beverages,13/07/2018,5066145,"1,040.47",Thomas Ridley & Son Ltd
Childrens Services,Children's Social Care,Support Service and Management Costs,Schools Catering,Kitchen Supplies - Food and Beverages,13/07/2018,5066146,844.94,Thomas Ridley & Son Ltd
Childrens Services,Children's Social Care,Support Service and Management Costs,Schools Catering,Kitchen Supplies - Food and Beverages,13/07/2018,5066147,253.7,Thomas Ridley & Son Ltd
Childrens Services,Children's Social Care,Support Service and Management Costs,Schools Catering,Kitchen Supplies - Food and Beverages,13/07/2018,5066148,295.3,Thomas Ridley & Son Ltd
Childrens Services,Children's Social Care,Support Service and Management Costs,Schools Catering,Kitchen Supplies - Food and Beverages,13/07/2018,5066297,316.3,William White Meats Ltd
Childrens Services,Children's Social Care,Support Service and Management Costs,Schools Catering,Kitchen Supplies - Food and Beverages,13/07/2018,5066315,262.15,William White Meats Ltd
Childrens Services,Children's Social Care,Support Service and Management Costs,Welfare Catering,Kitchen Supplies - Food and Beverages,13/07/2018,5066317,267.84,William White Meats Ltd
Childrens Services,Children's Social Care,Support Service and Management Costs,Schools Catering,Kitchen Supplies - Food and Beverages,13/07/2018,5066341,475.5,William White Meats Ltd
Childrens Services,Children's Social Care,Support Service and Management Costs,Schools Catering,Kitchen Supplies - Food and Beverages,13/07/2018,5066347,260.1,William White Meats Ltd
Childrens Services,Children's Social Care,Support Service and Management Costs,Schools Catering,Kitchen Supplies - Food and Beverages,13/07/2018,5066355,399.97,William White Meats Ltd
Childrens Services,Children's Social Care,Support Service and Management Costs,Sch. Meals A/c - Central Production Unit,Kitchen Supplies - Food and Beverages,13/07/2018,5066364,"1,756.53",William White Meats Ltd
Childrens Services,Children's Social Care,Support Service and Management Costs,Schools Catering,Kitchen Supplies - Food and Beverages,13/07/2018,5066365,402.04,William White Meats Ltd
Childrens Services,Children's Social Care,Support Service and Management Costs,Schools Catering,Kitchen Supplies - Food and Beverages,13/07/2018,5066368,250.39,William White Meats Ltd
Childrens Services,Children's Social Care,Children Looked After,S23 Fam Pl P&V-F/Care,Childrens Act Section 23 - Placement Fee,13/07/2018,5066411,"3,220.20",Quality Foster Care Ltd
Childrens Services,Children's Social Care,Support Service and Management Costs,Schools Catering,Kitchen Supplies - Food and Beverages,13/07/2018,5069935,313.3,Pelican Rouge Coffee Solutions Ltd
Childrens Services,Education Services,Other Strategic Functions,High Needs Academies & Free Schs,Third Party Payments - Payments to Schools,13/07/2018,5069959,"12,947.63",St Michael's Catholic College
Childrens Services,Education Services,Other Strategic Functions,High Needs Academies & Free Schs,Third Party Payments - Payments to Schools,13/07/2018,5069960,"8,631.75",St Michael's Catholic College
Childrens Services,Cultural and Related Services,Culture & Heritage,Arts-Park Events,Events & Exhibition Supplies,13/07/2018,5069988,"2,078.50",ENTERTEE HIRE SERVICES LTD
Childrens Services,Children's Social Care,Support Service and Management Costs,Sch. Meals A/c - Bow School,Kitchen Supplies - Food and Beverages,13/07/2018,5069994,402.9,Tiffin Sandwiches
Childrens Services,Children's Social Care,Support Service and Management Costs,Sch. Meals A/c - C.F.S. Upper (Harley Grove),Catering - Hospitality,13/07/2018,5069995,426.6,Tiffin Sandwiches
Childrens Services,Children's Social Care,Support Service and Management Costs,Sch. Meals A/c - George Green,Kitchen Supplies - Food and Beverages,13/07/2018,5069996,316,Tiffin Sandwiches
Childrens Services,Children's Social Care,Support Service and Management Costs,Sch. Meals A/c - Langdon Park,Kitchen Supplies - Food and Beverages,13/07/2018,5069997,285.19,Tiffin Sandwiches
Childrens Services,Children's Social Care,Support Service and Management Costs,Sch. Meals A/c - Morpeth,Kitchen Supplies - Food and Beverages,13/07/2018,5069998,513.5,Tiffin Sandwiches
Childrens Services,Children's Social Care,Support Service and Management Costs,Sch. Meals A/c - Mulberry,Kitchen Supplies - Food and Beverages,13/07/2018,5069999,389.47,Tiffin Sandwiches
Childrens Services,Children's Social Care,Support Service and Management Costs,"Mulberry Caf�		",Kitchen Supplies - Food and Beverages,13/07/2018,5070004,389.99,Tiffin Sandwiches
Childrens Services,Cultural and Related Services,Open Spaces,Parks & Open Spaces Man&Admin,Repairs and Maintenance - Responsive - Buildings,13/07/2018,5070010,"1,360.00",J&L Coster (Drainage) Ltd
Childrens Services,Children's Social Care,Children Looked After,Virtual School PPG,Third Party Payments - Payments to Schools,13/07/2018,5070220,600,Brampton Primary School
Childrens Services,Children's Social Care,Children Looked After,S23 Fam Pl P&V-F/Care,Childrens Act Section 23 - Placement Fee,13/07/2018,5070252,"3,750.00",Ryancare Fostering Ltd
Childrens Services,Education Services,Early Years,Mowlem CC,Computing - Purchase of Software,13/07/2018,5070257,465.73,Specialist Computer Centres PLC
Childrens Services,Children's Social Care,Support Service and Management Costs,Schools Catering,Kitchen Supplies - Food and Beverages,13/07/2018,5070753,338.8,William White Meats Ltd
Childrens Services,Children's Social Care,Support Service and Management Costs,Schools Catering,Kitchen Supplies - Food and Beverages,13/07/2018,5070755,420.16,William White Meats Ltd
Childrens Services,Children's Social Care,Support Service and Management Costs,Schools Catering,Kitchen Supplies - Food and Beverages,13/07/2018,5070757,478.67,William White Meats Ltd
Childrens Services,Children's Social Care,Support Service and Management Costs,Schools Catering,Kitchen Supplies - Food and Beverages,13/07/2018,5070764,842.08,William White Meats Ltd
Childrens Services,Children's Social Care,Support Service and Management Costs,Schools Catering,Kitchen Supplies - Food and Beverages,13/07/2018,5070766,585.32,William White Meats Ltd
Childrens Services,Children's Social Care,Support Service and Management Costs,Schools Catering,Kitchen Supplies - Food and Beverages,13/07/2018,5070768,322.77,William White Meats Ltd
Childrens Services,Children's Social Care,Support Service and Management Costs,Schools Catering,Kitchen Supplies - Food and Beverages,13/07/2018,5070774,462.71,William White Meats Ltd
Childrens Services,Children's Social Care,Support Service and Management Costs,Schools Catering,Kitchen Supplies - Food and Beverages,13/07/2018,5070777,338.8,William White Meats Ltd
Childrens Services,Children's Social Care,Support Service and Management Costs,Schools Catering,Kitchen Supplies - Food and Beverages,13/07/2018,5070780,402.05,William White Meats Ltd
Childrens Services,Children's Social Care,Support Service and Management Costs,Schools Catering,Kitchen Supplies - Food and Beverages,13/07/2018,5070782,291.58,William White Meats Ltd
Childrens Services,Children's Social Care,Support Service and Management Costs,Schools Catering,Kitchen Supplies - Food and Beverages,13/07/2018,5070784,301.55,William White Meats Ltd
Childrens Services,Children's Social Care,Support Service and Management Costs,Schools Catering,Kitchen Supplies - Food and Beverages,13/07/2018,5070785,310.79,William White Meats Ltd
Childrens Services,Children's Social Care,Support Service and Management Costs,Schools Catering,Kitchen Supplies - Food and Beverages,13/07/2018,5070793,316.74,William White Meats Ltd
Childrens Services,Children's Social Care,Support Service and Management Costs,Schools Catering,Kitchen Supplies - Food and Beverages,13/07/2018,5070795,505.03,William White Meats Ltd
Childrens Services,Children's Social Care,Support Service and Management Costs,Schools Catering,Kitchen Supplies - Food and Beverages,13/07/2018,5070796,685.37,William White Meats Ltd
Childrens Services,Children's Social Care,Support Service and Management Costs,Schools Catering,Kitchen Supplies - Food and Beverages,13/07/2018,5070799,823.92,William White Meats Ltd
Childrens Services,Children's Social Care,Support Service and Management Costs,Schools Catering,Kitchen Supplies - Food and Beverages,13/07/2018,5070800,287.42,William White Meats Ltd
Childrens Services,Children's Social Care,Support Service and Management Costs,Schools Catering,Kitchen Supplies - Food and Beverages,13/07/2018,5070803,304.09,William White Meats Ltd
Childrens Services,Children's Social Care,Support Service and Management Costs,Schools Catering,Kitchen Supplies - Food and Beverages,13/07/2018,5070806,453.32,William White Meats Ltd
Childrens Services,Children's Social Care,Support Service and Management Costs,Schools Catering,Kitchen Supplies - Food and Beverages,13/07/2018,5070817,388.02,William White Meats Ltd
Childrens Services,Children's Social Care,Support Service and Management Costs,Schools Catering,Kitchen Supplies - Food and Beverages,13/07/2018,5070819,366.21,William White Meats Ltd
Childrens Services,Children's Social Care,Support Service and Management Costs,Schools Catering,Kitchen Supplies - Food and Beverages,13/07/2018,5070821,332.28,William White Meats Ltd
Childrens Services,Children's Social Care,Support Service and Management Costs,Schools Catering,Kitchen Supplies - Food and Beverages,13/07/2018,5070822,263.3,William White Meats Ltd
Childrens Services,Children's Social Care,Support Service and Management Costs,Schools Catering,Kitchen Supplies - Food and Beverages,13/07/2018,5070824,466.21,William White Meats Ltd
Childrens Services,Education Services,Other Strategic Functions,Alternative Provision,Third Party Payments - Contingencies,13/07/2018,5070978,416,Right Choice
Childrens Services,Education Services,Other Strategic Functions,Alternative Provision,Third Party Payments - Contingencies,13/07/2018,5070978,300,Right Choice
Childrens Services,Education Services,Other Strategic Functions,Alternative Provision,Third Party Payments - Contingencies,13/07/2018,5070978,350,Right Choice
Childrens Services,Education Services,Other Strategic Functions,Alternative Provision,Third Party Payments - Contingencies,13/07/2018,5070978,"2,850.00",Right Choice
Childrens Services,Cultural and Related Services,Culture & Heritage,Arts-Park Events,Non Staff Advertising - General,13/07/2018,5072250,"2,070.00",Beta Distribution (South) Ltd t/a London Letterbox Marketing
Childrens Services,Cultural and Related Services,Culture & Heritage,Arts-Park Events,Non Staff Advertising - General,13/07/2018,5072251,402.5,Beta Distribution (South) Ltd t/a London Letterbox Marketing
Childrens Services,Children's Social Care,Family Support Services,IPST S17 NRPF,Childrens Act Section 17 - Other Placements Bed & Breakfast,13/07/2018,5073282,"1,540.00",Joy Enterprises LTD
Childrens Services,Children's Social Care,Children Looked After,S23-Resi-P&V/OLA-Child Home,Childrens Act Section 23 - Placement Fee,13/07/2018,5074200,"17,748.21",Castle Homes Care Ltd
Childrens Services,Education Services,Other Strategic Functions,SEN External Travel,Non Staff Transport Costs - Reimbursement,13/07/2018,5077579,"31,640.00",Mile End Car Hire Limited
Childrens Services,Education Services,Other Strategic Functions,Pupil & Student Services GF,Non Staff Transport Costs - Reimbursement,13/07/2018,5077613,"2,734.00",Lindel Services LTD - T/A Fox Transport
Childrens Services,Education Services,Other Strategic Functions,SEN External Travel,Non Staff Transport Costs - Reimbursement,13/07/2018,5077614,"80,961.00",Lindel Services LTD - T/A Fox Transport
Childrens Services,Education Services,Other Strategic Functions,Ofsted Improvement Plan,Third Party Payments - Voluntary Associations,13/07/2018,5077619,365,STONEWALL
Childrens Services,Children's Social Care,Children Looked After,Children Looked After Sect 17,Childrens Act Section 17 - Maintenance/Subsistence,13/07/2018,5077666,"1,350.00",George IV Regency Hotel
Childrens Services,Education Services,Secondary Schools,PFI Hldg Account-Grouped Schoo,Payments to Private Contractors - Other Contractors,13/07/2018,5077782,"23,517.78",Tower Hamlets Schools LTD
Childrens Services,Education Services,Secondary Schools,PFI Hldg Account-Grouped Schoo,Payments to Private Contractors - Other Contractors,13/07/2018,5077783,"33,571.42",Tower Hamlets Schools LTD
Childrens Services,Children's Social Care,Family Support Services,Short Breaks and Family Support,Third Party Payments - Voluntary Associations,13/07/2018,5078690,"44,166.66",QALB Centre Short Break Services
Childrens Services,Children's Social Care,Other Children's and Family Services,Permanancy and Adoption Support Team 1,Social Care - Others,13/07/2018,5078722,"1,524.25",Coram Academy Ltd T/A CoramBAAF
Childrens Services,Education Services,Other Strategic Functions,Music Trading Account,Meeting Expenses,13/07/2018,5080217,"4,550.00",Queen Mary University of London
Childrens Services,Education Services,Other Strategic Functions,SEN External Travel,Non Staff Transport Costs - Reimbursement,13/07/2018,5080231,"2,200.00",IHS Corporation Ltd
Childrens Services,Education Services,Other Strategic Functions,SEN External Travel,Non Staff Transport Costs - Reimbursement,13/07/2018,5080232,"22,267.00",Healthcare and Transport Services Group Ltd
Childrens Services,Education Services,Other Strategic Functions,Alternative Provision,Third Party Payments - Contingencies,13/07/2018,5080240,"2,500.00",Barking & Dagenham College
Childrens Services,Children's Social Care,Children Looked After,S23 Fam Pl In-Hse-Placed Home,Childrens Act Section 23 - Medical Expenses,13/07/2018,5080246,765,E4 Law Limited T/A Lextox
Childrens Services,Children's Social Care,Children Looked After,S23 Fam Pl P&V-F/Care,Childrens Act Section 23 - All Contact Expenses,13/07/2018,5080271,360,Unique Contact and Community Services
Childrens Services,Children's Social Care,Children Looked After,Fostering and Development Team 1,Events & Exhibition Supplies,13/07/2018,5080504,"3,000.00",TOWER HAMLETS FOSTER CARERS ASSOCIATION
Childrens Services,Children's Social Care,Children Looked After,Fostering and Development Team 2,Events & Exhibition Supplies,13/07/2018,5080504,"3,000.00",TOWER HAMLETS FOSTER CARERS ASSOCIATION
Childrens Services,Children's Social Care,Youth Justice,Youth Justice Team,Third Party Payments - Associations,13/07/2018,5080634,500,London Borough of Barnet
Childrens Services,Education Services,Secondary Schools,PFI Hldg Account-Mulberry Scho,Payments to Private Contractors - Other Contractors,13/07/2018,5080687,"3,436.00",D4E Mulberry LTD
Childrens Services,Education Services,Secondary Schools,PFI Hldg Account-Mulberry Scho,Payments to Private Contractors - Other Contractors,13/07/2018,5080688,-833.02,D4E Mulberry LTD
Childrens Services,Education Services,Secondary Schools,PFI Hldg Account-Mulberry Scho,Payments to Private Contractors - Other Contractors,13/07/2018,5080689,"-11,025.94",D4E Mulberry LTD
Childrens Services,Education Services,Secondary Schools,PFI Hldg Account-Mulberry Scho,Payments to Private Contractors - Other Contractors,13/07/2018,5080691,"189,867.46",D4E Mulberry LTD
Childrens Services,Education Services,Secondary Schools,PFI Hldg Account-Mulberry Scho,Payments to Private Contractors - Other Contractors,13/07/2018,5080692,"7,555.56",D4E Mulberry LTD
Childrens Services,Education Services,Secondary Schools,PFI Hldg Account-Mulberry Scho,Payments to Private Contractors - Other Contractors,13/07/2018,5080693,"7,555.56",D4E Mulberry LTD
Childrens Services,Children's Social Care,Family Support Services,CNN Pool: Children Direct Paym,Social Care - Direct Payments,13/07/2018,5080751,"1,469.20",DH TOWER HAMLETS
Childrens Services,Cultural and Related Services,Open Spaces,Mile End Park,Repairs and Maintenance - Responsive - Buildings,16/07/2018,5066372,740,JC Coster (Metalworks) Ltd
Childrens Services,Cultural and Related Services,Open Spaces,Parks & Open Spaces Man&Admin,Repairs and Maintenance - Responsive - Buildings,16/07/2018,5066373,700,JC Coster (Metalworks) Ltd
Childrens Services,Children's Social Care,Support Service and Management Costs,Sch. Meals A/c - Central Production Unit,Kitchen Supplies - Food and Beverages,16/07/2018,5066494,"1,335.43",Thomas Ridley & Son Ltd
Childrens Services,Children's Social Care,Support Service and Management Costs,Schools Catering,Kitchen Supplies - Food and Beverages,16/07/2018,5066498,250.74,Thomas Ridley & Son Ltd
Childrens Services,Children's Social Care,Support Service and Management Costs,Schools Catering,Kitchen Supplies - Food and Beverages,16/07/2018,5066501,403,Thomas Ridley & Son Ltd
Childrens Services,Children's Social Care,Support Service and Management Costs,Schools Catering,Kitchen Supplies - Food and Beverages,16/07/2018,5066502,822.03,Thomas Ridley & Son Ltd
Childrens Services,Children's Social Care,Support Service and Management Costs,Schools Catering,Kitchen Supplies - Food and Beverages,16/07/2018,5066505,263.49,Thomas Ridley & Son Ltd
Childrens Services,Children's Social Care,Support Service and Management Costs,Schools Catering,Kitchen Supplies - Food and Beverages,16/07/2018,5066522,371.19,Prescott-Thomas LTD.
Childrens Services,Children's Social Care,Support Service and Management Costs,Schools Catering,Kitchen Supplies - Food and Beverages,16/07/2018,5066527,340.43,Prescott-Thomas LTD.
Childrens Services,Children's Social Care,Support Service and Management Costs,Schools Catering,Kitchen Supplies - Food and Beverages,16/07/2018,5066538,296.06,Prescott-Thomas LTD.
Childrens Services,Children's Social Care,Support Service and Management Costs,Schools Catering,Kitchen Supplies - Food and Beverages,16/07/2018,5066547,250.39,Prescott-Thomas LTD.
Childrens Services,Children's Social Care,Support Service and Management Costs,Schools Catering,Kitchen Supplies - Food and Beverages,16/07/2018,5066557,306.32,Prescott-Thomas LTD.
Childrens Services,Cultural and Related Services,Open Spaces,Victoria Park,Repairs and Maintenance - Responsive - Repair & Maintenance,16/07/2018,5068797,"1,410.00",Broxap Ltd
Childrens Services,Children's Social Care,Support Service and Management Costs,Schools Catering,Kitchen Supplies - Food and Beverages,16/07/2018,5068851,489.04,Thomas Ridley & Son Ltd
Childrens Services,Children's Social Care,Support Service and Management Costs,Schools Catering,Kitchen Supplies - Food and Beverages,16/07/2018,5068855,706.59,Thomas Ridley & Son Ltd
Childrens Services,Children's Social Care,Support Service and Management Costs,Schools Catering,Kitchen Supplies - Food and Beverages,16/07/2018,5068856,250.85,Thomas Ridley & Son Ltd
Childrens Services,Children's Social Care,Support Service and Management Costs,Schools Catering,Kitchen Supplies - Food and Beverages,16/07/2018,5068857,719.81,Thomas Ridley & Son Ltd
Childrens Services,Children's Social Care,Support Service and Management Costs,Schools Catering,Kitchen Supplies - Food and Beverages,16/07/2018,5068859,257.75,Thomas Ridley & Son Ltd
Childrens Services,Children's Social Care,Support Service and Management Costs,Schools Catering,Kitchen Supplies - Food and Beverages,16/07/2018,5068860,319.33,Thomas Ridley & Son Ltd
Childrens Services,Children's Social Care,Support Service and Management Costs,Schools Catering,Kitchen Supplies - Food and Beverages,16/07/2018,5068862,408.53,Thomas Ridley & Son Ltd
Childrens Services,Children's Social Care,Support Service and Management Costs,Schools Catering,Kitchen Supplies - Food and Beverages,16/07/2018,5068864,628.45,Thomas Ridley & Son Ltd
Childrens Services,Children's Social Care,Support Service and Management Costs,Schools Catering,Kitchen Supplies - Food and Beverages,16/07/2018,5068866,311.63,Thomas Ridley & Son Ltd
Childrens Services,Children's Social Care,Support Service and Management Costs,Schools Catering,Kitchen Supplies - Food and Beverages,16/07/2018,5068867,651,Thomas Ridley & Son Ltd
Childrens Services,Children's Social Care,Support Service and Management Costs,Schools Catering,Kitchen Supplies - Food and Beverages,16/07/2018,5068868,379.24,Thomas Ridley & Son Ltd
Childrens Services,Children's Social Care,Support Service and Management Costs,Schools Catering,Kitchen Supplies - Food and Beverages,16/07/2018,5068869,518.59,Thomas Ridley & Son Ltd
Childrens Services,Children's Social Care,Support Service and Management Costs,Schools Catering,Kitchen Supplies - Food and Beverages,16/07/2018,5068870,404,Thomas Ridley & Son Ltd
Childrens Services,Children's Social Care,Support Service and Management Costs,Sch. Meals A/c - Central Production Unit,Kitchen Supplies - Food and Beverages,16/07/2018,5068871,347.07,Thomas Ridley & Son Ltd
Childrens Services,Children's Social Care,Support Service and Management Costs,Schools Catering,Kitchen Supplies - Food and Beverages,16/07/2018,5068872,602.63,Thomas Ridley & Son Ltd
Childrens Services,Children's Social Care,Support Service and Management Costs,Schools Catering,Kitchen Supplies - Food and Beverages,16/07/2018,5068873,613.71,Thomas Ridley & Son Ltd
Childrens Services,Children's Social Care,Support Service and Management Costs,Schools Catering,Kitchen Supplies - Food and Beverages,16/07/2018,5068875,294.35,Thomas Ridley & Son Ltd
Childrens Services,Children's Social Care,Support Service and Management Costs,Schools Catering,Kitchen Supplies - Food and Beverages,16/07/2018,5068876,969.38,Thomas Ridley & Son Ltd
Childrens Services,Children's Social Care,Support Service and Management Costs,Schools Catering,Kitchen Supplies - Food and Beverages,16/07/2018,5068877,372.83,Thomas Ridley & Son Ltd
Childrens Services,Children's Social Care,Support Service and Management Costs,Schools Catering,Kitchen Supplies - Food and Beverages,16/07/2018,5068878,760.67,Thomas Ridley & Son Ltd
Childrens Services,Children's Social Care,Support Service and Management Costs,Schools Catering,Kitchen Supplies - Food and Beverages,16/07/2018,5068879,474.07,Thomas Ridley & Son Ltd
Childrens Services,Children's Social Care,Support Service and Management Costs,Schools Catering,Kitchen Supplies - Food and Beverages,16/07/2018,5068880,624.86,Thomas Ridley & Son Ltd
Childrens Services,Children's Social Care,Support Service and Management Costs,Schools Catering,Kitchen Supplies - Food and Beverages,16/07/2018,5068881,443,Thomas Ridley & Son Ltd
Childrens Services,Children's Social Care,Support Service and Management Costs,Schools Catering,Kitchen Supplies - Food and Beverages,16/07/2018,5068883,537.67,Thomas Ridley & Son Ltd
Childrens Services,Children's Social Care,Support Service and Management Costs,Schools Catering,Kitchen Supplies - Food and Beverages,16/07/2018,5068884,831.22,Thomas Ridley & Son Ltd
Childrens Services,Children's Social Care,Support Service and Management Costs,Schools Catering,Kitchen Supplies - Food and Beverages,16/07/2018,5068886,396.36,Thomas Ridley & Son Ltd
Childrens Services,Children's Social Care,Support Service and Management Costs,Schools Catering,Kitchen Supplies - Food and Beverages,16/07/2018,5068887,286.37,Thomas Ridley & Son Ltd
Childrens Services,Children's Social Care,Support Service and Management Costs,Schools Catering,Kitchen Supplies - Food and Beverages,16/07/2018,5068889,566.18,Thomas Ridley & Son Ltd
Childrens Services,Children's Social Care,Support Service and Management Costs,Sch. Meals A/c - Central Production Unit,Kitchen Supplies - Food and Beverages,16/07/2018,5068928,312.36,Prescott-Thomas LTD.
Childrens Services,Children's Social Care,Support Service and Management Costs,Schools Catering,Kitchen Supplies - Food and Beverages,16/07/2018,5068948,287.66,Prescott-Thomas LTD.
Childrens Services,Children's Social Care,Children Looked After,S23-Other-Semi-Ind. Unit,Childrens Act Section 23 - Placement Fee,16/07/2018,5069637,925,Real Life
Childrens Services,Children's Social Care,Children Looked After,S23-Other-Semi-Ind. Unit,Childrens Act Section 23 - Placement Fee,16/07/2018,5069638,925,Real Life
Childrens Services,Education Services,Other Strategic Functions,High Needs FE Colleges,Third Party Payments - Payments to Schools,16/07/2018,5069748,"1,674.64",Capel Manor College
Childrens Services,Children's Social Care,Support Service and Management Costs,Sch. Meals A/c - Central Production Unit,Kitchen Supplies - Food and Beverages,16/07/2018,5070814,337.75,William White Meats Ltd
Childrens Services,Cultural and Related Services,Culture & Heritage,Arts-Park Events,Events & Exhibition Supplies,16/07/2018,5070925,"4,000.00",Greenwich & Docklands Festival
Childrens Services,Cultural and Related Services,Culture & Heritage,Arts-Park Events,Events & Exhibition Supplies,16/07/2018,5070926,"19,999.20",Greenwich & Docklands Festival
Childrens Services,Cultural and Related Services,Open Spaces,Parks & Open Spaces Man&Admin,Repairs and Maintenance - Responsive - Buildings,16/07/2018,5072340,"2,680.00",J&L Coster (Drainage) Ltd
Childrens Services,Cultural and Related Services,Open Spaces,Mile End Park,Repairs and Maintenance - Responsive - Buildings,16/07/2018,5072341,450,J&L Coster (Drainage) Ltd
Childrens Services,Children's Social Care,Children Looked After,Leaving Care-UASC,Leaving Care Financial Assistance - Supported Living,16/07/2018,5072372,999.3,Newhaven 16 Plus
Childrens Services,Children's Social Care,Children Looked After,LCS/Allowances-Accom,Leaving Care Financial Assistance - Supp Accom/Hous Rents,16/07/2018,5072373,929.1,Newhaven 16 Plus
Childrens Services,Children's Social Care,Children Looked After,LCS/Allowances-Accom,Leaving Care Financial Assistance - Supported Living,16/07/2018,5072374,"3,570.60",Newhaven 16 Plus
Childrens Services,Children's Social Care,Children Looked After,LCS/Allowances-Accom,Leaving Care Financial Assistance - Supp Accom/Hous Rents,16/07/2018,5072375,-727.2,Newhaven 16 Plus
Childrens Services,Children's Social Care,Children Looked After,LCS/Allowances-Accom,Leaving Care Financial Assistance - Supp Accom/Hous Rents,16/07/2018,5072376,929.1,Newhaven 16 Plus
Childrens Services,Children's Social Care,Children Looked After,LCS/Allowances-Accom,Leaving Care Financial Assistance - Supported Living,16/07/2018,5072377,"3,570.60",Newhaven 16 Plus
Childrens Services,Children's Social Care,Children Looked After,LCS/Allowances-Accom,Leaving Care Financial Assistance - Supp Accom/Hous Rents,16/07/2018,5072381,"1,071.30",Newhaven 16 Plus
Childrens Services,Children's Social Care,Children Looked After,LCS/Allowances-Accom,Leaving Care Financial Assistance - Supported Living,16/07/2018,5072382,428.4,Newhaven 16 Plus
Childrens Services,Children's Social Care,Children Looked After,LCS/Allowances-Accom,Leaving Care Financial Assistance - Supp Accom/Hous Rents,16/07/2018,5072383,"1,071.30",Newhaven 16 Plus
Childrens Services,Children's Social Care,Children Looked After,LCS/Allowances-Accom,Leaving Care Financial Assistance - Supported Living,16/07/2018,5072384,428.4,Newhaven 16 Plus
Childrens Services,Education Services,Early Years,Marner. CC,Computing - Purchase of Software,16/07/2018,5074000,264.57,Specialist Computer Centres PLC
Childrens Services,Children's Social Care,Children Looked After,S23-Other-Mother & Baby Unit,Childrens Act Section 23 - Placement Fee,16/07/2018,5074022,468,Real Life
Childrens Services,Children's Social Care,Children Looked After,S23-Resi-P&V/OLA-Sec Acc-Wel,Childrens Act Section 23 - Non-Contact Trans/Travel Costs,16/07/2018,5074206,"3,455.25",Wrixon Care Services
Childrens Services,Children's Social Care,Children Looked After,S23 Fam Pl In-Hse-For Adopt,Childrens Act Section 23 - Spec Pymnts Legal,16/07/2018,5078043,"2,168.37",Glaisyers Solicitors
Childrens Services,Children's Social Care,Support Service and Management Costs,Schools Catering,Repairs and Maintenance - Responsive - General,16/07/2018,5078798,532,Lambourne Refrigeration
Childrens Services,Education Services,Other Strategic Functions,Auxilary Aids,Training Expenses - Staff External Training (UK Based),16/07/2018,5080631,429.4,Ewing Foundation
Childrens Services,Children's Social Care,Commissioning and Social Work,Advice and Assessment Section 17,Childrens Act Section 17 - Independent Sector Providers,16/07/2018,5080694,"1,142.90",Netpex
Childrens Services,Children's Social Care,Children Looked After,S23 Fam Pl P&V-F/Care,Childrens Act Section 23 - Placement Fee,16/07/2018,5081097,784,Swiis Foster Care Limited
Childrens Services,Children's Social Care,Services for young people,LAPS 1 - 8,Non Staff Transport Costs - Reimbursement,18/07/2018,5032777,"1,639.00",Tower Hamlets Community Transport
Childrens Services,Children's Social Care,Children Looked After,LCS/Allowances-Accom,Non Staff Transport Costs - Client Transport Costs,18/07/2018,5050264,420,Crown Promotions and Removals Ltd
Childrens Services,Children's Social Care,Children Looked After,LCS/Allowances-Accom,Non Staff Transport Costs - Client Transport Costs,18/07/2018,5050375,420,Crown Promotions and Removals Ltd
Childrens Services,Children's Social Care,Children Looked After,LCS/Allowances-Accom,Leaving Care Financial Assistance - Supported Living,18/07/2018,5057652,885.67,Newhaven 16 Plus
Childrens Services,Children's Social Care,Support Service and Management Costs,Schools Catering,Kitchen Supplies - Food and Beverages,18/07/2018,5068890,272.09,Thomas Ridley & Son Ltd
Childrens Services,Children's Social Care,Support Service and Management Costs,Schools Catering,Kitchen Supplies - Food and Beverages,18/07/2018,5068891,323.27,Thomas Ridley & Son Ltd
Childrens Services,Children's Social Care,Support Service and Management Costs,Schools Catering,Kitchen Supplies - Food and Beverages,18/07/2018,5068892,469.46,Thomas Ridley & Son Ltd
Childrens Services,Children's Social Care,Support Service and Management Costs,Schools Catering,Kitchen Supplies - Food and Beverages,18/07/2018,5068893,501.86,Thomas Ridley & Son Ltd
Childrens Services,Children's Social Care,Support Service and Management Costs,Swanlea,Kitchen Supplies - Food and Beverages,18/07/2018,5068894,662.03,Thomas Ridley & Son Ltd
Childrens Services,Children's Social Care,Support Service and Management Costs,Schools Catering,Kitchen Supplies - Food and Beverages,18/07/2018,5068895,509.3,Thomas Ridley & Son Ltd
Childrens Services,Children's Social Care,Support Service and Management Costs,Schools Catering,Kitchen Supplies - Food and Beverages,18/07/2018,5068897,308.83,Thomas Ridley & Son Ltd
Childrens Services,Children's Social Care,Support Service and Management Costs,Schools Catering,Kitchen Supplies - Food and Beverages,18/07/2018,5068898,295.88,Thomas Ridley & Son Ltd
Childrens Services,Children's Social Care,Support Service and Management Costs,Schools Catering,Kitchen Supplies - Food and Beverages,18/07/2018,5068899,670.34,Thomas Ridley & Son Ltd
Childrens Services,Children's Social Care,Support Service and Management Costs,Schools Catering,Kitchen Supplies - Food and Beverages,18/07/2018,5069648,"67,181.00",Thomas Ridley & Son Ltd
Childrens Services,Children's Social Care,Support Service and Management Costs,Schools Catering,Kitchen Supplies - Food and Beverages,18/07/2018,5069651,773.59,Thomas Ridley & Son Ltd
Childrens Services,Children's Social Care,Support Service and Management Costs,Schools Catering,Kitchen Supplies - Food and Beverages,18/07/2018,5069652,469.06,Thomas Ridley & Son Ltd
Childrens Services,Children's Social Care,Support Service and Management Costs,Schools Catering,Kitchen Supplies - Food and Beverages,18/07/2018,5069653,665.41,Thomas Ridley & Son Ltd
Childrens Services,Children's Social Care,Support Service and Management Costs,Schools Catering,Kitchen Supplies - Food and Beverages,18/07/2018,5069654,616.76,Thomas Ridley & Son Ltd
Childrens Services,Children's Social Care,Support Service and Management Costs,Schools Catering,Kitchen Supplies - Food and Beverages,18/07/2018,5069656,896.31,Thomas Ridley & Son Ltd
Childrens Services,Children's Social Care,Support Service and Management Costs,Schools Catering,Kitchen Supplies - Food and Beverages,18/07/2018,5069659,318.62,Thomas Ridley & Son Ltd
Childrens Services,Children's Social Care,Support Service and Management Costs,Schools Catering,Kitchen Supplies - Food and Beverages,18/07/2018,5069661,326.76,Thomas Ridley & Son Ltd
Childrens Services,Children's Social Care,Support Service and Management Costs,Schools Catering,Kitchen Supplies - Food and Beverages,18/07/2018,5069665,609.83,Thomas Ridley & Son Ltd
Childrens Services,Children's Social Care,Support Service and Management Costs,Schools Catering,Kitchen Supplies - Food and Beverages,18/07/2018,5069666,"1,227.40",Thomas Ridley & Son Ltd
Childrens Services,Children's Social Care,Support Service and Management Costs,Schools Catering,Kitchen Supplies - Food and Beverages,18/07/2018,5069667,532.19,Thomas Ridley & Son Ltd
Childrens Services,Children's Social Care,Support Service and Management Costs,Schools Catering,Kitchen Supplies - Food and Beverages,18/07/2018,5069668,305.34,Thomas Ridley & Son Ltd
Childrens Services,Children's Social Care,Support Service and Management Costs,Schools Catering,Kitchen Supplies - Food and Beverages,18/07/2018,5069669,482.94,Thomas Ridley & Son Ltd
Childrens Services,Children's Social Care,Support Service and Management Costs,Schools Catering,Kitchen Supplies - Food and Beverages,18/07/2018,5069670,635.4,Thomas Ridley & Son Ltd
Childrens Services,Children's Social Care,Support Service and Management Costs,Schools Catering,Kitchen Supplies - Food and Beverages,18/07/2018,5069671,378.12,Thomas Ridley & Son Ltd
Childrens Services,Children's Social Care,Support Service and Management Costs,Schools Catering,Kitchen Supplies - Food and Beverages,18/07/2018,5069673,442.08,Thomas Ridley & Son Ltd
Childrens Services,Children's Social Care,Support Service and Management Costs,Schools Catering,Kitchen Supplies - Food and Beverages,18/07/2018,5069674,384.48,Thomas Ridley & Son Ltd
Childrens Services,Children's Social Care,Support Service and Management Costs,Schools Catering,Kitchen Supplies - Food and Beverages,18/07/2018,5069676,299.92,Thomas Ridley & Son Ltd
Childrens Services,Children's Social Care,Support Service and Management Costs,Sch. Meals A/c - Central Production Unit,Kitchen Supplies - Food and Beverages,18/07/2018,5069679,"1,972.71",Thomas Ridley & Son Ltd
Childrens Services,Children's Social Care,Support Service and Management Costs,Schools Catering,Kitchen Supplies - Food and Beverages,18/07/2018,5069680,707.64,Thomas Ridley & Son Ltd
Childrens Services,Children's Social Care,Support Service and Management Costs,Schools Catering,Kitchen Supplies - Food and Beverages,18/07/2018,5069681,381.54,Thomas Ridley & Son Ltd
Childrens Services,Children's Social Care,Support Service and Management Costs,Schools Catering,Kitchen Supplies - Food and Beverages,18/07/2018,5069682,486.97,Thomas Ridley & Son Ltd
Childrens Services,Children's Social Care,Support Service and Management Costs,Schools Catering,Kitchen Supplies - Food and Beverages,18/07/2018,5069683,577.06,Thomas Ridley & Son Ltd
Childrens Services,Children's Social Care,Support Service and Management Costs,Schools Catering,Kitchen Supplies - Food and Beverages,18/07/2018,5069686,418.65,Thomas Ridley & Son Ltd
Childrens Services,Children's Social Care,Support Service and Management Costs,Schools Catering,Kitchen Supplies - Food and Beverages,18/07/2018,5069688,257.23,Thomas Ridley & Son Ltd
Childrens Services,Cultural and Related Services,Open Spaces,Parks & Open Spaces Man&Admin,Repairs and Maintenance - Responsive - Buildings,18/07/2018,5069919,"1,451.00",JC Coster (Metalworks) Ltd
Childrens Services,Children's Social Care,Children Looked After,Virtual School PPG,Agency Staff - Associations,18/07/2018,5070020,"1,009.80",Academics ltd
Childrens Services,Children's Social Care,Children Looked After,Virtual School PPG,Agency Staff - Associations,18/07/2018,5070021,"1,262.25",Academics ltd
Childrens Services,Children's Social Care,Children Looked After,Virtual School PPG,Agency Staff - Associations,18/07/2018,5070022,757.35,Academics ltd
Childrens Services,Children's Social Care,Children Looked After,Virtual School PPG,Agency Staff - Associations,18/07/2018,5070023,504.9,Academics ltd
Childrens Services,Children's Social Care,Children Looked After,Virtual School PPG,Agency Staff - Associations,18/07/2018,5070024,"1,009.80",Academics ltd
Childrens Services,Children's Social Care,Children Looked After,Virtual School PPG,Agency Staff - Associations,18/07/2018,5070025,757.35,Academics ltd
Childrens Services,Children's Social Care,Children Looked After,Virtual School PPG,Agency Staff - Associations,18/07/2018,5070026,"1,262.25",Academics ltd
Childrens Services,Children's Social Care,Support Service and Management Costs,Schools Catering,Kitchen Supplies - Food and Beverages,18/07/2018,5070061,305.67,Thomas Ridley & Son Ltd
Childrens Services,Children's Social Care,Support Service and Management Costs,Schools Catering,Kitchen Supplies - Food and Beverages,18/07/2018,5070063,516.69,Thomas Ridley & Son Ltd
Childrens Services,Children's Social Care,Support Service and Management Costs,Schools Catering,Kitchen Supplies - Food and Beverages,18/07/2018,5070064,649.1,Thomas Ridley & Son Ltd
Childrens Services,Children's Social Care,Support Service and Management Costs,Schools Catering,Kitchen Supplies - Food and Beverages,18/07/2018,5070066,292.96,Thomas Ridley & Son Ltd
Childrens Services,Children's Social Care,Support Service and Management Costs,Schools Catering,Kitchen Supplies - Food and Beverages,18/07/2018,5070067,"1,022.25",Thomas Ridley & Son Ltd
Childrens Services,Children's Social Care,Support Service and Management Costs,Schools Catering,Kitchen Supplies - Food and Beverages,18/07/2018,5070068,272.94,Thomas Ridley & Son Ltd
Childrens Services,Children's Social Care,Support Service and Management Costs,Schools Catering,Kitchen Supplies - Food and Beverages,18/07/2018,5070069,781.76,Thomas Ridley & Son Ltd
Childrens Services,Children's Social Care,Support Service and Management Costs,Schools Catering,Kitchen Supplies - Food and Beverages,18/07/2018,5070070,494.98,Thomas Ridley & Son Ltd
Childrens Services,Children's Social Care,Support Service and Management Costs,Schools Catering,Kitchen Supplies - Food and Beverages,18/07/2018,5070071,302.36,Thomas Ridley & Son Ltd
Childrens Services,Children's Social Care,Support Service and Management Costs,Schools Catering,Kitchen Supplies - Food and Beverages,18/07/2018,5070072,516,Thomas Ridley & Son Ltd
Childrens Services,Children's Social Care,Support Service and Management Costs,Swanlea,Kitchen Supplies - Food and Beverages,18/07/2018,5070073,519.8,Thomas Ridley & Son Ltd
Childrens Services,Children's Social Care,Service Strategy,CSC Childrens Resources M & A,Training Expenses - Staff External Training (UK Based),18/07/2018,5070080,525,L.A. Training
Childrens Services,Cultural and Related Services,Open Spaces,Mile End Park,Grounds Maintenance - Contract - Horticultural Maintenance,18/07/2018,5070253,568,Fresh Acres Nurseries Ltd
Childrens Services,Cultural and Related Services,Open Spaces,Parks & Open Spaces Man&Admin,Repairs and Maintenance - Responsive - Store Items,18/07/2018,5070254,649.4,Fresh Acres Nurseries Ltd
Childrens Services,Cultural and Related Services,Open Spaces,Parks & Open Spaces Man&Admin,Grounds Maintenance - Contract - Horticultural Maintenance,18/07/2018,5070255,351.5,Fresh Acres Nurseries Ltd
Childrens Services,Children's Social Care,Support Service and Management Costs,Schools Catering,Kitchen Supplies - Food and Beverages,18/07/2018,5070798,327.68,William White Meats Ltd
Childrens Services,Children's Social Care,Support Service and Management Costs,Schools Catering,Kitchen Supplies - Food and Beverages,18/07/2018,5070804,286.5,William White Meats Ltd
Childrens Services,Children's Social Care,Support Service and Management Costs,Schools Catering,Kitchen Supplies - Food and Beverages,18/07/2018,5070815,295.44,William White Meats Ltd
Childrens Services,Children's Social Care,Support Service and Management Costs,Welfare Catering,Kitchen Supplies - Food and Beverages,18/07/2018,5070835,259.81,William White Meats Ltd
Childrens Services,Children's Social Care,Support Service and Management Costs,Sch. Meals A/c - Central Production Unit,Kitchen Supplies - Food and Beverages,18/07/2018,5070857,688.75,William White Meats Ltd
Childrens Services,Children's Social Care,Support Service and Management Costs,Schools Catering,Kitchen Supplies - Food and Beverages,18/07/2018,5070865,351.85,William White Meats Ltd
Childrens Services,Cultural and Related Services,Culture & Heritage,Arts-Park Events,Events & Exhibition Supplies,18/07/2018,5070985,"5,000.00",Freelove Group Ltd
Childrens Services,Cultural and Related Services,Open Spaces,Mile End Park,Services - Professional Fees - Security Fees,18/07/2018,5070990,275.04,A P Security (North) LTD
Childrens Services,Cultural and Related Services,Open Spaces,Mile End Park,Services - Professional Fees - Security Fees,18/07/2018,5070991,305.6,A P Security (North) LTD
Childrens Services,Children's Social Care,Children Looked After,S23 Fam Pl P&V-F/Care,Childrens Act Section 23 - Placement Fee,18/07/2018,5071001,"3,044.40",Children First Fostering Agency LTD
Childrens Services,Children's Social Care,Children Looked After,S23 Fam Pl P&V-F/Care,Childrens Act Section 23 - Placement Fee,18/07/2018,5071002,"3,044.40",Children First Fostering Agency LTD
Childrens Services,Children's Social Care,Children Looked After,S23 Fam Pl P&V-F/Care,Childrens Act Section 23 - Placement Fee,18/07/2018,5071003,"3,071.40",Children First Fostering Agency LTD
Childrens Services,Children's Social Care,Support Service and Management Costs,Schools Catering,Materials - Cleaning Materials,18/07/2018,5072293,272.62,The Maintenance Supply Co Ltd
Childrens Services,Cultural and Related Services,Culture & Heritage,Arts-Park Events,Events & Exhibition Supplies,18/07/2018,5072329,"5,172.50",Freelove Group Ltd
Childrens Services,Children's Social Care,Children Looked After,LCS/Allowances-Accom,Leaving Care Financial Assistance - Supp Accom/Hous Rents,18/07/2018,5072378,"1,071.30",Newhaven 16 Plus
Childrens Services,Children's Social Care,Children Looked After,LCS/Allowances-Accom,Leaving Care Financial Assistance - Supp Accom/Hous Rents,18/07/2018,5072379,-749,Newhaven 16 Plus
Childrens Services,Children's Social Care,Children Looked After,LCS/Allowances-Accom,Leaving Care Financial Assistance - Supp Accom/Hous Rents,18/07/2018,5072385,-695.5,Newhaven 16 Plus
Childrens Services,Children's Social Care,Support Service and Management Costs,Schools Catering,Education & Training - Non Staff Tuition Fees,18/07/2018,5073315,460,Highfield Awarding Body for Compliance Ltd
Childrens Services,Cultural and Related Services,Open Spaces,Mile End Park,Repairs and Maintenance - Responsive - Buildings,18/07/2018,5073333,350,J&L Coster (Drainage) Ltd
Childrens Services,Cultural and Related Services,Open Spaces,Mile End Park,Repairs and Maintenance - Responsive - Buildings,18/07/2018,5073334,450,J&L Coster (Drainage) Ltd
Childrens Services,Adult Social Care,Support Service and Management Costs,Org Development L&D Training,Training Expenses - Staff External Training (UK Based),18/07/2018,5073927,"2,045.00",CIPD Enterprises Ltd
Childrens Services,Children's Social Care,Other Children's and Family Services,Permanancy and Adoption Support Team 2,Social Care - Others,18/07/2018,5073976,550,Coram Academy Ltd T/A CoramBAAF
Childrens Services,Children's Social Care,Children Looked After,S23-Other-Semi-Ind. Unit,Childrens Act Section 23 - Placement Fee,18/07/2018,5073988,"5,669.70",EMPOWERHOUSE ltd
Childrens Services,Education Services,Other Strategic Functions,Education Psychologists GF,Newspapers and Magazines - General Purchases,18/07/2018,5074203,"1,400.25",Pearson Education Ltd
Childrens Services,Children's Social Care,Commissioning and Social Work,Advice & Assesment M & A,Services - Professional Fees - Financial Services Fees,18/07/2018,5074732,"2,000.00",LONDON BOROUGH OF ISLINGTON
Childrens Services,Children's Social Care,Support Service and Management Costs,Sch. Meals A/c - Culloden,Repairs and Maintenance - Responsive - General,18/07/2018,5078800,"1,295.00",Lambourne Refrigeration
Childrens Services,Children's Social Care,Children Looked After,LCS/Allowances-Accom,Education & Training - Non Staff Tuition Fees,18/07/2018,5078960,435,Prospero Group Ltd
Childrens Services,Children's Social Care,Children Looked After,LCS/Allowances-Accom,Education & Training - Non Staff Tuition Fees,18/07/2018,5078961,580,Prospero Group Ltd
Childrens Services,Children's Social Care,Children Looked After,LCS/Allowances-Accom,Education & Training - Non Staff Tuition Fees,18/07/2018,5078962,464,Prospero Group Ltd
Childrens Services,Children's Social Care,Children Looked After,LCS/Allowances-Accom,Education & Training - Non Staff Tuition Fees,18/07/2018,5078964,348,Prospero Group Ltd
Childrens Services,Children's Social Care,Children Looked After,LCS/Allowances-Accom,Education & Training - Non Staff Tuition Fees,18/07/2018,5078965,928,Prospero Group Ltd
Childrens Services,Children's Social Care,Children Looked After,LCS/Allowances-Accom,Education & Training - Non Staff Tuition Fees,18/07/2018,5078966,348,Prospero Group Ltd
Childrens Services,Children's Social Care,Children Looked After,LCS/Allowances-Accom,Education & Training - Non Staff Tuition Fees,18/07/2018,5078967,348,Prospero Group Ltd
Childrens Services,Children's Social Care,Children Looked After,LCS/Allowances-Accom,Education & Training - Non Staff Tuition Fees,18/07/2018,5078968,348,Prospero Group Ltd
Childrens Services,Children's Social Care,Children Looked After,LCS/Allowances-Accom,Education & Training - Non Staff Tuition Fees,18/07/2018,5078969,870,Prospero Group Ltd
Childrens Services,Children's Social Care,Children Looked After,LCS/Allowances-Accom,Education & Training - Non Staff Tuition Fees,18/07/2018,5078971,870,Prospero Group Ltd
Childrens Services,Children's Social Care,Children Looked After,LCS/Allowances-Accom,Education & Training - Non Staff Tuition Fees,18/07/2018,5078972,855.5,Prospero Group Ltd
Childrens Services,Children's Social Care,Children Looked After,LCS/Allowances-Accom,Education & Training - Non Staff Tuition Fees,18/07/2018,5078973,870,Prospero Group Ltd
Childrens Services,Children's Social Care,Children Looked After,LCS/Allowances-Accom,Education & Training - Non Staff Tuition Fees,18/07/2018,5078974,932,Prospero Group Ltd
Childrens Services,Children's Social Care,Children Looked After,LCS/Allowances-Accom,Education & Training - Non Staff Tuition Fees,18/07/2018,5078975,580,Prospero Group Ltd
Childrens Services,Children's Social Care,Children Looked After,LCS/Allowances-Accom,Education & Training - Non Staff Tuition Fees,18/07/2018,5078976,870,Prospero Group Ltd
Childrens Services,Children's Social Care,Children Looked After,LCS/Allowances-Accom,Education & Training - Non Staff Tuition Fees,18/07/2018,5078977,435,Prospero Group Ltd
Childrens Services,Children's Social Care,Children Looked After,LCS/Allowances-Accom,Education & Training - Non Staff Tuition Fees,18/07/2018,5078978,870,Prospero Group Ltd
Childrens Services,Children's Social Care,Children Looked After,LCS/Allowances-Accom,Education & Training - Non Staff Tuition Fees,18/07/2018,5078979,696,Prospero Group Ltd
Childrens Services,Children's Social Care,Children Looked After,LCS/Allowances-Accom,Education & Training - Non Staff Tuition Fees,18/07/2018,5078980,696,Prospero Group Ltd
Childrens Services,Children's Social Care,Children Looked After,LCS/Allowances-Accom,Education & Training - Non Staff Tuition Fees,18/07/2018,5078983,870,Prospero Group Ltd
Childrens Services,Children's Social Care,Children Looked After,LCS/Allowances-Accom,Education & Training - Non Staff Tuition Fees,18/07/2018,5078984,348,Prospero Group Ltd
Childrens Services,Children's Social Care,Children Looked After,LCS/Allowances-Accom,Education & Training - Non Staff Tuition Fees,18/07/2018,5078985,435,Prospero Group Ltd
Childrens Services,Children's Social Care,Children Looked After,LCS/Allowances-Accom,Education & Training - Non Staff Tuition Fees,18/07/2018,5078986,870,Prospero Group Ltd
Childrens Services,Children's Social Care,Children Looked After,LCS/Allowances-Accom,Education & Training - Non Staff Tuition Fees,18/07/2018,5078988,348,Prospero Group Ltd
Childrens Services,Children's Social Care,Children Looked After,LCS/Allowances-Accom,Education & Training - Non Staff Tuition Fees,18/07/2018,5078989,348,Prospero Group Ltd
Childrens Services,Children's Social Care,Children Looked After,LCS/Allowances-Accom,Education & Training - Non Staff Tuition Fees,18/07/2018,5078991,"1,102.00",Prospero Group Ltd
Childrens Services,Children's Social Care,Children Looked After,LCS/Allowances-Accom,Education & Training - Non Staff Tuition Fees,18/07/2018,5080189,870,Prospero Group Ltd
Childrens Services,Children's Social Care,Children Looked After,LCS/Allowances-Accom,Education & Training - Non Staff Tuition Fees,18/07/2018,5080190,870,Prospero Group Ltd
Childrens Services,Children's Social Care,Children Looked After,LCS/Allowances-Accom,Education & Training - Non Staff Tuition Fees,18/07/2018,5080191,348,Prospero Group Ltd
Childrens Services,Children's Social Care,Children Looked After,LCS/Allowances-Accom,Education & Training - Non Staff Tuition Fees,18/07/2018,5080192,870,Prospero Group Ltd
Childrens Services,Children's Social Care,Children Looked After,LCS/Allowances-Accom,Education & Training - Non Staff Tuition Fees,18/07/2018,5080193,870,Prospero Group Ltd
Childrens Services,Children's Social Care,Children Looked After,LCS/Allowances-Accom,Education & Training - Non Staff Tuition Fees,18/07/2018,5080194,696,Prospero Group Ltd
Childrens Services,Children's Social Care,Children Looked After,LCS/Allowances-Accom,Education & Training - Non Staff Tuition Fees,18/07/2018,5080195,348,Prospero Group Ltd
Childrens Services,Children's Social Care,Children Looked After,LCS/Allowances-Accom,Education & Training - Non Staff Tuition Fees,18/07/2018,5080196,"1,131.00",Prospero Group Ltd
Childrens Services,Children's Social Care,Children Looked After,LCS/Allowances-Accom,Education & Training - Non Staff Tuition Fees,18/07/2018,5080197,870,Prospero Group Ltd
Childrens Services,Children's Social Care,Children Looked After,LCS/Allowances-Accom,Education & Training - Non Staff Tuition Fees,18/07/2018,5080198,435,Prospero Group Ltd
Childrens Services,Children's Social Care,Children Looked After,LCS/Allowances-Accom,Education & Training - Non Staff Tuition Fees,18/07/2018,5080199,870,Prospero Group Ltd
Childrens Services,Children's Social Care,Children Looked After,LCS/Allowances-Accom,Education & Training - Non Staff Tuition Fees,18/07/2018,5080200,696,Prospero Group Ltd
Childrens Services,Children's Social Care,Children Looked After,LCS/Allowances-Accom,Education & Training - Non Staff Tuition Fees,18/07/2018,5080202,348,Prospero Group Ltd
Childrens Services,Children's Social Care,Children Looked After,LCS/Allowances-Accom,Education & Training - Non Staff Tuition Fees,18/07/2018,5080203,870,Prospero Group Ltd
Childrens Services,Children's Social Care,Children Looked After,LCS/Allowances-Accom,Education & Training - Non Staff Tuition Fees,18/07/2018,5080204,870,Prospero Group Ltd
Childrens Services,Children's Social Care,Children Looked After,LCS/Allowances-Accom,Education & Training - Non Staff Tuition Fees,18/07/2018,5080212,870,Prospero Group Ltd
Childrens Services,Children's Social Care,Other Children's and Family Services,Permanancy and Adoption Support Team 2,Third Party Payments - Voluntary Associations,18/07/2018,5080218,410,Barnardo's
Childrens Services,Education Services,Other Strategic Functions,SEN External Travel,Non Staff Transport Costs - Reimbursement,18/07/2018,5080233,"25,142.00",Healthcare and Transport Services Group Ltd
Childrens Services,Education Services,Other Strategic Functions,SEN External Travel,Non Staff Transport Costs - Reimbursement,18/07/2018,5080370,"7,771.00",Sam's Cars
Childrens Services,Children's Social Care,Children Looked After,LCS/Allowances-Accom,Leaving Care Financial Assistance - Supported Living,18/07/2018,5080374,"3,689.62",Newhaven 16 Plus
Childrens Services,Children's Social Care,Children Looked After,LCS/Allowances-Accom,Leaving Care Financial Assistance - Supp Accom/Hous Rents,18/07/2018,5080375,"1,107.01",Newhaven 16 Plus
Childrens Services,Children's Social Care,Other Children's and Family Services,Permanancy and Adoption Support Team 1,Third Party Payments - Voluntary Associations,18/07/2018,5080629,410,Barnardo's
Childrens Services,Children's Social Care,Children Looked After,Enrichment Projects,Recreational Activities,18/07/2018,5080681,"1,212.00",Jam Total Sport
Childrens Services,Children's Social Care,Children Looked After,Leaving Care-UASC,Leaving Care Financial Assistance - Supp Accom/Hous Rents,18/07/2018,5080699,960.07,Newhaven 16 Plus
Childrens Services,Children's Social Care,Children Looked After,LCS/Allowances-Accom,Education & Training - Non Staff Tuition Fees,18/07/2018,5080777,870,Prospero Group Ltd
Childrens Services,Children's Social Care,Children Looked After,LCS/Allowances-Accom,Education & Training - Non Staff Tuition Fees,18/07/2018,5080779,-696,Prospero Group Ltd
Childrens Services,Children's Social Care,Service Strategy,FSP Sect 17 - Team 4,Childrens Act Section 17 - Placement Fee,18/07/2018,5080788,"3,500.00",Hawk & Eagle FC
Childrens Services,Children's Social Care,Children Looked After,S23-Other-Semi-Ind. Unit,Childrens Act Section 23 - Placement Fee,18/07/2018,5081150,"1,277.82",Pangea Support Services
Childrens Services,Children's Social Care,Children Looked After,S23-Other-Semi-Ind. Unit,Childrens Act Section 23 - Placement Fee,18/07/2018,5081151,"1,727.14",Pangea Support Services
Childrens Services,Education Services,Early Years,SSEYCG Two Year Old Pilot,Third Party Payments - Voluntary Associations,18/07/2018,5081337,"4,095.00",EXCELLENCE CHRISTIAN SCHOOL
Childrens Services,Education Services,Early Years,SSEYCG Two Year Old Pilot,Third Party Payments - Voluntary Associations,18/07/2018,5081344,"1,260.00",Incy Wincy Stars Childcare Ltd
Childrens Services,Education Services,Early Years,SSEYCG Two Year Old Pilot,Third Party Payments - Voluntary Associations,18/07/2018,5081346,"3,120.00",Iqra Preschool
Childrens Services,Education Services,Early Years,SSEYCG Two Year Old Pilot,Third Party Payments - Voluntary Associations,18/07/2018,5081355,"1,935.00",Munchkins Playgroup
Childrens Services,Education Services,Early Years,SSEYCG Two Year Old Pilot,Third Party Payments - Voluntary Associations,18/07/2018,5081356,"4,095.00",New Birth Day Nursery
Childrens Services,Education Services,Early Years,SSEYCG Two Year Old Pilot,Third Party Payments - Voluntary Associations,18/07/2018,5081357,"2,115.00",Pepe & Friends Ltd
Childrens Services,Education Services,Early Years,SSEYCG Two Year Old Pilot,Third Party Payments - Voluntary Associations,18/07/2018,5081363,"3,168.75",CATHOLIC CHILDREN'S SOCIETY(WESTMINSTER)
Childrens Services,Education Services,Early Years,SSEYCG Two Year Old Pilot,Third Party Payments - Voluntary Associations,18/07/2018,5081366,"4,680.00",Tower Hamlets Opportunity Group
Childrens Services,Education Services,Early Years,SSEYCG Two Year Old Pilot,Third Party Payments - Voluntary Associations,18/07/2018,5081368,"1,462.50",WAPPING PLAYGROUP
Childrens Services,Education Services,Early Years,SSEYCG Two Year Old Pilot,Third Party Payments - Voluntary Associations,18/07/2018,5081369,585,THE NURSERY QUEEN MARY UNIVERSITY LONDON
Childrens Services,Cultural and Related Services,Culture & Heritage,Event Fund,Third Party Payments - Voluntary Associations,18/07/2018,5081382,"1,400.00",The Space (St Paul's ArtsTrust)
Childrens Services,Cultural and Related Services,Culture & Heritage,Event Fund,Third Party Payments - Voluntary Associations,18/07/2018,5081383,400,Alternative Arts
Childrens Services,Cultural and Related Services,Culture & Heritage,Event Fund,Third Party Payments - Voluntary Associations,18/07/2018,5081387,960,Poplar Union
Childrens Services,Children's Social Care,Support Service and Management Costs,Schools Catering,Kitchen Supplies - Food and Beverages,18/07/2018,5081531,-256.5,William White Meats Ltd
Childrens Services,Children's Social Care,Support Service and Management Costs,Schools Catering,Kitchen Supplies - Crockery and Hardware,18/07/2018,5081554,343.73,Tri-Star Packaging Supplies LTD
Childrens Services,Children's Social Care,Support Service and Management Costs,Schools Catering,Kitchen Supplies - Crockery and Hardware,18/07/2018,5081566,259.75,Tri-Star Packaging Supplies LTD
Childrens Services,Children's Social Care,Support Service and Management Costs,Welfare Catering,Kitchen Supplies - Crockery and Hardware,18/07/2018,5081591,271.82,Tri-Star Packaging Supplies LTD
Childrens Services,Children's Social Care,Children Looked After,LCS/Allowances-Accom,Leaving Care Financial Assistance - Grant Pay Special Needs,18/07/2018,5081640,900,Inclusive Care Support Ltd
Childrens Services,Children's Social Care,Children Looked After,LCS/Allowances-Accom,Leaving Care Financial Assistance - Supp Accom/Hous Rents,18/07/2018,5081640,"2,900.00",Inclusive Care Support Ltd
Childrens Services,Children's Social Care,Service Strategy,FSP Sect 17 - Team 3,Environmental Health Supplies - Samples for Testing,18/07/2018,5081642,510,E4 Law Limited T/A Lextox
Childrens Services,Cultural and Related Services,Culture & Heritage,Arts-Park Events,Events & Exhibition Supplies,18/07/2018,5081716,500,Arts Without Borders
Childrens Services,Children's Social Care,Service Strategy,Child Care M & A,Staff Advertising,18/07/2018,5081795,"3,000.00",Penna PLC
Childrens Services,Children's Social Care,Children Looked After,S23 Fam Pl P&V-F/Care,Childrens Act Section 23 - Placement Fee,18/07/2018,5082941,784,Swiis Foster Care Limited
Childrens Services,Children's Social Care,Family Support Services,IPST S17 NRPF,Childrens Act Section 17 - Other Placements Bed & Breakfast,18/07/2018,5082964,"4,000.00",Finefair Management
Childrens Services,Children's Social Care,Family Support Services,IPST S17 NRPF,Childrens Act Section 17 - Other Placements Bed & Breakfast,18/07/2018,5082965,"4,250.00",Finefair Management
Childrens Services,Children's Social Care,Family Support Services,IPST S17 NRPF,Childrens Act Section 17 - Other Placements Bed & Breakfast,18/07/2018,5082966,"1,650.00",Finefair Management
Childrens Services,Children's Social Care,Family Support Services,IPST S17 NRPF,Childrens Act Section 17 - Other Placements Bed & Breakfast,18/07/2018,5082967,"1,170.00",Finefair Management
Childrens Services,Children's Social Care,Family Support Services,IPST S17 NRPF,Childrens Act Section 17 - Other Placements Bed & Breakfast,18/07/2018,5082968,"2,100.00",Finefair Management
Childrens Services,Children's Social Care,Family Support Services,IPST S17 NRPF,Childrens Act Section 17 - Other Placements Bed & Breakfast,18/07/2018,5082969,"1,710.00",Finefair Management
Childrens Services,Children's Social Care,Family Support Services,IPST S17 NRPF,Childrens Act Section 17 - Other Placements Bed & Breakfast,18/07/2018,5082970,"1,500.00",Finefair Management
Childrens Services,Children's Social Care,Family Support Services,IPST S17 NRPF,Childrens Act Section 17 - Other Placements Bed & Breakfast,18/07/2018,5082971,"2,400.00",Finefair Management
Childrens Services,Children's Social Care,Family Support Services,IPST S17 NRPF,Childrens Act Section 17 - Other Placements Bed & Breakfast,18/07/2018,5082972,"1,200.00",Finefair Management
Childrens Services,Children's Social Care,Family Support Services,IPST S17 NRPF,Childrens Act Section 17 - Other Placements Bed & Breakfast,18/07/2018,5082973,"1,500.00",Finefair Management
Childrens Services,Education Services,Other Strategic Functions,High Needs FE Colleges,Third Party Payments - Payments to Schools,20/07/2018,5039976,"5,946.67",East London Advanced Technology Training
Childrens Services,Education Services,Other Strategic Functions,Special Education Needs DSG,Third Party Payments - Payments to Schools,20/07/2018,5039984,"3,400.00",East London Advanced Technology Training
Childrens Services,Cultural and Related Services,Open Spaces,Victoria Park,Uniforms & Clothing,20/07/2018,5051603,559.4,SMI Group
Childrens Services,Cultural and Related Services,Open Spaces,Victoria Park,Uniforms & Clothing,20/07/2018,5059072,370.4,SMI Group
Childrens Services,Education Services,Other Strategic Functions,Central Pupil Database Project,Services - Professional Fees - Consultants Fees,20/07/2018,5064980,"4,508.00",Agilisys Professional Services
Childrens Services,Children's Social Care,Family Support Services,CNN Pool: Joint Family Support,Social Care - Homecare,20/07/2018,5068785,734.25,QALB Centre Short Break Services
Childrens Services,Cultural and Related Services,Open Spaces,Victoria Park,Repairs and Maintenance - Responsive - Repair & Maintenance,20/07/2018,5069604,750,SJ Hills Ltd
Childrens Services,Cultural and Related Services,Open Spaces,Victoria Park,Repairs and Maintenance - Responsive - Repair & Maintenance,20/07/2018,5069605,340,SJ Hills Ltd
Childrens Services,Education Services,Other Strategic Functions,Central Pupil Database Project,Computing - Purchase of Software,20/07/2018,5069982,"3,900.00",Serverlec Synergy Ltd
Childrens Services,Children's Social Care,Support Service and Management Costs,Sch. Meals A/c - Central Production Unit,Kitchen Supplies - Food and Beverages,20/07/2018,5070276,"1,330.95",Thomas Ridley & Son Ltd
Childrens Services,Children's Social Care,Support Service and Management Costs,Toby Lane Function,Kitchen Supplies - Food and Beverages,20/07/2018,5070277,437.66,Thomas Ridley & Son Ltd
Childrens Services,Children's Social Care,Support Service and Management Costs,Schools Catering,Kitchen Supplies - Food and Beverages,20/07/2018,5070278,389.39,Thomas Ridley & Son Ltd
Childrens Services,Children's Social Care,Support Service and Management Costs,Schools Catering,Kitchen Supplies - Food and Beverages,20/07/2018,5070279,711.9,Thomas Ridley & Son Ltd
Childrens Services,Children's Social Care,Support Service and Management Costs,Schools Catering,Kitchen Supplies - Food and Beverages,20/07/2018,5070283,539.2,Thomas Ridley & Son Ltd
Childrens Services,Children's Social Care,Support Service and Management Costs,Schools Catering,Kitchen Supplies - Food and Beverages,20/07/2018,5070284,332.9,Thomas Ridley & Son Ltd
Childrens Services,Children's Social Care,Support Service and Management Costs,Schools Catering,Kitchen Supplies - Food and Beverages,20/07/2018,5070286,532.77,Thomas Ridley & Son Ltd
Childrens Services,Children's Social Care,Support Service and Management Costs,Schools Catering,Kitchen Supplies - Food and Beverages,20/07/2018,5070288,645.7,Thomas Ridley & Son Ltd
Childrens Services,Children's Social Care,Support Service and Management Costs,Schools Catering,Kitchen Supplies - Food and Beverages,20/07/2018,5070289,339.7,Thomas Ridley & Son Ltd
Childrens Services,Children's Social Care,Support Service and Management Costs,Schools Catering,Kitchen Supplies - Food and Beverages,20/07/2018,5070290,810.61,Thomas Ridley & Son Ltd
Childrens Services,Children's Social Care,Support Service and Management Costs,Schools Catering,Kitchen Supplies - Food and Beverages,20/07/2018,5070291,808.54,Thomas Ridley & Son Ltd
Childrens Services,Children's Social Care,Support Service and Management Costs,Schools Catering,Kitchen Supplies - Food and Beverages,20/07/2018,5070292,319.11,Thomas Ridley & Son Ltd
Childrens Services,Children's Social Care,Support Service and Management Costs,Schools Catering,Kitchen Supplies - Food and Beverages,20/07/2018,5070293,309.12,Thomas Ridley & Son Ltd
Childrens Services,Children's Social Care,Support Service and Management Costs,Schools Catering,Kitchen Supplies - Food and Beverages,20/07/2018,5070294,325.7,Thomas Ridley & Son Ltd
Childrens Services,Children's Social Care,Support Service and Management Costs,Schools Catering,Kitchen Supplies - Food and Beverages,20/07/2018,5070298,373.05,Thomas Ridley & Son Ltd
Childrens Services,Children's Social Care,Support Service and Management Costs,Schools Catering,Kitchen Supplies - Food and Beverages,20/07/2018,5070300,423.41,Thomas Ridley & Son Ltd
Childrens Services,Children's Social Care,Support Service and Management Costs,Schools Catering,Kitchen Supplies - Food and Beverages,20/07/2018,5070301,425.56,Thomas Ridley & Son Ltd
Childrens Services,Children's Social Care,Support Service and Management Costs,Schools Catering,Kitchen Supplies - Food and Beverages,20/07/2018,5070302,325.74,Thomas Ridley & Son Ltd
Childrens Services,Children's Social Care,Support Service and Management Costs,Schools Catering,Kitchen Supplies - Food and Beverages,20/07/2018,5070304,260.26,Thomas Ridley & Son Ltd
Childrens Services,Children's Social Care,Support Service and Management Costs,Schools Catering,Kitchen Supplies - Food and Beverages,20/07/2018,5070307,289.2,Thomas Ridley & Son Ltd
Childrens Services,Children's Social Care,Support Service and Management Costs,Sch. Meals A/c - P.D.C. Cateen,Kitchen Supplies - Food and Beverages,20/07/2018,5070308,259.66,Thomas Ridley & Son Ltd
Childrens Services,Children's Social Care,Support Service and Management Costs,Schools Catering,Kitchen Supplies - Food and Beverages,20/07/2018,5070309,322.05,Thomas Ridley & Son Ltd
Childrens Services,Children's Social Care,Support Service and Management Costs,Schools Catering,Kitchen Supplies - Food and Beverages,20/07/2018,5070310,740.31,Thomas Ridley & Son Ltd
Childrens Services,Children's Social Care,Support Service and Management Costs,Schools Catering,Kitchen Supplies - Food and Beverages,20/07/2018,5070311,576.75,Thomas Ridley & Son Ltd
Childrens Services,Children's Social Care,Support Service and Management Costs,Schools Catering,Kitchen Supplies - Food and Beverages,20/07/2018,5070314,349.27,Thomas Ridley & Son Ltd
Childrens Services,Children's Social Care,Support Service and Management Costs,Schools Catering,Kitchen Supplies - Food and Beverages,20/07/2018,5070315,300.5,Thomas Ridley & Son Ltd
Childrens Services,Children's Social Care,Support Service and Management Costs,Schools Catering,Kitchen Supplies - Food and Beverages,20/07/2018,5070316,377.43,Thomas Ridley & Son Ltd
Childrens Services,Children's Social Care,Support Service and Management Costs,Schools Catering,Kitchen Supplies - Food and Beverages,20/07/2018,5070317,292.92,Thomas Ridley & Son Ltd
Childrens Services,Children's Social Care,Support Service and Management Costs,Schools Catering,Kitchen Supplies - Food and Beverages,20/07/2018,5070318,864.2,Thomas Ridley & Son Ltd
Childrens Services,Children's Social Care,Support Service and Management Costs,Schools Catering,Kitchen Supplies - Food and Beverages,20/07/2018,5070319,891.09,Thomas Ridley & Son Ltd
Childrens Services,Children's Social Care,Support Service and Management Costs,Schools Catering,Kitchen Supplies - Food and Beverages,20/07/2018,5070320,508.8,Thomas Ridley & Son Ltd
Childrens Services,Children's Social Care,Support Service and Management Costs,Schools Catering,Kitchen Supplies - Food and Beverages,20/07/2018,5070322,475.58,Thomas Ridley & Son Ltd
Childrens Services,Children's Social Care,Support Service and Management Costs,Schools Catering,Kitchen Supplies - Food and Beverages,20/07/2018,5070323,450.5,Thomas Ridley & Son Ltd
Childrens Services,Children's Social Care,Support Service and Management Costs,Schools Catering,Kitchen Supplies - Food and Beverages,20/07/2018,5070325,738.32,Thomas Ridley & Son Ltd
Childrens Services,Children's Social Care,Support Service and Management Costs,Schools Catering,Kitchen Supplies - Food and Beverages,20/07/2018,5070326,425.67,Thomas Ridley & Son Ltd
Childrens Services,Children's Social Care,Support Service and Management Costs,Schools Catering,Kitchen Supplies - Food and Beverages,20/07/2018,5070329,344.03,Thomas Ridley & Son Ltd
Childrens Services,Children's Social Care,Support Service and Management Costs,Schools Catering,Kitchen Supplies - Food and Beverages,20/07/2018,5070330,367.21,Thomas Ridley & Son Ltd
Childrens Services,Children's Social Care,Support Service and Management Costs,Schools Catering,Kitchen Supplies - Food and Beverages,20/07/2018,5070331,447.6,Thomas Ridley & Son Ltd
Childrens Services,Children's Social Care,Support Service and Management Costs,Schools Catering,Kitchen Supplies - Food and Beverages,20/07/2018,5070332,494.95,Thomas Ridley & Son Ltd
Childrens Services,Children's Social Care,Support Service and Management Costs,Schools Catering,Kitchen Supplies - Food and Beverages,20/07/2018,5070334,680.04,Thomas Ridley & Son Ltd
Childrens Services,Children's Social Care,Support Service and Management Costs,Schools Catering,Kitchen Supplies - Food and Beverages,20/07/2018,5070338,414.6,Thomas Ridley & Son Ltd
Childrens Services,Children's Social Care,Support Service and Management Costs,Schools Catering,Kitchen Supplies - Food and Beverages,20/07/2018,5070340,514.45,Thomas Ridley & Son Ltd
Childrens Services,Children's Social Care,Support Service and Management Costs,Schools Catering,Kitchen Supplies - Food and Beverages,20/07/2018,5070342,377.69,Thomas Ridley & Son Ltd
Childrens Services,Children's Social Care,Support Service and Management Costs,Schools Catering,Kitchen Supplies - Food and Beverages,20/07/2018,5070343,506.1,Thomas Ridley & Son Ltd
Childrens Services,Children's Social Care,Support Service and Management Costs,Schools Catering,Kitchen Supplies - Food and Beverages,20/07/2018,5070345,656.46,Thomas Ridley & Son Ltd
Childrens Services,Children's Social Care,Support Service and Management Costs,Schools Catering,Kitchen Supplies - Food and Beverages,20/07/2018,5070346,337.21,Thomas Ridley & Son Ltd
Childrens Services,Children's Social Care,Support Service and Management Costs,Schools Catering,Kitchen Supplies - Food and Beverages,20/07/2018,5070347,274.21,Thomas Ridley & Son Ltd
